BODY,BODY NAME,SERVICE CODE,ORGANISATIONAL UNIT,ORGANISATIONAL UNIT CODE,EXPENDITURE CATEGORY,EXPENDITURE CODE,DATE (POSTING DATE),TRANSACTION NUMBER,AMOUNT,SUPPLIER NAME,SUPPLIER ID
WARRINGTON BOROUGH COUNCIL,http://statistics.data.gov.uk/id/local-authority/00EU,ER1,Transport Holding Account,41311,Road Fund Licences,300200,20-Dec-12,1900107450,650,Post Office Counters Ltd,100004
WARRINGTON BOROUGH COUNCIL,http://statistics.data.gov.uk/id/local-authority/00EU,ER1,Transport Holding Account,41311,Road Fund Licences,300200,20-Dec-12,1900107450,650,Post Office Counters Ltd,100004
WARRINGTON BOROUGH COUNCIL,http://statistics.data.gov.uk/id/local-authority/00EU,ER1,Transport Holding Account,41311,Road Fund Licences,300200,20-Dec-12,1900107450,650,Post Office Counters Ltd,100004
WARRINGTON BOROUGH COUNCIL,http://statistics.data.gov.uk/id/local-authority/00EU,ER1,Transport Holding Account,41311,Road Fund Licences,300200,20-Dec-12,1900107450,650,Post Office Counters Ltd,100004
WARRINGTON BOROUGH COUNCIL,http://statistics.data.gov.uk/id/local-authority/00EU,ER0,ICT & Business Improvement,23020,ICT Comms - Line Rental,450200,18-Dec-12,1900107085,547,Cable & Wireless Communications,100023
WARRINGTON BOROUGH COUNCIL,http://statistics.data.gov.uk/id/local-authority/00EU,ER0,ICT & Business Improvement,23020,ICT Comms - Line Usage,450300,18-Dec-12,1900107085,4934,Cable & Wireless Communications,100023
WARRINGTON BOROUGH COUNCIL,http://statistics.data.gov.uk/id/local-authority/00EU,NCS,Care Purchase - Learning Disability,54450,CP Adult Placement,443450,18-Dec-12,1900107112,1496,Redacted Personal Data,100044
WARRINGTON BOROUGH COUNCIL,http://statistics.data.gov.uk/id/local-authority/00EU,NCS,Care Purchase - PD,54440,Direct Payments,552000,11-Dec-12,1900106123,2768,Redacted Personal Data,100049
WARRINGTON BOROUGH COUNCIL,http://statistics.data.gov.uk/id/local-authority/00EU,NCS,Care Purchase - PD,54440,CP Adult Placement,443450,18-Dec-12,1900107099,2991,Redacted Personal Data,100052
WARRINGTON BOROUGH COUNCIL,http://statistics.data.gov.uk/id/local-authority/00EU,NCS,Supporting People Grant Payments,53260,Sheltd/Xtra Care Hsing and Comm Alarms,535050,11-Dec-12,1900106036,2986,Muir Housing Association Ltd,100053
WARRINGTON BOROUGH COUNCIL,http://statistics.data.gov.uk/id/local-authority/00EU,NCS,Care Purchase Budget,54490,CP ExternalOther Exp,440800,12-Dec-12,1900106585,14000,Heathfield Residental Home,100059
WARRINGTON BOROUGH COUNCIL,http://statistics.data.gov.uk/id/local-authority/00EU,NCS,Care Purchase - OP & OT South,54480,CP-Domicil.External,440950,07-Dec-12,1900105860,929,Housing 21,100060
WARRINGTON BOROUGH COUNCIL,http://statistics.data.gov.uk/id/local-authority/00EU,NCS,Care Purchase - PD,54440,CP-Domicil.External,440950,07-Dec-12,1900105860,2006,Housing 21,100060
WARRINGTON BOROUGH COUNCIL,http://statistics.data.gov.uk/id/local-authority/00EU,NCS,Care Purchase - OP & OT Central,54420,CP-Domicil.External,440950,07-Dec-12,1900105860,2751,Housing 21,100060
WARRINGTON BOROUGH COUNCIL,http://statistics.data.gov.uk/id/local-authority/00EU,NCS,Care Purchase - OP & OT Central,54420,CP-Domicil.External,440950,07-Dec-12,1900105860,4123,Housing 21,100060
WARRINGTON BOROUGH COUNCIL,http://statistics.data.gov.uk/id/local-authority/00EU,NCS,Care Purchase - OP & OT West,54470,CP-Domicil.External,440950,07-Dec-12,1900105860,5941,Housing 21,100060
WARRINGTON BOROUGH COUNCIL,http://statistics.data.gov.uk/id/local-authority/00EU,NCS,Care Purchase -OP & OT East,54430,CP-Domicil.External,440950,07-Dec-12,1900105861,2457,Housing 21,100060
WARRINGTON BOROUGH COUNCIL,http://statistics.data.gov.uk/id/local-authority/00EU,NCS,Care Purchase - PD,54440,CP-Domicil.External,440950,07-Dec-12,1900105861,2560,Housing 21,100060
WARRINGTON BOROUGH COUNCIL,http://statistics.data.gov.uk/id/local-authority/00EU,NCS,Care Purchase - OP & OT Central,54420,CP-Domicil.External,440950,07-Dec-12,1900105861,5238,Housing 21,100060
WARRINGTON BOROUGH COUNCIL,http://statistics.data.gov.uk/id/local-authority/00EU,NCS,Care Purchase - OP & OT South,54480,CP-Domicil.External,440950,07-Dec-12,1900105861,5685,Housing 21,100060
WARRINGTON BOROUGH COUNCIL,http://statistics.data.gov.uk/id/local-authority/00EU,NCS,Care Purchase - OP & OT West,54470,CP-Domicil.External,440950,07-Dec-12,1900105861,9513,Housing 21,100060
WARRINGTON BOROUGH COUNCIL,http://statistics.data.gov.uk/id/local-authority/00EU,NCS,Care Purchase - PD,54440,Supporting People - External,441250,07-Dec-12,1900105861,691,Housing 21,100060
WARRINGTON BOROUGH COUNCIL,http://statistics.data.gov.uk/id/local-authority/00EU,NCS,Care Purchase - OP & OT South,54480,CP-Domicil.External,440950,18-Dec-12,1900106999,935,Housing 21,100060
WARRINGTON BOROUGH COUNCIL,http://statistics.data.gov.uk/id/local-authority/00EU,NCS,Care Purchase - PD,54440,CP-Domicil.External,440950,18-Dec-12,1900106999,2327,Housing 21,100060
WARRINGTON BOROUGH COUNCIL,http://statistics.data.gov.uk/id/local-authority/00EU,NCS,Care Purchase - OP & OT Central,54420,CP-Domicil.External,440950,18-Dec-12,1900106999,3011,Housing 21,100060
WARRINGTON BOROUGH COUNCIL,http://statistics.data.gov.uk/id/local-authority/00EU,NCS,Care Purchase -OP & OT East,54430,CP-Domicil.External,440950,18-Dec-12,1900106999,4072,Housing 21,100060
WARRINGTON BOROUGH COUNCIL,http://statistics.data.gov.uk/id/local-authority/00EU,NCS,Care Purchase - OP & OT West,54470,CP-Domicil.External,440950,18-Dec-12,1900106999,5824,Housing 21,100060
WARRINGTON BOROUGH COUNCIL,http://statistics.data.gov.uk/id/local-authority/00EU,CEX,Coroners Service,11100,Reimbursement for Deputy Coroner,440400,19-Dec-12,1900107296,2871,Dr J E Napier,100061
WARRINGTON BOROUGH COUNCIL,http://statistics.data.gov.uk/id/local-authority/00EU,CEX,Coroners Service,11100,Post Mortem Fees-Rep,440250,13-Dec-12,1900106760,758,Dr C M Manson,100080
WARRINGTON BOROUGH COUNCIL,http://statistics.data.gov.uk/id/local-authority/00EU,NCS,Care Purchase - Mental Health Team 2,54240,CP-LongStayExternal,441150,05-Dec-12,1900105774,2368,Phoenix House,100085
WARRINGTON BOROUGH COUNCIL,http://statistics.data.gov.uk/id/local-authority/00EU,NCS,Care Purchase - Mental Health Team 3,54250,CP-LongStayExternal,441150,18-Dec-12,1900106977,7085,Milbury Care Services Limited,100099
WARRINGTON BOROUGH COUNCIL,http://statistics.data.gov.uk/id/local-authority/00EU,NCS,Care Purchase - OP & OT Central,54420,CP-LongStayExternal,441150,18-Dec-12,1900106978,5800,Milbury Care Services Limited,100099
WARRINGTON BOROUGH COUNCIL,http://statistics.data.gov.uk/id/local-authority/00EU,NCS,Care Purchase - PD,54440,CP-Nursing Care-External,441200,18-Dec-12,1900106982,5360,Milbury Care Services Limited,100099
WARRINGTON BOROUGH COUNCIL,http://statistics.data.gov.uk/id/local-authority/00EU,NCS,Care Purchase - Learning Disability,54450,CP-LongStayExternal,441150,18-Dec-12,1900106991,8418,Milbury Care Services Limited,100099
WARRINGTON BOROUGH COUNCIL,http://statistics.data.gov.uk/id/local-authority/00EU,NCS,Care Purchase - ABI,54260,CP-LongStayExternal,441150,19-Dec-12,1900107357,6428,Milbury Care Services Limited,100099
WARRINGTON BOROUGH COUNCIL,http://statistics.data.gov.uk/id/local-authority/00EU,CHL,Legal Fees - Safeguarding,30100,Legal Costs Incurred,440200,07-Dec-12,1900105889,1091,Forshaws Davies Ridgeway Solicitors,100130
WARRINGTON BOROUGH COUNCIL,http://statistics.data.gov.uk/id/local-authority/00EU,ER0,Industrial Estates,43570,Rent Gatewarth,220300,12-Dec-12,1900106629,26000,Combined Property Control,100133
WARRINGTON BOROUGH COUNCIL,http://statistics.data.gov.uk/id/local-authority/00EU,NCS,Care Purchase - Learning Disability,54450,Direct Payments,552000,11-Dec-12,1900106125,717,Redacted Personal Data,100270
WARRINGTON BOROUGH COUNCIL,http://statistics.data.gov.uk/id/local-authority/00EU,NCS,Care Purchase -OP & OT East,54430,CP-LongStayExternal,441150,03-Dec-12,1900105630,1392,The Nugent Care Society,100277
WARRINGTON BOROUGH COUNCIL,http://statistics.data.gov.uk/id/local-authority/00EU,NCS,Care Purchase -OP & OT East,54430,CP-LongStayExternal,441150,03-Dec-12,1900105631,1392,The Nugent Care Society,100277
WARRINGTON BOROUGH COUNCIL,http://statistics.data.gov.uk/id/local-authority/00EU,NCS,Care Purchase -OP & OT East,54430,CP-LongStayExternal,441150,03-Dec-12,1900105632,1752,The Nugent Care Society,100277
WARRINGTON BOROUGH COUNCIL,http://statistics.data.gov.uk/id/local-authority/00EU,CYP,Primary,81001,Furniture & Fittings,400150,05-Dec-12,1900105748,716,Yorkshire Purchasing Organisation,100295
WARRINGTON BOROUGH COUNCIL,http://statistics.data.gov.uk/id/local-authority/00EU,NCS,Care Purchase Budget,54490,CP ExternalOther Exp,440800,10-Dec-12,1900105951,4719,European Care (Uk) Ltd,100320
WARRINGTON BOROUGH COUNCIL,http://statistics.data.gov.uk/id/local-authority/00EU,NCS,Care Purchase Budget,54490,CP ExternalOther Exp,440800,12-Dec-12,1900106591,40000,European Care (Uk) Ltd,100320
WARRINGTON BOROUGH COUNCIL,http://statistics.data.gov.uk/id/local-authority/00EU,NCS,Care Purchase - PD,54440,Direct Payments,552000,11-Dec-12,1900106126,1797,Redacted Personal Data,100338
WARRINGTON BOROUGH COUNCIL,http://statistics.data.gov.uk/id/local-authority/00EU,NCS,Care Purchase - PD,54440,Direct Payments,552000,11-Dec-12,1900106127,1000,Redacted Personal Data,100340
WARRINGTON BOROUGH COUNCIL,http://statistics.data.gov.uk/id/local-authority/00EU,CHL,Contact Centre,31006,ICT Comms - Line Usage,450300,19-Dec-12,1900107275,599,Unitel Networks Services,100351
WARRINGTON BOROUGH COUNCIL,http://statistics.data.gov.uk/id/local-authority/00EU,NCS,Care Purchase - PD,54440,CP-Nursing Care-External,441200,18-Dec-12,1900106998,2780,Leonard Cheshire Disability,100370
WARRINGTON BOROUGH COUNCIL,http://statistics.data.gov.uk/id/local-authority/00EU,CHL,Agency Placements,30904,CP ExternalOther Exp,440800,05-Dec-12,1900105793,1275,Keys Child Care Ltd,100391
WARRINGTON BOROUGH COUNCIL,http://statistics.data.gov.uk/id/local-authority/00EU,CEX,Coroners Service,11100,Post Mortem Fees-Rep,440250,13-Dec-12,1900106762,855,Dr J Krajacevic,100409
WARRINGTON BOROUGH COUNCIL,http://statistics.data.gov.uk/id/local-authority/00EU,NCS,Care Purchase - Learning Disability,54450,CP-Nursing Care-External,441200,18-Dec-12,1900106997,2436,Chadderton Total-Care Unit Ltd,100425
WARRINGTON BOROUGH COUNCIL,http://statistics.data.gov.uk/id/local-authority/00EU,CEX,Coroners Service,11100,Post Mortem Fees-Rep,440250,14-Dec-12,1900106782,1355,Dr J.S Stafford,100426
WARRINGTON BOROUGH COUNCIL,http://statistics.data.gov.uk/id/local-authority/00EU,NCS,SLA - Grant Account,53920,Payment of Grants,470050,17-Dec-12,1900106893,10805,Salvation Army Band,100437
WARRINGTON BOROUGH COUNCIL,http://statistics.data.gov.uk/id/local-authority/00EU,NCS,Care Purchase - Learning Disability,54450,Direct Payments,552000,11-Dec-12,1900106129,720,Redacted Personal Data,100452
WARRINGTON BOROUGH COUNCIL,http://statistics.data.gov.uk/id/local-authority/00EU,NCS,Care Purchase - OP & OT South,54480,CP-Nursing Care-External,441200,12-Dec-12,1900106596,1500,BUPA -Crawfords Walk,100460
WARRINGTON BOROUGH COUNCIL,http://statistics.data.gov.uk/id/local-authority/00EU,NCS,Care Purchase - OP & OT South,54480,CP-Nursing Care-External,441200,12-Dec-12,1900106597,1500,BUPA -Crawfords Walk,100460
WARRINGTON BOROUGH COUNCIL,http://statistics.data.gov.uk/id/local-authority/00EU,NCS,Care Purchase - OP & OT South,54480,CP-Nursing Care-External,441200,12-Dec-12,1900106598,1500,BUPA -Crawfords Walk,100460
WARRINGTON BOROUGH COUNCIL,http://statistics.data.gov.uk/id/local-authority/00EU,NCS,Care Purchase - OP & OT South,54480,CP-Nursing Care-External,441200,21-Dec-12,1900107515,1500,BUPA -Crawfords Walk,100460
WARRINGTON BOROUGH COUNCIL,http://statistics.data.gov.uk/id/local-authority/00EU,NCS,Care Purchase - PD,54440,Direct Payments,552000,11-Dec-12,1900106130,1200,Redacted Personal Data,100472
WARRINGTON BOROUGH COUNCIL,http://statistics.data.gov.uk/id/local-authority/00EU,NCS,Select Soccer,51017,Electricity,210000,14-Dec-12,1900106856,2110,British Gas Trading Limited,100484
WARRINGTON BOROUGH COUNCIL,http://statistics.data.gov.uk/id/local-authority/00EU,NCS,Care Purchase Budget,54490,CP - Cont Care - External,441350,03-Dec-12,1900105633,2393,The Extracare Charitable Trust,100497
WARRINGTON BOROUGH COUNCIL,http://statistics.data.gov.uk/id/local-authority/00EU,NCS,Care Purchase Budget,54490,CP Free Nursing Care External,443500,03-Dec-12,1900105633,2609,The Extracare Charitable Trust,100497
WARRINGTON BOROUGH COUNCIL,http://statistics.data.gov.uk/id/local-authority/00EU,NCS,Care Purchase -OP & OT East,54430,CP - Housing with Care - External,494450,03-Dec-12,1900105633,1584,The Extracare Charitable Trust,100497
WARRINGTON BOROUGH COUNCIL,http://statistics.data.gov.uk/id/local-authority/00EU,NCS,Care Purchase - PD,54440,CP - Housing with Care - External,494450,03-Dec-12,1900105633,2393,The Extracare Charitable Trust,100497
WARRINGTON BOROUGH COUNCIL,http://statistics.data.gov.uk/id/local-authority/00EU,NCS,Care Purchase - OP & OT Central,54420,CP - Housing with Care - External,494450,03-Dec-12,1900105633,20737,The Extracare Charitable Trust,100497
WARRINGTON BOROUGH COUNCIL,http://statistics.data.gov.uk/id/local-authority/00EU,NCS,Care Purchase Budget,54490,CP - Cont Care - External,441350,03-Dec-12,1900105635,2393,The Extracare Charitable Trust,100497
WARRINGTON BOROUGH COUNCIL,http://statistics.data.gov.uk/id/local-authority/00EU,NCS,Care Purchase Budget,54490,CP Free Nursing Care External,443500,03-Dec-12,1900105635,2609,The Extracare Charitable Trust,100497
WARRINGTON BOROUGH COUNCIL,http://statistics.data.gov.uk/id/local-authority/00EU,NCS,Care Purchase -OP & OT East,54430,CP - Housing with Care - External,494450,03-Dec-12,1900105635,1584,The Extracare Charitable Trust,100497
WARRINGTON BOROUGH COUNCIL,http://statistics.data.gov.uk/id/local-authority/00EU,NCS,Care Purchase - PD,54440,CP - Housing with Care - External,494450,03-Dec-12,1900105635,2393,The Extracare Charitable Trust,100497
WARRINGTON BOROUGH COUNCIL,http://statistics.data.gov.uk/id/local-authority/00EU,NCS,Care Purchase - OP & OT Central,54420,CP - Housing with Care - External,494450,03-Dec-12,1900105635,20578,The Extracare Charitable Trust,100497
WARRINGTON BOROUGH COUNCIL,http://statistics.data.gov.uk/id/local-authority/00EU,NCS,Care Purchase Budget,54490,CP - Cont Care - External,441350,17-Dec-12,1900106914,568,The Extracare Charitable Trust,100497
WARRINGTON BOROUGH COUNCIL,http://statistics.data.gov.uk/id/local-authority/00EU,NCS,Care Purchase Budget,54490,CP - Cont Care - External,441350,17-Dec-12,1900106915,568,The Extracare Charitable Trust,100497
WARRINGTON BOROUGH COUNCIL,http://statistics.data.gov.uk/id/local-authority/00EU,NCS,Care Purchase - PD,54440,Direct Payments,552000,11-Dec-12,1900106132,2279,Redacted Personal Data,100505
WARRINGTON BOROUGH COUNCIL,http://statistics.data.gov.uk/id/local-authority/00EU,NCS,Care Purchase - PD,54440,Direct Payments,552000,11-Dec-12,1900106133,737,Redacted Personal Data,100508
WARRINGTON BOROUGH COUNCIL,http://statistics.data.gov.uk/id/local-authority/00EU,CEX,Housing Benefit,10340,External Printing,430100,18-Dec-12,1900107024,511,Vertex Data Science,100530
WARRINGTON BOROUGH COUNCIL,http://statistics.data.gov.uk/id/local-authority/00EU,CEX,Council Tax & Recovery,10320,External Printing,430100,18-Dec-12,1900107024,792,Vertex Data Science,100530
WARRINGTON BOROUGH COUNCIL,http://statistics.data.gov.uk/id/local-authority/00EU,CEX,Business Support Centre,52120,External Printing,430100,18-Dec-12,1900107024,8272,Vertex Data Science,100530
WARRINGTON BOROUGH COUNCIL,http://statistics.data.gov.uk/id/local-authority/00EU,CEX,Coroners Service,11100,Removal Bodies & Exc,440350,03-Dec-12,1900105592,700,Redacted Personal Data,100547
WARRINGTON BOROUGH COUNCIL,http://statistics.data.gov.uk/id/local-authority/00EU,CEX,Coroners Service,11100,Post Mortem Fees-Rep,440250,14-Dec-12,1900106806,1093,Dr N Alash,100579
WARRINGTON BOROUGH COUNCIL,http://statistics.data.gov.uk/id/local-authority/00EU,NCS,Care Purchase - Learning Disability,54450,Direct Payments,552000,11-Dec-12,1900106134,1120,Redacted Personal Data,100607
WARRINGTON BOROUGH COUNCIL,http://statistics.data.gov.uk/id/local-authority/00EU,NCS,Care Purchase - OP & OT West,54470,CP-Nursing Care-External,441200,06-Dec-12,1900105800,1496,Four Seasons Health Care,100629
WARRINGTON BOROUGH COUNCIL,http://statistics.data.gov.uk/id/local-authority/00EU,NCS,Care Purchase - PD,54440,Direct Payments,552000,11-Dec-12,1900106136,1907,Redacted Personal Data,100666
WARRINGTON BOROUGH COUNCIL,http://statistics.data.gov.uk/id/local-authority/00EU,NCS,Care Purchase - PD,54440,Direct Payments,552000,11-Dec-12,1900106137,1778,Redacted Personal Data,100667
WARRINGTON BOROUGH COUNCIL,http://statistics.data.gov.uk/id/local-authority/00EU,NCS,Care Purchase - ABI,54260,CP-Nursing Care-External,441200,03-Dec-12,1900105600,4140,Southbank Nursing Home,100679
WARRINGTON BOROUGH COUNCIL,http://statistics.data.gov.uk/id/local-authority/00EU,NCS,Care Purchase - ABI,54260,CP-Nursing Care-External,441200,19-Dec-12,1900107359,2218,Southbank Nursing Home,100679
WARRINGTON BOROUGH COUNCIL,http://statistics.data.gov.uk/id/local-authority/00EU,NCS,Supporting People Grant Payments,53260,Sheltd/Xtra Care Hsing and Comm Alarms,535050,11-Dec-12,1900106039,1487,The Mj,100686
WARRINGTON BOROUGH COUNCIL,http://statistics.data.gov.uk/id/local-authority/00EU,NCS,Care Purchase - OP & OT Central,54420,CP-Nursing Care-External,441200,07-Dec-12,1900105863,1564,Alexandra Care Home,100708
WARRINGTON BOROUGH COUNCIL,http://statistics.data.gov.uk/id/local-authority/00EU,NCS,Care Purchase - ABI,54260,CP-Domicil.External,440950,05-Dec-12,1900105741,2473,Independent Living Alliance,100726
WARRINGTON BOROUGH COUNCIL,http://statistics.data.gov.uk/id/local-authority/00EU,NCS,Care Purchase - Mental Health Team 2,54240,CP-Domicil.External,440950,05-Dec-12,1900105742,6044,Independent Living Alliance,100726
WARRINGTON BOROUGH COUNCIL,http://statistics.data.gov.uk/id/local-authority/00EU,NCS,Care Purchase - Mental Health Team 2,54240,Supporting People - External,441250,05-Dec-12,1900105742,600,Independent Living Alliance,100726
WARRINGTON BOROUGH COUNCIL,http://statistics.data.gov.uk/id/local-authority/00EU,NCS,Care Purchase - Learning Disability,54450,CP-Domicil.External,440950,05-Dec-12,1900105743,4538,Independent Living Alliance,100726
WARRINGTON BOROUGH COUNCIL,http://statistics.data.gov.uk/id/local-authority/00EU,NCS,Care Purchase - Mental Health Team 3,54250,CP-Domicil.External,440950,05-Dec-12,1900105744,2554,Independent Living Alliance,100726
WARRINGTON BOROUGH COUNCIL,http://statistics.data.gov.uk/id/local-authority/00EU,NCS,Care Purchase - Mental Health Team 1,54230,CP-Domicil.External,440950,05-Dec-12,1900105746,1241,Independent Living Alliance,100726
WARRINGTON BOROUGH COUNCIL,http://statistics.data.gov.uk/id/local-authority/00EU,NCS,Care Purchase - Mental Health Team 1,54230,Supporting People - External,441250,05-Dec-12,1900105746,880,Independent Living Alliance,100726
WARRINGTON BOROUGH COUNCIL,http://statistics.data.gov.uk/id/local-authority/00EU,NCS,Care Purchase - Mental Health Team 1,54230,CP-Domicil.External,440950,05-Dec-12,1900105747,2922,Independent Living Alliance,100726
WARRINGTON BOROUGH COUNCIL,http://statistics.data.gov.uk/id/local-authority/00EU,NCS,Care Purchase - Mental Health Team 1,54230,Supporting People - External,441250,05-Dec-12,1900105747,1000,Independent Living Alliance,100726
WARRINGTON BOROUGH COUNCIL,http://statistics.data.gov.uk/id/local-authority/00EU,NCS,Care Purchase - PD,54440,CP-Domicil.External,440950,05-Dec-12,1900105750,2922,Independent Living Alliance,100726
WARRINGTON BOROUGH COUNCIL,http://statistics.data.gov.uk/id/local-authority/00EU,NCS,Care Purchase - PD,54440,Supporting People - External,441250,05-Dec-12,1900105750,1000,Independent Living Alliance,100726
WARRINGTON BOROUGH COUNCIL,http://statistics.data.gov.uk/id/local-authority/00EU,NCS,Care Purchase Budget,54490,CP - Cont Care - External,441350,05-Dec-12,1900105751,8780,Independent Living Alliance,100726
WARRINGTON BOROUGH COUNCIL,http://statistics.data.gov.uk/id/local-authority/00EU,NCS,Care Purchase - Mental Health Team 1,54230,CP-Domicil.External,440950,05-Dec-12,1900105752,2383,Independent Living Alliance,100726
WARRINGTON BOROUGH COUNCIL,http://statistics.data.gov.uk/id/local-authority/00EU,NCS,Care Purchase - Mental Health Team 1,54230,CP-Domicil.External,440950,05-Dec-12,1900105753,3922,Independent Living Alliance,100726
WARRINGTON BOROUGH COUNCIL,http://statistics.data.gov.uk/id/local-authority/00EU,NCS,Care Purchase - Mental Health Team 1,54230,CP-Domicil.External,440950,05-Dec-12,1900105754,3449,Independent Living Alliance,100726
WARRINGTON BOROUGH COUNCIL,http://statistics.data.gov.uk/id/local-authority/00EU,NCS,Care Purchase - Mental Health Team 3,54250,CP-Domicil.External,440950,05-Dec-12,1900105756,2538,Independent Living Alliance,100726
WARRINGTON BOROUGH COUNCIL,http://statistics.data.gov.uk/id/local-authority/00EU,NCS,Care Purchase - Mental Health Team 1,54230,CP-Domicil.External,440950,05-Dec-12,1900105758,3144,Independent Living Alliance,100726
WARRINGTON BOROUGH COUNCIL,http://statistics.data.gov.uk/id/local-authority/00EU,NCS,Care Purchase - Mental Health Team 1,54230,Supporting People - External,441250,05-Dec-12,1900105758,600,Independent Living Alliance,100726
WARRINGTON BOROUGH COUNCIL,http://statistics.data.gov.uk/id/local-authority/00EU,NCS,Care Purchase - Mental Health Team 1,54230,CP-Domicil.External,440950,05-Dec-12,1900105761,3144,Independent Living Alliance,100726
WARRINGTON BOROUGH COUNCIL,http://statistics.data.gov.uk/id/local-authority/00EU,NCS,Care Purchase - Mental Health Team 1,54230,Supporting People - External,441250,05-Dec-12,1900105761,600,Independent Living Alliance,100726
WARRINGTON BOROUGH COUNCIL,http://statistics.data.gov.uk/id/local-authority/00EU,NCS,Care Purchase - Mental Health Team 1,54230,CP-Domicil.External,440950,07-Dec-12,1900105833,1241,Independent Living Alliance,100726
WARRINGTON BOROUGH COUNCIL,http://statistics.data.gov.uk/id/local-authority/00EU,NCS,Care Purchase - Mental Health Team 1,54230,Supporting People - External,441250,07-Dec-12,1900105833,880,Independent Living Alliance,100726
WARRINGTON BOROUGH COUNCIL,http://statistics.data.gov.uk/id/local-authority/00EU,NCS,Care Purchase - Mental Health Team 1,54230,CP-Domicil.External,440950,07-Dec-12,1900105835,4231,Independent Living Alliance,100726
WARRINGTON BOROUGH COUNCIL,http://statistics.data.gov.uk/id/local-authority/00EU,NCS,Care Purchase - Mental Health Team 1,54230,Supporting People - External,441250,07-Dec-12,1900105835,600,Independent Living Alliance,100726
WARRINGTON BOROUGH COUNCIL,http://statistics.data.gov.uk/id/local-authority/00EU,NCS,Care Purchase - Mental Health Team 1,54230,CP-Domicil.External,440950,07-Dec-12,1900105841,3325,Independent Living Alliance,100726
WARRINGTON BOROUGH COUNCIL,http://statistics.data.gov.uk/id/local-authority/00EU,NCS,Care Purchase - Learning Disability,54450,CP-Domicil.External,440950,07-Dec-12,1900105842,6196,Independent Living Alliance,100726
WARRINGTON BOROUGH COUNCIL,http://statistics.data.gov.uk/id/local-authority/00EU,NCS,Care Purchase - Mental Health Team 2,54240,CP-Domicil.External,440950,07-Dec-12,1900105848,1201,Independent Living Alliance,100726
WARRINGTON BOROUGH COUNCIL,http://statistics.data.gov.uk/id/local-authority/00EU,NCS,Care Purchase - Mental Health Team 3,54250,CP-Domicil.External,440950,07-Dec-12,1900105853,2538,Independent Living Alliance,100726
WARRINGTON BOROUGH COUNCIL,http://statistics.data.gov.uk/id/local-authority/00EU,NCS,Care Purchase - Mental Health Team 1,54230,CP-Domicil.External,440950,07-Dec-12,1900105854,1759,Independent Living Alliance,100726
WARRINGTON BOROUGH COUNCIL,http://statistics.data.gov.uk/id/local-authority/00EU,NCS,Care Purchase - Mental Health Team 1,54230,Supporting People - External,441250,07-Dec-12,1900105854,880,Independent Living Alliance,100726
WARRINGTON BOROUGH COUNCIL,http://statistics.data.gov.uk/id/local-authority/00EU,NCS,Care Purchase - Mental Health Team 1,54230,CP-Domicil.External,440950,07-Dec-12,1900105858,1552,Independent Living Alliance,100726
WARRINGTON BOROUGH COUNCIL,http://statistics.data.gov.uk/id/local-authority/00EU,NCS,Care Purchase - Mental Health Team 1,54230,Supporting People - External,441250,07-Dec-12,1900105858,880,Independent Living Alliance,100726
WARRINGTON BOROUGH COUNCIL,http://statistics.data.gov.uk/id/local-authority/00EU,NCS,Care Purchase - Mental Health Team 1,54230,CP-Domicil.External,440950,07-Dec-12,1900105859,518,Independent Living Alliance,100726
WARRINGTON BOROUGH COUNCIL,http://statistics.data.gov.uk/id/local-authority/00EU,NCS,Care Purchase - Mental Health Team 1,54230,CP-Domicil.External,440950,07-Dec-12,1900105866,1759,Independent Living Alliance,100726
WARRINGTON BOROUGH COUNCIL,http://statistics.data.gov.uk/id/local-authority/00EU,NCS,Care Purchase - Mental Health Team 1,54230,Supporting People - External,441250,07-Dec-12,1900105866,880,Independent Living Alliance,100726
WARRINGTON BOROUGH COUNCIL,http://statistics.data.gov.uk/id/local-authority/00EU,NCS,Care Purchase - Mental Health Team 1,54230,CP-Domicil.External,440950,07-Dec-12,1900105867,1863,Independent Living Alliance,100726
WARRINGTON BOROUGH COUNCIL,http://statistics.data.gov.uk/id/local-authority/00EU,NCS,Care Purchase - Mental Health Team 1,54230,Supporting People - External,441250,07-Dec-12,1900105867,880,Independent Living Alliance,100726
WARRINGTON BOROUGH COUNCIL,http://statistics.data.gov.uk/id/local-authority/00EU,NCS,Care Purchase - Mental Health Team 1,54230,CP-Domicil.External,440950,07-Dec-12,1900105869,1088,Independent Living Alliance,100726
WARRINGTON BOROUGH COUNCIL,http://statistics.data.gov.uk/id/local-authority/00EU,NCS,Care Purchase - Mental Health Team 1,54230,CP-Domicil.External,440950,07-Dec-12,1900105871,1036,Independent Living Alliance,100726
WARRINGTON BOROUGH COUNCIL,http://statistics.data.gov.uk/id/local-authority/00EU,NCS,Care Purchase - ABI,54260,CP-Domicil.External,440950,17-Dec-12,1900106920,1528,Independent Living Alliance,100726
WARRINGTON BOROUGH COUNCIL,http://statistics.data.gov.uk/id/local-authority/00EU,NCS,Care Purchase - Mental Health Team 1,54230,CP-Domicil.External,440950,18-Dec-12,1900107046,3996,Independent Living Alliance,100726
WARRINGTON BOROUGH COUNCIL,http://statistics.data.gov.uk/id/local-authority/00EU,NCS,Care Purchase - Mental Health Team 1,54230,Supporting People - External,441250,18-Dec-12,1900107046,1000,Independent Living Alliance,100726
WARRINGTON BOROUGH COUNCIL,http://statistics.data.gov.uk/id/local-authority/00EU,NCS,Care Purchase - Mental Health Team 1,54230,CP-Domicil.External,440950,21-Dec-12,1900107553,3449,Independent Living Alliance,100726
WARRINGTON BOROUGH COUNCIL,http://statistics.data.gov.uk/id/local-authority/00EU,NCS,Care Purchase - Mental Health Team 1,54230,CP-Domicil.External,440950,21-Dec-12,1900107560,518,Independent Living Alliance,100726
WARRINGTON BOROUGH COUNCIL,http://statistics.data.gov.uk/id/local-authority/00EU,NCS,Care Purchase - Mental Health Team 1,54230,CP-Domicil.External,440950,21-Dec-12,1900107562,3922,Independent Living Alliance,100726
WARRINGTON BOROUGH COUNCIL,http://statistics.data.gov.uk/id/local-authority/00EU,NCS,Care Purchase - Mental Health Team 1,54230,CP-Domicil.External,440950,21-Dec-12,1900107565,2922,Independent Living Alliance,100726
WARRINGTON BOROUGH COUNCIL,http://statistics.data.gov.uk/id/local-authority/00EU,NCS,Care Purchase - Mental Health Team 1,54230,Supporting People - External,441250,21-Dec-12,1900107565,1000,Independent Living Alliance,100726
WARRINGTON BOROUGH COUNCIL,http://statistics.data.gov.uk/id/local-authority/00EU,NCS,Care Purchase - Mental Health Team 1,54230,CP-Domicil.External,440950,21-Dec-12,1900107569,1552,Independent Living Alliance,100726
WARRINGTON BOROUGH COUNCIL,http://statistics.data.gov.uk/id/local-authority/00EU,NCS,Care Purchase - Mental Health Team 1,54230,Supporting People - External,441250,21-Dec-12,1900107569,880,Independent Living Alliance,100726
WARRINGTON BOROUGH COUNCIL,http://statistics.data.gov.uk/id/local-authority/00EU,NCS,Care Purchase - Mental Health Team 1,54230,CP-Domicil.External,440950,21-Dec-12,1900107571,1241,Independent Living Alliance,100726
WARRINGTON BOROUGH COUNCIL,http://statistics.data.gov.uk/id/local-authority/00EU,NCS,Care Purchase - Mental Health Team 1,54230,Supporting People - External,441250,21-Dec-12,1900107571,880,Independent Living Alliance,100726
WARRINGTON BOROUGH COUNCIL,http://statistics.data.gov.uk/id/local-authority/00EU,NCS,Care Purchase - Mental Health Team 3,54250,CP-Domicil.External,440950,21-Dec-12,1900107573,2554,Independent Living Alliance,100726
WARRINGTON BOROUGH COUNCIL,http://statistics.data.gov.uk/id/local-authority/00EU,NCS,Care Purchase - Learning Disability,54450,CP-Domicil.External,440950,21-Dec-12,1900107575,4538,Independent Living Alliance,100726
WARRINGTON BOROUGH COUNCIL,http://statistics.data.gov.uk/id/local-authority/00EU,NCS,Care Purchase - ABI,54260,CP-Domicil.External,440950,21-Dec-12,1900107576,1605,Independent Living Alliance,100726
WARRINGTON BOROUGH COUNCIL,http://statistics.data.gov.uk/id/local-authority/00EU,NCS,Care Purchase - Mental Health Team 2,54240,CP-Domicil.External,440950,21-Dec-12,1900107577,6044,Independent Living Alliance,100726
WARRINGTON BOROUGH COUNCIL,http://statistics.data.gov.uk/id/local-authority/00EU,NCS,Care Purchase - Mental Health Team 2,54240,Supporting People - External,441250,21-Dec-12,1900107577,600,Independent Living Alliance,100726
WARRINGTON BOROUGH COUNCIL,http://statistics.data.gov.uk/id/local-authority/00EU,NCS,Care Purchase - Mental Health Team 1,54230,CP-Domicil.External,440950,21-Dec-12,1900107578,3958,Independent Living Alliance,100726
WARRINGTON BOROUGH COUNCIL,http://statistics.data.gov.uk/id/local-authority/00EU,NCS,Care Purchase - Mental Health Team 1,54230,Supporting People - External,441250,21-Dec-12,1900107578,1000,Independent Living Alliance,100726
WARRINGTON BOROUGH COUNCIL,http://statistics.data.gov.uk/id/local-authority/00EU,NCS,Care Purchase - Mental Health Team 1,54230,CP-Domicil.External,440950,21-Dec-12,1900107579,2383,Independent Living Alliance,100726
WARRINGTON BOROUGH COUNCIL,http://statistics.data.gov.uk/id/local-authority/00EU,NCS,Care Purchase - PD,54440,CP-Domicil.External,440950,21-Dec-12,1900107580,2922,Independent Living Alliance,100726
WARRINGTON BOROUGH COUNCIL,http://statistics.data.gov.uk/id/local-authority/00EU,NCS,Care Purchase - PD,54440,Supporting People - External,441250,21-Dec-12,1900107580,1000,Independent Living Alliance,100726
WARRINGTON BOROUGH COUNCIL,http://statistics.data.gov.uk/id/local-authority/00EU,NCS,Supporting People Grant Payments,53260,People with Mental Health Problems,535200,11-Dec-12,1900106034,3814,Redacted Personal Data,100735
WARRINGTON BOROUGH COUNCIL,http://statistics.data.gov.uk/id/local-authority/00EU,CEX,Coroners Service,11100,Post Mortem Fees-Rep,440250,14-Dec-12,1900106808,892,Dr H Al Rawi,100745
WARRINGTON BOROUGH COUNCIL,http://statistics.data.gov.uk/id/local-authority/00EU,NCS,Supporting People Grant Payments,53260,Sheltd/Xtra Care Hsing and Comm Alarms,535050,11-Dec-12,1900106033,1156,St Vincents Housing Association,100756
WARRINGTON BOROUGH COUNCIL,http://statistics.data.gov.uk/id/local-authority/00EU,CEX,Coroners Service,11100,Post Mortem Fees-Rep,440250,13-Dec-12,1900106725,2090,Dr D Butterworth,100765
WARRINGTON BOROUGH COUNCIL,http://statistics.data.gov.uk/id/local-authority/00EU,NCS,Care Purchase - PD,54440,Direct Payments,552000,11-Dec-12,1900106138,851,Redacted Personal Data,100766
WARRINGTON BOROUGH COUNCIL,http://statistics.data.gov.uk/id/local-authority/00EU,NCS,Care Purchase - OP & OT Central,54420,CP-Domicil.External,440950,03-Dec-12,1900105594,904,Allied Healthcare Group Ltd,100796
WARRINGTON BOROUGH COUNCIL,http://statistics.data.gov.uk/id/local-authority/00EU,NCS,Care Purchase -OP & OT East,54430,CP-Domicil.External,440950,03-Dec-12,1900105594,1071,Allied Healthcare Group Ltd,100796
WARRINGTON BOROUGH COUNCIL,http://statistics.data.gov.uk/id/local-authority/00EU,NCS,Care Purchase - PD,54440,CP-Domicil.External,440950,05-Dec-12,1900105788,4258,Allied Healthcare Group Ltd,100796
WARRINGTON BOROUGH COUNCIL,http://statistics.data.gov.uk/id/local-authority/00EU,NCS,Care Purchase - PD,54440,Supporting People - External,441250,05-Dec-12,1900105788,718,Allied Healthcare Group Ltd,100796
WARRINGTON BOROUGH COUNCIL,http://statistics.data.gov.uk/id/local-authority/00EU,NCS,Care Purchase - PD,54440,CP-Domicil.External,440950,12-Dec-12,1900106610,561,Allied Healthcare Group Ltd,100796
WARRINGTON BOROUGH COUNCIL,http://statistics.data.gov.uk/id/local-authority/00EU,NCS,Care Purchase - OP & OT Central,54420,CP-Domicil.External,440950,12-Dec-12,1900106610,819,Allied Healthcare Group Ltd,100796
WARRINGTON BOROUGH COUNCIL,http://statistics.data.gov.uk/id/local-authority/00EU,NCS,Care Purchase -OP & OT East,54430,CP-Domicil.External,440950,12-Dec-12,1900106610,1047,Allied Healthcare Group Ltd,100796
WARRINGTON BOROUGH COUNCIL,http://statistics.data.gov.uk/id/local-authority/00EU,NCS,Care Purchase - PD,54440,CP-Domicil.External,440950,19-Dec-12,1900107358,563,Allied Healthcare Group Ltd,100796
WARRINGTON BOROUGH COUNCIL,http://statistics.data.gov.uk/id/local-authority/00EU,NCS,Care Purchase - OP & OT Central,54420,CP-Domicil.External,440950,19-Dec-12,1900107358,797,Allied Healthcare Group Ltd,100796
WARRINGTON BOROUGH COUNCIL,http://statistics.data.gov.uk/id/local-authority/00EU,NCS,Care Purchase -OP & OT East,54430,CP-Domicil.External,440950,19-Dec-12,1900107358,1109,Allied Healthcare Group Ltd,100796
WARRINGTON BOROUGH COUNCIL,http://statistics.data.gov.uk/id/local-authority/00EU,NCS,Care Purchase - OP & OT Central,54420,CP-Domicil.External,440950,19-Dec-12,1900107361,746,Allied Healthcare Group Ltd,100796
WARRINGTON BOROUGH COUNCIL,http://statistics.data.gov.uk/id/local-authority/00EU,NCS,Care Purchase -OP & OT East,54430,CP-Domicil.External,440950,19-Dec-12,1900107361,1099,Allied Healthcare Group Ltd,100796
WARRINGTON BOROUGH COUNCIL,http://statistics.data.gov.uk/id/local-authority/00EU,NCS,Care Purchase - PD,54440,Direct Payments,552000,11-Dec-12,1900106140,3059,Redacted Personal Data,100879
WARRINGTON BOROUGH COUNCIL,http://statistics.data.gov.uk/id/local-authority/00EU,NCS,Care Purchase - PD,54440,Direct Payments,552000,11-Dec-12,1900106141,1160,Redacted Personal Data,100890
WARRINGTON BOROUGH COUNCIL,http://statistics.data.gov.uk/id/local-authority/00EU,NCS,Care Purchase - OP & OT West,54470,CP-LongStayExternal,441150,18-Dec-12,1900107049,3496,Linear Park (Housing With Care),100897
WARRINGTON BOROUGH COUNCIL,http://statistics.data.gov.uk/id/local-authority/00EU,CYP,Primary,81001,ICT Comms - Equipment Purchase,450100,03-Dec-12,1900105607,871,Edac Solutions North West,100899
WARRINGTON BOROUGH COUNCIL,http://statistics.data.gov.uk/id/local-authority/00EU,NCS,Care Purchase - ABI,54260,CP-Domicil.External,440950,03-Dec-12,1900105634,3031,Creative Support Ltd,100902
WARRINGTON BOROUGH COUNCIL,http://statistics.data.gov.uk/id/local-authority/00EU,NCS,Care Purchase - PD,54440,CP-Domicil.External,440950,03-Dec-12,1900105634,14397,Creative Support Ltd,100902
WARRINGTON BOROUGH COUNCIL,http://statistics.data.gov.uk/id/local-authority/00EU,NCS,Care Purchase Budget,54490,Voids,515150,03-Dec-12,1900105634,3789,Creative Support Ltd,100902
WARRINGTON BOROUGH COUNCIL,http://statistics.data.gov.uk/id/local-authority/00EU,NCS,Care Purchase - Learning Disability,54450,CP-Domicil.External,440950,03-Dec-12,1900105636,506,Creative Support Ltd,100902
WARRINGTON BOROUGH COUNCIL,http://statistics.data.gov.uk/id/local-authority/00EU,NCS,Care Purchase - Learning Disability,54450,CP-Domicil.External,440950,03-Dec-12,1900105640,506,Creative Support Ltd,100902
WARRINGTON BOROUGH COUNCIL,http://statistics.data.gov.uk/id/local-authority/00EU,NCS,Care Purchase - PD,54440,CP-Domicil.External,440950,03-Dec-12,1900105640,1101,Creative Support Ltd,100902
WARRINGTON BOROUGH COUNCIL,http://statistics.data.gov.uk/id/local-authority/00EU,NCS,Care Purchase - ABI,54260,CP-Domicil.External,440950,03-Dec-12,1900105640,2985,Creative Support Ltd,100902
WARRINGTON BOROUGH COUNCIL,http://statistics.data.gov.uk/id/local-authority/00EU,NCS,Care Purchase - Learning Disability,54450,CP-Domicil.External,440950,03-Dec-12,1900105642,2298,Creative Support Ltd,100902
WARRINGTON BOROUGH COUNCIL,http://statistics.data.gov.uk/id/local-authority/00EU,NCS,Care Purchase - PD,54440,Supporting People - External,441250,03-Dec-12,1900105642,531,Creative Support Ltd,100902
WARRINGTON BOROUGH COUNCIL,http://statistics.data.gov.uk/id/local-authority/00EU,NCS,Care Purchase - Learning Disability,54450,Supporting People - External,441250,03-Dec-12,1900105642,4780,Creative Support Ltd,100902
WARRINGTON BOROUGH COUNCIL,http://statistics.data.gov.uk/id/local-authority/00EU,NCS,SLA - Grant Account,53920,Payment of Grants,470050,17-Dec-12,1900106885,17555,Creative Support Ltd,100902
WARRINGTON BOROUGH COUNCIL,http://statistics.data.gov.uk/id/local-authority/00EU,NCS,Care Purchase - Mental Health Team 1,54230,CP-Domicil.External,440950,21-Dec-12,1900107466,524,Creative Support Ltd,100902
WARRINGTON BOROUGH COUNCIL,http://statistics.data.gov.uk/id/local-authority/00EU,NCS,Care Purchase - Mental Health Team 2,54240,CP-Domicil.External,440950,21-Dec-12,1900107508,896,Creative Support Ltd,100902
WARRINGTON BOROUGH COUNCIL,http://statistics.data.gov.uk/id/local-authority/00EU,NCS,Care Purchase - Mental Health Team 1,54230,CP-Domicil.External,440950,21-Dec-12,1900107508,2609,Creative Support Ltd,100902
WARRINGTON BOROUGH COUNCIL,http://statistics.data.gov.uk/id/local-authority/00EU,NCS,Care Purchase - Learning Disability,54450,CP-Domicil.External,440950,21-Dec-12,1900107508,2612,Creative Support Ltd,100902
WARRINGTON BOROUGH COUNCIL,http://statistics.data.gov.uk/id/local-authority/00EU,NCS,Care Purchase - ABI,54260,CP-Domicil.External,440950,21-Dec-12,1900107508,3336,Creative Support Ltd,100902
WARRINGTON BOROUGH COUNCIL,http://statistics.data.gov.uk/id/local-authority/00EU,NCS,Care Purchase - ABI,54260,CP-Domicil.External,440950,21-Dec-12,1900107529,524,Creative Support Ltd,100902
WARRINGTON BOROUGH COUNCIL,http://statistics.data.gov.uk/id/local-authority/00EU,NCS,Care Purchase - Mental Health Team 3,54250,CP-Domicil.External,440950,21-Dec-12,1900107529,599,Creative Support Ltd,100902
WARRINGTON BOROUGH COUNCIL,http://statistics.data.gov.uk/id/local-authority/00EU,NCS,Care Purchase - Mental Health Team 1,54230,CP-Domicil.External,440950,21-Dec-12,1900107529,1048,Creative Support Ltd,100902
WARRINGTON BOROUGH COUNCIL,http://statistics.data.gov.uk/id/local-authority/00EU,NCS,Care Purchase - Learning Disability,54450,CP-Domicil.External,440950,21-Dec-12,1900107529,5693,Creative Support Ltd,100902
WARRINGTON BOROUGH COUNCIL,http://statistics.data.gov.uk/id/local-authority/00EU,NCS,Care Purchase Budget,54490,Voids,515150,21-Dec-12,1900107529,549,Creative Support Ltd,100902
WARRINGTON BOROUGH COUNCIL,http://statistics.data.gov.uk/id/local-authority/00EU,NCS,Care Purchase - Mental Health Team 1,54230,CP-Domicil.External,440950,21-Dec-12,1900107535,1048,Creative Support Ltd,100902
WARRINGTON BOROUGH COUNCIL,http://statistics.data.gov.uk/id/local-authority/00EU,NCS,Care Purchase - Learning Disability,54450,CP-Domicil.External,440950,21-Dec-12,1900107535,1947,Creative Support Ltd,100902
WARRINGTON BOROUGH COUNCIL,http://statistics.data.gov.uk/id/local-authority/00EU,NCS,Care Purchase Budget,54490,Voids,515150,21-Dec-12,1900107535,3737,Creative Support Ltd,100902
WARRINGTON BOROUGH COUNCIL,http://statistics.data.gov.uk/id/local-authority/00EU,NCS,Care Purchase - Mental Health Team 3,54250,CP-Domicil.External,440950,21-Dec-12,1900107555,524,Creative Support Ltd,100902
WARRINGTON BOROUGH COUNCIL,http://statistics.data.gov.uk/id/local-authority/00EU,NCS,Care Purchase - Mental Health Team 1,54230,CP-Domicil.External,440950,21-Dec-12,1900107555,1048,Creative Support Ltd,100902
WARRINGTON BOROUGH COUNCIL,http://statistics.data.gov.uk/id/local-authority/00EU,NCS,Care Purchase - Learning Disability,54450,CP-Domicil.External,440950,21-Dec-12,1900107555,3519,Creative Support Ltd,100902
WARRINGTON BOROUGH COUNCIL,http://statistics.data.gov.uk/id/local-authority/00EU,NCS,Care Purchase Budget,54490,Voids,515150,21-Dec-12,1900107555,1772,Creative Support Ltd,100902
WARRINGTON BOROUGH COUNCIL,http://statistics.data.gov.uk/id/local-authority/00EU,NCS,Care Purchase - Mental Health Team 3,54250,CP-Domicil.External,440950,21-Dec-12,1900107557,524,Creative Support Ltd,100902
WARRINGTON BOROUGH COUNCIL,http://statistics.data.gov.uk/id/local-authority/00EU,NCS,Care Purchase - Mental Health Team 1,54230,CP-Domicil.External,440950,21-Dec-12,1900107557,1048,Creative Support Ltd,100902
WARRINGTON BOROUGH COUNCIL,http://statistics.data.gov.uk/id/local-authority/00EU,NCS,Care Purchase - Learning Disability,54450,CP-Domicil.External,440950,21-Dec-12,1900107557,5864,Creative Support Ltd,100902
WARRINGTON BOROUGH COUNCIL,http://statistics.data.gov.uk/id/local-authority/00EU,NCS,Care Purchase Budget,54490,Voids,515150,21-Dec-12,1900107557,680,Creative Support Ltd,100902
WARRINGTON BOROUGH COUNCIL,http://statistics.data.gov.uk/id/local-authority/00EU,NCS,Care Purchase - PD,54440,CP-Domicil.External,440950,21-Dec-12,1900107558,1556,Creative Support Ltd,100902
WARRINGTON BOROUGH COUNCIL,http://statistics.data.gov.uk/id/local-authority/00EU,NCS,Care Purchase - PD,54440,Supporting People - External,441250,21-Dec-12,1900107558,5669,Creative Support Ltd,100902
WARRINGTON BOROUGH COUNCIL,http://statistics.data.gov.uk/id/local-authority/00EU,NCS,Care Purchase - Mental Health Team 2,54240,CP-Domicil.External,440950,21-Dec-12,1900107559,896,Creative Support Ltd,100902
WARRINGTON BOROUGH COUNCIL,http://statistics.data.gov.uk/id/local-authority/00EU,NCS,Care Purchase - Learning Disability,54450,CP-Domicil.External,440950,21-Dec-12,1900107559,2612,Creative Support Ltd,100902
WARRINGTON BOROUGH COUNCIL,http://statistics.data.gov.uk/id/local-authority/00EU,NCS,Care Purchase - ABI,54260,CP-Domicil.External,440950,21-Dec-12,1900107559,2955,Creative Support Ltd,100902
WARRINGTON BOROUGH COUNCIL,http://statistics.data.gov.uk/id/local-authority/00EU,NCS,Care Purchase - Mental Health Team 1,54230,CP-Domicil.External,440950,21-Dec-12,1900107559,3201,Creative Support Ltd,100902
WARRINGTON BOROUGH COUNCIL,http://statistics.data.gov.uk/id/local-authority/00EU,NCS,Care Purchase - PD,54440,CP-Domicil.External,440950,21-Dec-12,1900107561,1392,Creative Support Ltd,100902
WARRINGTON BOROUGH COUNCIL,http://statistics.data.gov.uk/id/local-authority/00EU,NCS,Care Purchase - Learning Disability,54450,CP-Domicil.External,440950,21-Dec-12,1900107563,506,Creative Support Ltd,100902
WARRINGTON BOROUGH COUNCIL,http://statistics.data.gov.uk/id/local-authority/00EU,NCS,Care Purchase - PD,54440,CP-Domicil.External,440950,21-Dec-12,1900107568,1202,Creative Support Ltd,100902
WARRINGTON BOROUGH COUNCIL,http://statistics.data.gov.uk/id/local-authority/00EU,NCS,Care Purchase - ABI,54260,CP-Domicil.External,440950,21-Dec-12,1900107568,2935,Creative Support Ltd,100902
WARRINGTON BOROUGH COUNCIL,http://statistics.data.gov.uk/id/local-authority/00EU,NCS,Care Purchase -OP & OT East,54430,Direct Payments,552000,11-Dec-12,1900106142,1142,Redacted Personal Data,100907
WARRINGTON BOROUGH COUNCIL,http://statistics.data.gov.uk/id/local-authority/00EU,CHL,Longfield Road,31311,Car Leasing Charges,350000,13-Dec-12,1700006070,1021,Arnold Clark Automobiles Ltd,100926
WARRINGTON BOROUGH COUNCIL,http://statistics.data.gov.uk/id/local-authority/00EU,NCS,Care Purchase - OP & OT South,54480,Direct Payments,552000,11-Dec-12,1900106144,661,Redacted Personal Data,100934
WARRINGTON BOROUGH COUNCIL,http://statistics.data.gov.uk/id/local-authority/00EU,NCS,Care Purchase - Learning Disability,54450,Direct Payments,552000,11-Dec-12,1900106145,1120,Redacted Personal Data,100945
WARRINGTON BOROUGH COUNCIL,http://statistics.data.gov.uk/id/local-authority/00EU,ER0,Postal & Courier Services,52130,Postages,450000,21-Dec-12,1900107554,2070,Logistex Express Ltd,100946
WARRINGTON BOROUGH COUNCIL,http://statistics.data.gov.uk/id/local-authority/00EU,NCS,Care Purchase - Learning Disability,54450,Direct Payments,552000,11-Dec-12,1900106146,2360,Redacted Personal Data,100954
WARRINGTON BOROUGH COUNCIL,http://statistics.data.gov.uk/id/local-authority/00EU,NCS,Care Purchase - Learning Disability,54450,Direct Payments,552000,11-Dec-12,1900106147,4579,Redacted Personal Data,100959
WARRINGTON BOROUGH COUNCIL,http://statistics.data.gov.uk/id/local-authority/00EU,NCS,Care Purchase - PD,54440,Direct Payments,552000,11-Dec-12,1900106148,1146,Redacted Personal Data,101007
WARRINGTON BOROUGH COUNCIL,http://statistics.data.gov.uk/id/local-authority/00EU,NCS,Care Purchase - ABI,54260,Direct Payments,552000,11-Dec-12,1900106149,2390,Redacted Personal Data,101016
WARRINGTON BOROUGH COUNCIL,http://statistics.data.gov.uk/id/local-authority/00EU,ER0,Quattro-New Town House Admin Building,43125,Rent Of Premises,220000,12-Dec-12,1900106586,6278,Goldmile Holdings Limited,101035
WARRINGTON BOROUGH COUNCIL,http://statistics.data.gov.uk/id/local-authority/00EU,ER0,Quattro-New Town House Admin Building,43125,Service Charges,220050,12-Dec-12,1900106587,3780,Goldmile Holdings Limited,101035
WARRINGTON BOROUGH COUNCIL,http://statistics.data.gov.uk/id/local-authority/00EU,ER0,Quattro-New Town House Admin Building,43125,Service Charges,220050,12-Dec-12,1900106588,4475,Goldmile Holdings Limited,101035
WARRINGTON BOROUGH COUNCIL,http://statistics.data.gov.uk/id/local-authority/00EU,ER0,Quattro-New Town House Admin Building,43125,Service Charges,220050,12-Dec-12,1900106589,29800,Goldmile Holdings Limited,101035
WARRINGTON BOROUGH COUNCIL,http://statistics.data.gov.uk/id/local-authority/00EU,ER0,Quattro-New Town House Admin Building,43125,Rent Of Premises,220000,12-Dec-12,1900106592,6454,Goldmile Holdings Limited,101035
WARRINGTON BOROUGH COUNCIL,http://statistics.data.gov.uk/id/local-authority/00EU,ER0,New Town House,43119,Rent Of Premises,220000,14-Dec-12,1900106830,146984,Goldmile Holdings Limited,101035
WARRINGTON BOROUGH COUNCIL,http://statistics.data.gov.uk/id/local-authority/00EU,ER0,New Town House,43119,Service Charges,220050,14-Dec-12,1900106831,56750,Goldmile Holdings Limited,101035
WARRINGTON BOROUGH COUNCIL,http://statistics.data.gov.uk/id/local-authority/00EU,ER0,Quattro-New Town House Admin Building,43125,Rent Of Premises,220000,17-Dec-12,1900106868,44413,Goldmile Holdings Limited,101035
WARRINGTON BOROUGH COUNCIL,http://statistics.data.gov.uk/id/local-authority/00EU,CHL,DSG Early Years PVI Settings,32417,Private & Voluntary 3 Year Olds,470100,18-Dec-12,1900107258,10458,The Lakes Nursery,101036
WARRINGTON BOROUGH COUNCIL,http://statistics.data.gov.uk/id/local-authority/00EU,ENP,Environment & Regeneration,82000,Consult.& Prof. Serv,440000,14-Dec-12,1900106857,1900,Aecom Limited,101037
WARRINGTON BOROUGH COUNCIL,http://statistics.data.gov.uk/id/local-authority/00EU,ENP,Environment & Regeneration,82000,Consult.& Prof. Serv,440000,14-Dec-12,1900106859,1900,Aecom Limited,101037
WARRINGTON BOROUGH COUNCIL,http://statistics.data.gov.uk/id/local-authority/00EU,NCS,Care Purchase - Learning Disability,54450,Direct Payments,552000,11-Dec-12,1900106151,1760,Redacted Personal Data,101045
WARRINGTON BOROUGH COUNCIL,http://statistics.data.gov.uk/id/local-authority/00EU,NCS,Care Purchase Budget,54490,CP ExternalOther Exp,440800,10-Dec-12,1900105946,7273,Ashberry Healthcare Ltd,101061
WARRINGTON BOROUGH COUNCIL,http://statistics.data.gov.uk/id/local-authority/00EU,NCS,Care Purchase Budget,54490,CP ExternalOther Exp,440800,12-Dec-12,1900106646,51000,Ashberry Healthcare Ltd,101061
WARRINGTON BOROUGH COUNCIL,http://statistics.data.gov.uk/id/local-authority/00EU,NCS,Care Purchase Budget,54490,CP ExternalOther Exp,440800,21-Dec-12,1900107499,6628,Ashberry Healthcare Ltd,101061
WARRINGTON BOROUGH COUNCIL,http://statistics.data.gov.uk/id/local-authority/00EU,CHL,DSG Independent School Fees,32011,Independent School Fees,490200,12-Dec-12,1900106114,26667,Nugent Care,101082
WARRINGTON BOROUGH COUNCIL,http://statistics.data.gov.uk/id/local-authority/00EU,NCS,Care Purchase - Learning Disability,54450,Direct Payments,552000,11-Dec-12,1900106153,2663,Redacted Personal Data,101096
WARRINGTON BOROUGH COUNCIL,http://statistics.data.gov.uk/id/local-authority/00EU,NCS,Care Purchase - Learning Disability,54450,Direct Payments,552000,11-Dec-12,1900106154,5546,Redacted Personal Data,101104
WARRINGTON BOROUGH COUNCIL,http://statistics.data.gov.uk/id/local-authority/00EU,NCS,Care Purchase - PD,54440,Direct Payments,552000,11-Dec-12,1900106156,849,Redacted Personal Data,101147
WARRINGTON BOROUGH COUNCIL,http://statistics.data.gov.uk/id/local-authority/00EU,CEX,Accountancy and Financial Planning,10100,Bank Charges,441650,13-Dec-12,1900106767,3867,Pcf,101158
WARRINGTON BOROUGH COUNCIL,http://statistics.data.gov.uk/id/local-authority/00EU,NCS,Care Purchase -OP & OT East,54430,Direct Payments,552000,11-Dec-12,1900106158,812,Redacted Personal Data,101174
WARRINGTON BOROUGH COUNCIL,http://statistics.data.gov.uk/id/local-authority/00EU,NCS,Care Purchase - Learning Disability,54450,CP Adult Placement,443450,19-Dec-12,1900107264,1496,Redacted Personal Data,101175
WARRINGTON BOROUGH COUNCIL,http://statistics.data.gov.uk/id/local-authority/00EU,NCS,Supporting People Grant Payments,53260,Sheltd/Xtra Care Hsing and Comm Alarms,535050,11-Dec-12,1900106038,2909,Warrington Housing Association,101208
WARRINGTON BOROUGH COUNCIL,http://statistics.data.gov.uk/id/local-authority/00EU,ENO,Housing Projects,82008,Disabled Persons Grant 1996,554000,13-Dec-12,1900106691,707,Warrington Housing Association,101208
WARRINGTON BOROUGH COUNCIL,http://statistics.data.gov.uk/id/local-authority/00EU,NCS,SLA - Grant Account,53920,Payment of Grants,470050,17-Dec-12,1900106884,31923,Warrington Housing Association,101208
WARRINGTON BOROUGH COUNCIL,http://statistics.data.gov.uk/id/local-authority/00EU,ENO,Housing Projects,82008,Disabled Persons Grant 1996,554000,21-Dec-12,1900107490,547,Warrington Housing Association,101208
WARRINGTON BOROUGH COUNCIL,http://statistics.data.gov.uk/id/local-authority/00EU,NCS,Care Purchase - Learning Disability,54450,CP-LongStayExternal,441150,21-Dec-12,1900107501,10471,Pendleton Care Limited,101213
WARRINGTON BOROUGH COUNCIL,http://statistics.data.gov.uk/id/local-authority/00EU,NCS,Care Purchase - Mental Health Team 2,54240,CP-Domicil.External,440950,18-Dec-12,1900106935,1923,Next Stage A Way Forward Ltd,101217
WARRINGTON BOROUGH COUNCIL,http://statistics.data.gov.uk/id/local-authority/00EU,NCS,Care Purchase - Mental Health Team 3,54250,CP-Domicil.External,440950,18-Dec-12,1900106937,1465,Next Stage A Way Forward Ltd,101217
WARRINGTON BOROUGH COUNCIL,http://statistics.data.gov.uk/id/local-authority/00EU,NCS,Care Purchase - Mental Health Team 2,54240,CP-LongStayExternal,441150,18-Dec-12,1900106938,1282,Next Stage A Way Forward Ltd,101217
WARRINGTON BOROUGH COUNCIL,http://statistics.data.gov.uk/id/local-authority/00EU,NCS,Care Purchase - Mental Health Team 2,54240,CP-Domicil.External,440950,18-Dec-12,1900106939,1465,Next Stage A Way Forward Ltd,101217
WARRINGTON BOROUGH COUNCIL,http://statistics.data.gov.uk/id/local-authority/00EU,NCS,Care Purchase - Mental Health Team 2,54240,CP-Domicil.External,440950,18-Dec-12,1900106940,961,Next Stage A Way Forward Ltd,101217
WARRINGTON BOROUGH COUNCIL,http://statistics.data.gov.uk/id/local-authority/00EU,NCS,Care Purchase - Mental Health Team 2,54240,CP-Domicil.External,440950,18-Dec-12,1900106941,824,Next Stage A Way Forward Ltd,101217
WARRINGTON BOROUGH COUNCIL,http://statistics.data.gov.uk/id/local-authority/00EU,NCS,Care Purchase - Mental Health Team 2,54240,CP-Domicil.External,440950,18-Dec-12,1900106942,1282,Next Stage A Way Forward Ltd,101217
WARRINGTON BOROUGH COUNCIL,http://statistics.data.gov.uk/id/local-authority/00EU,NCS,Care Purchase - Mental Health Team 2,54240,CP-Domicil.External,440950,18-Dec-12,1900106943,1923,Next Stage A Way Forward Ltd,101217
WARRINGTON BOROUGH COUNCIL,http://statistics.data.gov.uk/id/local-authority/00EU,NCS,Care Purchase - Mental Health Team 3,54250,CP-Domicil.External,440950,18-Dec-12,1900106944,1190,Next Stage A Way Forward Ltd,101217
WARRINGTON BOROUGH COUNCIL,http://statistics.data.gov.uk/id/local-authority/00EU,NCS,Care Purchase - Mental Health Team 3,54250,CP-Domicil.External,440950,18-Dec-12,1900106945,1190,Next Stage A Way Forward Ltd,101217
WARRINGTON BOROUGH COUNCIL,http://statistics.data.gov.uk/id/local-authority/00EU,NCS,Care Purchase - Mental Health Team 2,54240,CP-Domicil.External,440950,18-Dec-12,1900106946,1465,Next Stage A Way Forward Ltd,101217
WARRINGTON BOROUGH COUNCIL,http://statistics.data.gov.uk/id/local-authority/00EU,NCS,Care Purchase - Mental Health Team 3,54250,CP-Domicil.External,440950,18-Dec-12,1900106979,1190,Next Stage A Way Forward Ltd,101217
WARRINGTON BOROUGH COUNCIL,http://statistics.data.gov.uk/id/local-authority/00EU,NCS,Care Purchase - Mental Health Team 3,54250,CP-Domicil.External,440950,18-Dec-12,1900106996,1465,Next Stage A Way Forward Ltd,101217
WARRINGTON BOROUGH COUNCIL,http://statistics.data.gov.uk/id/local-authority/00EU,NCS,Care Purchase - Mental Health Team 1,54230,CP-Domicil.External,440950,19-Dec-12,1900107330,1099,Next Stage A Way Forward Ltd,101217
WARRINGTON BOROUGH COUNCIL,http://statistics.data.gov.uk/id/local-authority/00EU,CEX,Coroners Service,11100,Post Mortem Fees-Rep,440250,14-Dec-12,1900106777,1493,Dr Jackie Elder,101240
WARRINGTON BOROUGH COUNCIL,http://statistics.data.gov.uk/id/local-authority/00EU,NCS,Care Purchase - Learning Disability,54450,Direct Payments,552000,11-Dec-12,1900106163,2815,Redacted Personal Data,101246
WARRINGTON BOROUGH COUNCIL,http://statistics.data.gov.uk/id/local-authority/00EU,NCS,Care Purchase - Learning Disability,54450,Direct Payments,552000,11-Dec-12,1900106164,520,Redacted Personal Data,101261
WARRINGTON BOROUGH COUNCIL,http://statistics.data.gov.uk/id/local-authority/00EU,NCS,Care Purchase - PD,54440,Direct Payments,552000,11-Dec-12,1900106165,3595,Redacted Personal Data,101276
WARRINGTON BOROUGH COUNCIL,http://statistics.data.gov.uk/id/local-authority/00EU,NCS,Care Purchase - Learning Disability,54450,Direct Payments,552000,11-Dec-12,1900106166,2177,Redacted Personal Data,101310
WARRINGTON BOROUGH COUNCIL,http://statistics.data.gov.uk/id/local-authority/00EU,CHL,Child Disability,32212,Direct Payments,552000,11-Dec-12,1900106167,666,Redacted Personal Data,101322
WARRINGTON BOROUGH COUNCIL,http://statistics.data.gov.uk/id/local-authority/00EU,NCS,Care Purchase - PD,54440,Direct Payments,552000,11-Dec-12,1900106169,2328,Redacted Personal Data,101335
WARRINGTON BOROUGH COUNCIL,http://statistics.data.gov.uk/id/local-authority/00EU,NCS,Care Purchase - PD,54440,Direct Payments,552000,11-Dec-12,1900106170,939,Redacted Personal Data,101336
WARRINGTON BOROUGH COUNCIL,http://statistics.data.gov.uk/id/local-authority/00EU,NCS,Care Purchase - Learning Disability,54450,Direct Payments,552000,11-Dec-12,1900106171,4063,Redacted Personal Data,101341
WARRINGTON BOROUGH COUNCIL,http://statistics.data.gov.uk/id/local-authority/00EU,NCS,Care Purchase - PD,54440,Direct Payments,552000,11-Dec-12,1900106172,1231,Redacted Personal Data,101354
WARRINGTON BOROUGH COUNCIL,http://statistics.data.gov.uk/id/local-authority/00EU,CHL,DSG Early Years PVI Settings,32417,Private & Voluntary 4 Year Olds,470150,18-Dec-12,1900107116,1673,Birch Grove Day Nursery Ltd,101367
WARRINGTON BOROUGH COUNCIL,http://statistics.data.gov.uk/id/local-authority/00EU,CHL,DSG Early Years PVI Settings,32417,Private & Voluntary 3 Year Olds,470100,18-Dec-12,1900107187,1504,Birch Grove Day Nursery Ltd,101367
WARRINGTON BOROUGH COUNCIL,http://statistics.data.gov.uk/id/local-authority/00EU,NCS,Intermediate Care at Home,54520,Car Leasing Charges,350000,10-Dec-12,1900105935,2176,Lombard Vehicle Management,101395
WARRINGTON BOROUGH COUNCIL,http://statistics.data.gov.uk/id/local-authority/00EU,NCS,Care Purchase - Learning Disability,54450,Direct Payments,552000,11-Dec-12,1900106173,800,Redacted Personal Data,101396
WARRINGTON BOROUGH COUNCIL,http://statistics.data.gov.uk/id/local-authority/00EU,CHL,Child Disability,32212,Direct Payments,552000,11-Dec-12,1900106174,984,Redacted Personal Data,101407
WARRINGTON BOROUGH COUNCIL,http://statistics.data.gov.uk/id/local-authority/00EU,NCS,Care Purchase - Learning Disability,54450,Direct Payments,552000,11-Dec-12,1900106175,1370,Redacted Personal Data,101420
WARRINGTON BOROUGH COUNCIL,http://statistics.data.gov.uk/id/local-authority/00EU,NCS,Care Purchase - PD,54440,Supporting People - External,441250,11-Dec-12,1900106176,637,Redacted Personal Data,101431
WARRINGTON BOROUGH COUNCIL,http://statistics.data.gov.uk/id/local-authority/00EU,NCS,Care Purchase - PD,54440,Direct Payments,552000,11-Dec-12,1900106176,764,Redacted Personal Data,101431
WARRINGTON BOROUGH COUNCIL,http://statistics.data.gov.uk/id/local-authority/00EU,NCS,Care Purchase - PD,54440,Direct Payments,552000,11-Dec-12,1900106177,680,Redacted Personal Data,101444
WARRINGTON BOROUGH COUNCIL,http://statistics.data.gov.uk/id/local-authority/00EU,ER0,Postal & Courier Services,52130,Postages,450000,07-Dec-12,1900105877,720,Royal Mail,101445
WARRINGTON BOROUGH COUNCIL,http://statistics.data.gov.uk/id/local-authority/00EU,ER0,Postal & Courier Services,52130,Postages,450000,21-Dec-12,1900107556,1079,Royal Mail,101445
WARRINGTON BOROUGH COUNCIL,http://statistics.data.gov.uk/id/local-authority/00EU,CEX,HR Advisory,20005,Legal Costs Incurred,440200,14-Dec-12,1900106826,576,Weightmans Office AC,101452
WARRINGTON BOROUGH COUNCIL,http://statistics.data.gov.uk/id/local-authority/00EU,CEX,Council Tax & Recovery,10320,Consult.& Prof. Serv,440000,14-Dec-12,1900106828,664,Weightmans Office AC,101452
WARRINGTON BOROUGH COUNCIL,http://statistics.data.gov.uk/id/local-authority/00EU,NCS,Care Purchase - Learning Disability,54450,CP - Cont Care - External,441350,11-Dec-12,1900106178,10824,Redacted Personal Data,101463
WARRINGTON BOROUGH COUNCIL,http://statistics.data.gov.uk/id/local-authority/00EU,NCS,Care Purchase - Learning Disability,54450,Direct Payments,552000,11-Dec-12,1900106180,4802,Redacted Personal Data,101472
WARRINGTON BOROUGH COUNCIL,http://statistics.data.gov.uk/id/local-authority/00EU,NCS,Care Purchase Budget,54490,CP ExternalOther Exp,440800,10-Dec-12,1900105937,5156,St Marys Care Centre,101503
WARRINGTON BOROUGH COUNCIL,http://statistics.data.gov.uk/id/local-authority/00EU,NCS,Care Purchase Budget,54490,CP ExternalOther Exp,440800,12-Dec-12,1900106595,32000,St Marys Care Centre,101503
WARRINGTON BOROUGH COUNCIL,http://statistics.data.gov.uk/id/local-authority/00EU,NCS,Care Purchase - OP & OT West,54470,CP-Nursing Care-External,441200,17-Dec-12,1900106902,3960,St Marys Care Centre,101503
WARRINGTON BOROUGH COUNCIL,http://statistics.data.gov.uk/id/local-authority/00EU,NCS,Care Purchase - ABI,54260,CP-Nursing Care-External,441200,18-Dec-12,1900107005,5000,St Marys Care Centre,101503
WARRINGTON BOROUGH COUNCIL,http://statistics.data.gov.uk/id/local-authority/00EU,NCS,Care Purchase - Learning Disability,54450,Direct Payments,552000,11-Dec-12,1900106182,1019,Redacted Personal Data,101515
WARRINGTON BOROUGH COUNCIL,http://statistics.data.gov.uk/id/local-authority/00EU,NCS,Care Purchase - Learning Disability,54450,Direct Payments,552000,11-Dec-12,1900106183,1513,Redacted Personal Data,101516
WARRINGTON BOROUGH COUNCIL,http://statistics.data.gov.uk/id/local-authority/00EU,NCS,Care Purchase - Learning Disability,54450,CP-Day Care-External,441100,19-Dec-12,1900107306,1904,The Together Trust,101518
WARRINGTON BOROUGH COUNCIL,http://statistics.data.gov.uk/id/local-authority/00EU,NCS,Care Purchase - Learning Disability,54450,CP-Day Care-External,441100,19-Dec-12,1900107308,2011,The Together Trust,101518
WARRINGTON BOROUGH COUNCIL,http://statistics.data.gov.uk/id/local-authority/00EU,NCS,Care Purchase - Learning Disability,54450,CP-Day Care-External,441100,19-Dec-12,1900107310,2045,The Together Trust,101518
WARRINGTON BOROUGH COUNCIL,http://statistics.data.gov.uk/id/local-authority/00EU,NCS,Care Purchase - Learning Disability,54450,CP-Day Care-External,441100,19-Dec-12,1900107311,2179,The Together Trust,101518
WARRINGTON BOROUGH COUNCIL,http://statistics.data.gov.uk/id/local-authority/00EU,NCS,Care Purchase - Learning Disability,54450,CP-Day Care-External,441100,19-Dec-12,1900107313,2915,The Together Trust,101518
WARRINGTON BOROUGH COUNCIL,http://statistics.data.gov.uk/id/local-authority/00EU,NCS,Care Purchase - PD,54440,Direct Payments,552000,11-Dec-12,1900106184,2622,Redacted Personal Data,101528
WARRINGTON BOROUGH COUNCIL,http://statistics.data.gov.uk/id/local-authority/00EU,NCS,Care Purchase - PD,54440,Direct Payments,552000,11-Dec-12,1900106186,859,Redacted Personal Data,101541
WARRINGTON BOROUGH COUNCIL,http://statistics.data.gov.uk/id/local-authority/00EU,NCS,Care Purchase - ABI,54260,Direct Payments,552000,11-Dec-12,1900106187,849,Redacted Personal Data,101542
WARRINGTON BOROUGH COUNCIL,http://statistics.data.gov.uk/id/local-authority/00EU,NCS,Care Purchase - Learning Disability,54450,Direct Payments,552000,11-Dec-12,1900106188,764,Redacted Personal Data,101547
WARRINGTON BOROUGH COUNCIL,http://statistics.data.gov.uk/id/local-authority/00EU,NCS,Care Purchase - Learning Disability,54450,CP - Cont Care - External,441350,11-Dec-12,1900106189,1542,Redacted Personal Data,101551
WARRINGTON BOROUGH COUNCIL,http://statistics.data.gov.uk/id/local-authority/00EU,NCS,Care Purchase - Learning Disability,54450,Direct Payments,552000,11-Dec-12,1900106189,1542,Redacted Personal Data,101551
WARRINGTON BOROUGH COUNCIL,http://statistics.data.gov.uk/id/local-authority/00EU,NCS,Care Purchase - PD,54440,Direct Payments,552000,11-Dec-12,1900106191,679,Redacted Personal Data,101558
WARRINGTON BOROUGH COUNCIL,http://statistics.data.gov.uk/id/local-authority/00EU,NCS,Care Purchase - Learning Disability,54450,Direct Payments,552000,11-Dec-12,1900106192,2462,Redacted Personal Data,101568
WARRINGTON BOROUGH COUNCIL,http://statistics.data.gov.uk/id/local-authority/00EU,NCS,Care Purchase - Learning Disability,54450,Direct Payments,552000,11-Dec-12,1900106193,1698,Redacted Personal Data,101584
WARRINGTON BOROUGH COUNCIL,http://statistics.data.gov.uk/id/local-authority/00EU,NCS,Care Purchase - OP & OT West,54470,Direct Payments,552000,11-Dec-12,1900106194,856,Redacted Personal Data,101592
WARRINGTON BOROUGH COUNCIL,http://statistics.data.gov.uk/id/local-authority/00EU,CHL,Child Disability,32212,Direct Payments,552000,11-Dec-12,1900106195,665,Redacted Personal Data,101595
WARRINGTON BOROUGH COUNCIL,http://statistics.data.gov.uk/id/local-authority/00EU,NCS,Care Purchase - Learning Disability,54450,Direct Payments,552000,11-Dec-12,1900106196,1237,Redacted Personal Data,101614
WARRINGTON BOROUGH COUNCIL,http://statistics.data.gov.uk/id/local-authority/00EU,NCS,Care Purchase - Learning Disability,54450,Direct Payments,552000,11-Dec-12,1900106197,1237,Redacted Personal Data,101619
WARRINGTON BOROUGH COUNCIL,http://statistics.data.gov.uk/id/local-authority/00EU,NCS,Care Purchase - Learning Disability,54450,Direct Payments,552000,11-Dec-12,1900106198,1019,Redacted Personal Data,101625
WARRINGTON BOROUGH COUNCIL,http://statistics.data.gov.uk/id/local-authority/00EU,CHL,Child Disability,32212,CP - Cont Care - External,441350,11-Dec-12,1900106200,580,Redacted Personal Data,101630
WARRINGTON BOROUGH COUNCIL,http://statistics.data.gov.uk/id/local-authority/00EU,CHL,Child Disability,32212,Direct Payments,552000,11-Dec-12,1900106200,580,Redacted Personal Data,101630
WARRINGTON BOROUGH COUNCIL,http://statistics.data.gov.uk/id/local-authority/00EU,NCS,Care Purchase - OP & OT West,54470,CP-LongStayExternal,441150,05-Dec-12,1900105736,12348,Griffin Care Ltd,101672
WARRINGTON BOROUGH COUNCIL,http://statistics.data.gov.uk/id/local-authority/00EU,NCS,Care Purchase - OP & OT West,54470,CP-LongStayExternal,441150,05-Dec-12,1900105737,12348,Griffin Care Ltd,101672
WARRINGTON BOROUGH COUNCIL,http://statistics.data.gov.uk/id/local-authority/00EU,NCS,Care Purchase - PD,54440,Direct Payments,552000,11-Dec-12,1900106203,560,Redacted Personal Data,101677
WARRINGTON BOROUGH COUNCIL,http://statistics.data.gov.uk/id/local-authority/00EU,NCS,Supporting People Grant Payments,53260,Sheltd/Xtra Care Hsing and Comm Alarms,535050,11-Dec-12,1900106028,14950,Frontis Homes,101685
WARRINGTON BOROUGH COUNCIL,http://statistics.data.gov.uk/id/local-authority/00EU,NCS,Care Purchase - Learning Disability,54450,Direct Payments,552000,11-Dec-12,1900106204,880,Redacted Personal Data,101686
WARRINGTON BOROUGH COUNCIL,http://statistics.data.gov.uk/id/local-authority/00EU,NCS,Care Purchase - Learning Disability,54450,Direct Payments,552000,11-Dec-12,1900106205,3533,Redacted Personal Data,101701
WARRINGTON BOROUGH COUNCIL,http://statistics.data.gov.uk/id/local-authority/00EU,NCS,Care Purchase - Learning Disability,54450,Direct Payments,552000,11-Dec-12,1900106206,3533,Redacted Personal Data,101704
WARRINGTON BOROUGH COUNCIL,http://statistics.data.gov.uk/id/local-authority/00EU,CEX,Coroners Service,11100,Removal Bodies & Exc,440350,03-Dec-12,1900105650,874,Crewe Funeral Services,101724
WARRINGTON BOROUGH COUNCIL,http://statistics.data.gov.uk/id/local-authority/00EU,NCS,Care Purchase - Learning Disability,54450,Direct Payments,552000,11-Dec-12,1900106208,1347,Redacted Personal Data,101730
WARRINGTON BOROUGH COUNCIL,http://statistics.data.gov.uk/id/local-authority/00EU,ER0,Estates & Valuation,43520,Agency Supply - GF,180000,18-Dec-12,1900106968,956,Judd Farris Property Recruitment,101741
WARRINGTON BOROUGH COUNCIL,http://statistics.data.gov.uk/id/local-authority/00EU,ER0,Estates & Valuation,43520,Agency Supply - GF,180000,18-Dec-12,1900106969,1034,Judd Farris Property Recruitment,101741
WARRINGTON BOROUGH COUNCIL,http://statistics.data.gov.uk/id/local-authority/00EU,ER0,Estates & Valuation,43520,Agency Supply - GF,180000,18-Dec-12,1900106980,995,Judd Farris Property Recruitment,101741
WARRINGTON BOROUGH COUNCIL,http://statistics.data.gov.uk/id/local-authority/00EU,ER0,Estates & Valuation,43520,Agency Supply - GF,180000,18-Dec-12,1900106983,552,Judd Farris Property Recruitment,101741
WARRINGTON BOROUGH COUNCIL,http://statistics.data.gov.uk/id/local-authority/00EU,NCS,Care Purchase Budget,54490,CP ExternalOther Exp,440800,10-Dec-12,1900105944,1654,Wcl - Heathside Mews,101742
WARRINGTON BOROUGH COUNCIL,http://statistics.data.gov.uk/id/local-authority/00EU,NCS,Care Purchase Budget,54490,CP ExternalOther Exp,440800,12-Dec-12,1900106590,40000,Wcl - Heathside Mews,101742
WARRINGTON BOROUGH COUNCIL,http://statistics.data.gov.uk/id/local-authority/00EU,NCS,Care Purchase - Learning Disability,54450,Direct Payments,552000,11-Dec-12,1900106209,599,Redacted Personal Data,101748
WARRINGTON BOROUGH COUNCIL,http://statistics.data.gov.uk/id/local-authority/00EU,NCS,Care Purchase - PD,54440,Direct Payments,552000,11-Dec-12,1900106210,679,Redacted Personal Data,101752
WARRINGTON BOROUGH COUNCIL,http://statistics.data.gov.uk/id/local-authority/00EU,CHL,Child Disability,32212,Direct Payments,552000,11-Dec-12,1900106211,1002,Redacted Personal Data,101758
WARRINGTON BOROUGH COUNCIL,http://statistics.data.gov.uk/id/local-authority/00EU,NCS,Care Purchase - Learning Disability,54450,Direct Payments,552000,11-Dec-12,1900106212,509,Redacted Personal Data,101759
WARRINGTON BOROUGH COUNCIL,http://statistics.data.gov.uk/id/local-authority/00EU,NCS,Care Purchase - OP & OT West,54470,CP-Domicil.External,440950,21-Dec-12,1900107590,3746,Homelife Leeds Ltd,101794
WARRINGTON BOROUGH COUNCIL,http://statistics.data.gov.uk/id/local-authority/00EU,NCS,Care Purchase - OP & OT West,54470,CP-Domicil.External,440950,21-Dec-12,1900107591,3746,Homelife Leeds Ltd,101794
WARRINGTON BOROUGH COUNCIL,http://statistics.data.gov.uk/id/local-authority/00EU,NCS,Care Purchase - Mental Health Team 2,54240,Direct Payments,552000,11-Dec-12,1900106213,1949,Redacted Personal Data,101808
WARRINGTON BOROUGH COUNCIL,http://statistics.data.gov.uk/id/local-authority/00EU,NCS,Care Purchase - PD,54440,CP-Nursing Care-External,441200,18-Dec-12,1900107056,4136,Abbey Lawns Care Home Ltd,101816
WARRINGTON BOROUGH COUNCIL,http://statistics.data.gov.uk/id/local-authority/00EU,NCS,Care Purchase - Learning Disability,54450,CP-Domicil.External,440950,21-Dec-12,1900107587,687,Progress Adult Services Ltd,101817
WARRINGTON BOROUGH COUNCIL,http://statistics.data.gov.uk/id/local-authority/00EU,NCS,Care Purchase - Learning Disability,54450,CP-LongStayExternal,441150,21-Dec-12,1900107587,11238,Progress Adult Services Ltd,101817
WARRINGTON BOROUGH COUNCIL,http://statistics.data.gov.uk/id/local-authority/00EU,NCS,Care Purchase - Learning Disability,54450,CP-LongStayExternal,441150,21-Dec-12,1900107588,11238,Progress Adult Services Ltd,101817
WARRINGTON BOROUGH COUNCIL,http://statistics.data.gov.uk/id/local-authority/00EU,NCS,Care Purchase - OP & OT South,54480,Direct Payments,552000,11-Dec-12,1900106214,912,Redacted Personal Data,101825
WARRINGTON BOROUGH COUNCIL,http://statistics.data.gov.uk/id/local-authority/00EU,NCS,Care Purchase - OP & OT Central,54420,CP-Nursing Care-External,441200,19-Dec-12,1900107312,1695,Meridian Healthcare Ltd,101845
WARRINGTON BOROUGH COUNCIL,http://statistics.data.gov.uk/id/local-authority/00EU,NCS,Care Purchase - OP & OT South,54480,CP-Nursing Care-External,441200,19-Dec-12,1900107314,1965,Meridian Healthcare Ltd,101845
WARRINGTON BOROUGH COUNCIL,http://statistics.data.gov.uk/id/local-authority/00EU,NCS,Care Purchase - OP & OT South,54480,CP-LongStayExternal,441150,19-Dec-12,1900107316,1507,Meridian Healthcare Ltd,101845
WARRINGTON BOROUGH COUNCIL,http://statistics.data.gov.uk/id/local-authority/00EU,CHL,Child Disability,32212,Direct Payments,552000,11-Dec-12,1900106216,1278,Redacted Personal Data,101849
WARRINGTON BOROUGH COUNCIL,http://statistics.data.gov.uk/id/local-authority/00EU,NCS,Care Purchase -OP & OT East,54430,CP-LongStayExternal,441150,21-Dec-12,1900107510,1516,Mayfield House Care Home Ltd,101862
WARRINGTON BOROUGH COUNCIL,http://statistics.data.gov.uk/id/local-authority/00EU,CHL,Special Schools Transport,33208,Warrington BC Schools Transport,300700,05-Dec-12,1900105766,2200,Direct Taxis,101873
WARRINGTON BOROUGH COUNCIL,http://statistics.data.gov.uk/id/local-authority/00EU,CHL,Special Schools Transport,33208,Independent School Transport,301550,05-Dec-12,1900105773,2310,Direct Taxis,101873
WARRINGTON BOROUGH COUNCIL,http://statistics.data.gov.uk/id/local-authority/00EU,HOL,Single Billing Holding Account,91130,Electricity,210000,12-Dec-12,1900106683,3056,Npower Electricity,101884
WARRINGTON BOROUGH COUNCIL,http://statistics.data.gov.uk/id/local-authority/00EU,HOL,Single Billing Holding Account,91130,Electricity,210000,12-Dec-12,1900106683,39776,Npower Electricity,101884
WARRINGTON BOROUGH COUNCIL,http://statistics.data.gov.uk/id/local-authority/00EU,HOL,Single Billing Holding Account,91130,Electricity,210000,12-Dec-12,1900106684,57840,Npower Electricity,101884
WARRINGTON BOROUGH COUNCIL,http://statistics.data.gov.uk/id/local-authority/00EU,HOL,Single Billing Holding Account,91130,Electricity,210000,14-Dec-12,1900106800,2446,Npower Electricity,101884
WARRINGTON BOROUGH COUNCIL,http://statistics.data.gov.uk/id/local-authority/00EU,HOL,Single Billing Holding Account,91130,Electricity,210000,14-Dec-12,1900106800,38947,Npower Electricity,101884
WARRINGTON BOROUGH COUNCIL,http://statistics.data.gov.uk/id/local-authority/00EU,HOL,Single Billing Holding Account,91130,Electricity,210000,21-Dec-12,1900107518,100553,Npower Electricity,101884
WARRINGTON BOROUGH COUNCIL,http://statistics.data.gov.uk/id/local-authority/00EU,HOL,Single Billing Holding Account,91130,Electricity,210000,21-Dec-12,1900107519,44294,Npower Electricity,101884
WARRINGTON BOROUGH COUNCIL,http://statistics.data.gov.uk/id/local-authority/00EU,HOL,Single Billing Holding Account,91130,Electricity,210000,21-Dec-12,1900107520,69999,Npower Electricity,101884
WARRINGTON BOROUGH COUNCIL,http://statistics.data.gov.uk/id/local-authority/00EU,NCS,Care Purchase - OP & OT Central,54420,CP-Domicil.External,440950,03-Dec-12,1900105611,750,Dh Homecare,101961
WARRINGTON BOROUGH COUNCIL,http://statistics.data.gov.uk/id/local-authority/00EU,NCS,Care Purchase - PD,54440,CP-Domicil.External,440950,03-Dec-12,1900105611,3329,Dh Homecare,101961
WARRINGTON BOROUGH COUNCIL,http://statistics.data.gov.uk/id/local-authority/00EU,NCS,Care Purchase - OP & OT South,54480,CP-Domicil.External,440950,03-Dec-12,1900105611,18794,Dh Homecare,101961
WARRINGTON BOROUGH COUNCIL,http://statistics.data.gov.uk/id/local-authority/00EU,HOL,Single Billing Holding Account,91130,Agency Supply - GF,180000,12-Dec-12,1900106663,42747,Comensura,102009
WARRINGTON BOROUGH COUNCIL,http://statistics.data.gov.uk/id/local-authority/00EU,HOL,Single Billing Holding Account,91130,Agency Supply - GF,180000,12-Dec-12,1900106665,37985,Comensura,102009
WARRINGTON BOROUGH COUNCIL,http://statistics.data.gov.uk/id/local-authority/00EU,HOL,Single Billing Holding Account,91130,Agency Supply - GF,180000,20-Dec-12,1900107429,37839,Comensura,102009
WARRINGTON BOROUGH COUNCIL,http://statistics.data.gov.uk/id/local-authority/00EU,NCS,Care Purchase - PD,54440,Direct Payments,552000,11-Dec-12,1900106219,652,Redacted Personal Data,102010
WARRINGTON BOROUGH COUNCIL,http://statistics.data.gov.uk/id/local-authority/00EU,NCS,Care Purchase - OP & OT West,54470,CP-LongStayExternal,441150,18-Dec-12,1900107083,1660,Manor Park Care Home,102013
WARRINGTON BOROUGH COUNCIL,http://statistics.data.gov.uk/id/local-authority/00EU,NCS,Care Purchase - OP & OT South,54480,CP-LongStayExternal,441150,12-Dec-12,1900106599,1300,Bondcare (Spinney),102023
WARRINGTON BOROUGH COUNCIL,http://statistics.data.gov.uk/id/local-authority/00EU,NCS,Care Purchase - OP & OT South,54480,CP-LongStayExternal,441150,12-Dec-12,1900106600,1300,Bondcare (Spinney),102023
WARRINGTON BOROUGH COUNCIL,http://statistics.data.gov.uk/id/local-authority/00EU,NCS,Care Purchase - OP & OT South,54480,CP-LongStayExternal,441150,21-Dec-12,1900107503,1300,Bondcare (Spinney),102023
WARRINGTON BOROUGH COUNCIL,http://statistics.data.gov.uk/id/local-authority/00EU,ENO,Housing Projects,82008,Disabled Persons Grant 1996,554000,21-Dec-12,1900107493,3193,Redacted Personal Data,102051
WARRINGTON BOROUGH COUNCIL,http://statistics.data.gov.uk/id/local-authority/00EU,HOL,Insurance Fund,91100,CP Adult Placement,443450,10-Dec-12,1900106015,1371,Aon Ltd,102117
WARRINGTON BOROUGH COUNCIL,http://statistics.data.gov.uk/id/local-authority/00EU,HOL,Insurance Fund,91100,CP Adult Placement,443450,10-Dec-12,1900106015,9454,Aon Ltd,102117
WARRINGTON BOROUGH COUNCIL,http://statistics.data.gov.uk/id/local-authority/00EU,HOL,Insurance Fund,91100,Insurance Premium,443350,20-Dec-12,1900107442,8500,Aon Ltd,102117
WARRINGTON BOROUGH COUNCIL,http://statistics.data.gov.uk/id/local-authority/00EU,HOL,Insurance Fund,91100,Insurance Premium,443350,20-Dec-12,1900107443,14500,Aon Ltd,102117
WARRINGTON BOROUGH COUNCIL,http://statistics.data.gov.uk/id/local-authority/00EU,ER0,Urban Traffic Management Control,44370,Consult.& Prof. Serv,440000,18-Dec-12,1900107097,1495,Apcoa Parking Ltd,102121
WARRINGTON BOROUGH COUNCIL,http://statistics.data.gov.uk/id/local-authority/00EU,ER0,Urban Traffic Management Control,44370,Consult.& Prof. Serv,440000,18-Dec-12,1900107101,2149,Apcoa Parking Ltd,102121
WARRINGTON BOROUGH COUNCIL,http://statistics.data.gov.uk/id/local-authority/00EU,ER0,Urban Traffic Management Control,44370,Consult.& Prof. Serv,440000,18-Dec-12,1900107106,1868,Apcoa Parking Ltd,102121
WARRINGTON BOROUGH COUNCIL,http://statistics.data.gov.uk/id/local-authority/00EU,ENP,Environment & Regeneration,82000,Consult.& Prof. Serv,440000,10-Dec-12,1900105959,1950,Capita Symonds Ltd,102122
WARRINGTON BOROUGH COUNCIL,http://statistics.data.gov.uk/id/local-authority/00EU,NCS,Care Purchase - OP & OT West,54470,CP-LongStayExternal,441150,03-Dec-12,1900105601,2544,The Turner Home,102163
WARRINGTON BOROUGH COUNCIL,http://statistics.data.gov.uk/id/local-authority/00EU,NCS,Care Purchase - OP & OT West,54470,CP-Nursing Care-External,441200,03-Dec-12,1900105606,2628,The Turner Home,102163
WARRINGTON BOROUGH COUNCIL,http://statistics.data.gov.uk/id/local-authority/00EU,NCS,Care Purchase -OP & OT East,54430,CP-Nursing Care-External,441200,03-Dec-12,1900105608,2580,The Turner Home,102163
WARRINGTON BOROUGH COUNCIL,http://statistics.data.gov.uk/id/local-authority/00EU,NCS,Care Purchase - OP & OT Central,54420,Direct Payments,552000,11-Dec-12,1900106223,661,Redacted Personal Data,102183
WARRINGTON BOROUGH COUNCIL,http://statistics.data.gov.uk/id/local-authority/00EU,CHL,Child Disability,32212,CP-Domicil.External,440950,12-Dec-12,1900106658,1996,M-Power Activity Services Ltd,102186
WARRINGTON BOROUGH COUNCIL,http://statistics.data.gov.uk/id/local-authority/00EU,NCS,Care Purchase - Learning Disability,54450,CP-Domicil.External,440950,18-Dec-12,1900106995,2102,M-Power Activity Services Ltd,102186
WARRINGTON BOROUGH COUNCIL,http://statistics.data.gov.uk/id/local-authority/00EU,NCS,Care Purchase - OP & OT West,54470,CP-Domicil.External,440950,21-Dec-12,1900107592,635,M-Power Activity Services Ltd,102186
WARRINGTON BOROUGH COUNCIL,http://statistics.data.gov.uk/id/local-authority/00EU,NCS,Care Purchase - Learning Disability,54450,CP-Domicil.External,440950,21-Dec-12,1900107592,846,M-Power Activity Services Ltd,102186
WARRINGTON BOROUGH COUNCIL,http://statistics.data.gov.uk/id/local-authority/00EU,CHL,Child Disability,32212,CP-Domicil.External,440950,24-Dec-12,1900107598,1666,M-Power Activity Services Ltd,102186
WARRINGTON BOROUGH COUNCIL,http://statistics.data.gov.uk/id/local-authority/00EU,NCS,Supporting People Grant Payments,53260,Sheltd/Xtra Care Hsing and Comm Alarms,535050,11-Dec-12,1900106040,17819,Arena Housing,102199
WARRINGTON BOROUGH COUNCIL,http://statistics.data.gov.uk/id/local-authority/00EU,CEX,Coroners Service,11100,Post Mortem Fees-Rep,440250,13-Dec-12,1900106753,1800,Dr P Simcock,102209
WARRINGTON BOROUGH COUNCIL,http://statistics.data.gov.uk/id/local-authority/00EU,NCS,Care Purchase - Learning Disability,54450,Direct Payments,552000,11-Dec-12,1900106224,719,Redacted Personal Data,102217
WARRINGTON BOROUGH COUNCIL,http://statistics.data.gov.uk/id/local-authority/00EU,NCS,Care Purchase - PD,54440,Direct Payments,552000,11-Dec-12,1900106225,1509,Redacted Personal Data,102222
WARRINGTON BOROUGH COUNCIL,http://statistics.data.gov.uk/id/local-authority/00EU,NCS,Care Purchase - PD,54440,CP Adult Placement,443450,19-Dec-12,1900107276,1528,Redacted Personal Data,102249
WARRINGTON BOROUGH COUNCIL,http://statistics.data.gov.uk/id/local-authority/00EU,CEX,Council Tax & Recovery,10320,Court Costs,460100,05-Dec-12,1900105787,1992,Hmcs North Cheshire Collections,102261
WARRINGTON BOROUGH COUNCIL,http://statistics.data.gov.uk/id/local-authority/00EU,NCS,Care Purchase - Learning Disability,54450,CP-Domicil.External,440950,17-Dec-12,1900106921,2145,Care Uk Care Solutions Ltd,102263
WARRINGTON BOROUGH COUNCIL,http://statistics.data.gov.uk/id/local-authority/00EU,NCS,Care Purchase - Learning Disability,54450,Supporting People - External,441250,17-Dec-12,1900106924,732,Care Uk Care Solutions Ltd,102263
WARRINGTON BOROUGH COUNCIL,http://statistics.data.gov.uk/id/local-authority/00EU,NCS,Care Purchase - Learning Disability,54450,CP-Domicil.External,440950,17-Dec-12,1900106926,659,Care Uk Care Solutions Ltd,102263
WARRINGTON BOROUGH COUNCIL,http://statistics.data.gov.uk/id/local-authority/00EU,NCS,Care Purchase - Learning Disability,54450,CP-Domicil.External,440950,17-Dec-12,1900106929,10154,Care Uk Care Solutions Ltd,102263
WARRINGTON BOROUGH COUNCIL,http://statistics.data.gov.uk/id/local-authority/00EU,NCS,Care Purchase - Learning Disability,54450,Sect 17 (Child Act),490950,17-Dec-12,1900106930,1998,Care Uk Care Solutions Ltd,102263
WARRINGTON BOROUGH COUNCIL,http://statistics.data.gov.uk/id/local-authority/00EU,NCS,Care Purchase - Learning Disability,54450,CP-Domicil.External,440950,17-Dec-12,1900106931,1865,Care Uk Care Solutions Ltd,102263
WARRINGTON BOROUGH COUNCIL,http://statistics.data.gov.uk/id/local-authority/00EU,NCS,Care Purchase - Learning Disability,54450,CP-Domicil.External,440950,17-Dec-12,1900106932,2096,Care Uk Care Solutions Ltd,102263
WARRINGTON BOROUGH COUNCIL,http://statistics.data.gov.uk/id/local-authority/00EU,NCS,Care Purchase - Learning Disability,54450,CP-Domicil.External,440950,17-Dec-12,1900106933,732,Care Uk Care Solutions Ltd,102263
WARRINGTON BOROUGH COUNCIL,http://statistics.data.gov.uk/id/local-authority/00EU,NCS,Care Purchase - Learning Disability,54450,CP-Domicil.External,440950,17-Dec-12,1900106934,4224,Care Uk Care Solutions Ltd,102263
WARRINGTON BOROUGH COUNCIL,http://statistics.data.gov.uk/id/local-authority/00EU,NCS,Care Purchase - Learning Disability,54450,Supporting People - External,441250,17-Dec-12,1900106934,927,Care Uk Care Solutions Ltd,102263
WARRINGTON BOROUGH COUNCIL,http://statistics.data.gov.uk/id/local-authority/00EU,NCS,Care Purchase - Learning Disability,54450,Supporting People - External,441250,18-Dec-12,1900106988,976,Care Uk Care Solutions Ltd,102263
WARRINGTON BOROUGH COUNCIL,http://statistics.data.gov.uk/id/local-authority/00EU,NCS,Care Purchase - Learning Disability,54450,CP-Domicil.External,440950,18-Dec-12,1900106990,4050,Care Uk Care Solutions Ltd,102263
WARRINGTON BOROUGH COUNCIL,http://statistics.data.gov.uk/id/local-authority/00EU,NCS,Care Purchase - Learning Disability,54450,CP-Domicil.External,440950,18-Dec-12,1900106992,4172,Care Uk Care Solutions Ltd,102263
WARRINGTON BOROUGH COUNCIL,http://statistics.data.gov.uk/id/local-authority/00EU,NCS,Care Purchase - Learning Disability,54450,CP-Domicil.External,440950,18-Dec-12,1900106994,3953,Care Uk Care Solutions Ltd,102263
WARRINGTON BOROUGH COUNCIL,http://statistics.data.gov.uk/id/local-authority/00EU,ER0,Customer Contact Centre,52201,Trade Refuse Charges,440700,18-Dec-12,1900107011,788,B & M Waste,102293
WARRINGTON BOROUGH COUNCIL,http://statistics.data.gov.uk/id/local-authority/00EU,NCS,Care Purchase - OP & OT South,54480,CP-Nursing Care-External,441200,17-Dec-12,1900106903,1532,Flightcare Limited,102299
WARRINGTON BOROUGH COUNCIL,http://statistics.data.gov.uk/id/local-authority/00EU,NCS,Care Purchase - OP & OT South,54480,CP-LongStayExternal,441150,03-Dec-12,1900105610,1532,Longview Care Home Ltd,102331
WARRINGTON BOROUGH COUNCIL,http://statistics.data.gov.uk/id/local-authority/00EU,CEX,HOS Finance,10000,Equipment Purchase & Contract,400000,07-Dec-12,1900105891,600,Local Government Futures Ltd,102340
WARRINGTON BOROUGH COUNCIL,http://statistics.data.gov.uk/id/local-authority/00EU,NCS,Care Purchase - Learning Disability,54450,Direct Payments,552000,11-Dec-12,1900106227,1103,Redacted Personal Data,102348
WARRINGTON BOROUGH COUNCIL,http://statistics.data.gov.uk/id/local-authority/00EU,NCS,LINKS,56150,Payment of Grants,470050,05-Dec-12,1900105759,55091,Black Health Agency,102360
WARRINGTON BOROUGH COUNCIL,http://statistics.data.gov.uk/id/local-authority/00EU,NCS,LINKS,56150,Payment of Grants,470050,17-Dec-12,1900106887,26874,Black Health Agency,102360
WARRINGTON BOROUGH COUNCIL,http://statistics.data.gov.uk/id/local-authority/00EU,NCS,Care Purchase - Learning Disability,54450,CP-LongStayExternal,441150,19-Dec-12,1900107335,3508,Potens Ltd TA Heath Lodge,102481
WARRINGTON BOROUGH COUNCIL,http://statistics.data.gov.uk/id/local-authority/00EU,COR,Corporate Planning Items,61020,Consult.& Prof. Serv,440000,10-Dec-12,1900105926,19530,Asperity Employee Benefits Ltd,102494
WARRINGTON BOROUGH COUNCIL,http://statistics.data.gov.uk/id/local-authority/00EU,ACO,Assistant Chief Executive Other,84003,Legal Costs Incurred,440200,04-Dec-12,1900105712,2600,Cobbetts Llp,102496
WARRINGTON BOROUGH COUNCIL,http://statistics.data.gov.uk/id/local-authority/00EU,NCS,Care Purchase - Learning Disability,54450,CP-Nursing Care-External,441200,21-Dec-12,1900107586,3588,Stocks Hall Care Homes Ltd,102512
WARRINGTON BOROUGH COUNCIL,http://statistics.data.gov.uk/id/local-authority/00EU,NCS,Care Purchase Budget,54490,CP ExternalOther Exp,440800,10-Dec-12,1900105977,3998,Leyton Healthcare,102517
WARRINGTON BOROUGH COUNCIL,http://statistics.data.gov.uk/id/local-authority/00EU,NCS,Care Purchase Budget,54490,CP ExternalOther Exp,440800,12-Dec-12,1900106640,167000,Leyton Healthcare,102517
WARRINGTON BOROUGH COUNCIL,http://statistics.data.gov.uk/id/local-authority/00EU,NCS,Care Purchase - OP & OT West,54470,CP-LongStayExternal,441150,07-Dec-12,1900105846,1904,Orchard Care Homes,102524
WARRINGTON BOROUGH COUNCIL,http://statistics.data.gov.uk/id/local-authority/00EU,NCS,Care Purchase - Learning Disability,54450,Direct Payments,552000,11-Dec-12,1900106228,600,Redacted Personal Data,102547
WARRINGTON BOROUGH COUNCIL,http://statistics.data.gov.uk/id/local-authority/00EU,ENO,Housing Projects,82008,Disabled Persons Grant 1996,554000,11-Dec-12,1900106029,1906,R Hough & Co,102596
WARRINGTON BOROUGH COUNCIL,http://statistics.data.gov.uk/id/local-authority/00EU,ENO,Housing Projects,82008,Renewals Assistance,554050,12-Dec-12,1900106660,2400,R Hough & Co,102596
WARRINGTON BOROUGH COUNCIL,http://statistics.data.gov.uk/id/local-authority/00EU,ENO,Housing Projects,82008,Disabled Persons Grant 1996,554000,13-Dec-12,1900106689,4082,R Hough & Co,102596
WARRINGTON BOROUGH COUNCIL,http://statistics.data.gov.uk/id/local-authority/00EU,NCS,Care Purchase - Learning Disability,54450,Direct Payments,552000,11-Dec-12,1900106233,849,Redacted Personal Data,102667
WARRINGTON BOROUGH COUNCIL,http://statistics.data.gov.uk/id/local-authority/00EU,NCS,Care Purchase - Learning Disability,54450,Direct Payments,552000,11-Dec-12,1900106234,1570,Redacted Personal Data,102688
WARRINGTON BOROUGH COUNCIL,http://statistics.data.gov.uk/id/local-authority/00EU,NCS,Care Purchase - Learning Disability,54450,Direct Payments,552000,11-Dec-12,1900106235,1273,Redacted Personal Data,102710
WARRINGTON BOROUGH COUNCIL,http://statistics.data.gov.uk/id/local-authority/00EU,NCS,Care Purchase - Learning Disability,54450,Direct Payments,552000,11-Dec-12,1900106236,849,Redacted Personal Data,102718
WARRINGTON BOROUGH COUNCIL,http://statistics.data.gov.uk/id/local-authority/00EU,CEX,Senior Management,15000,Training,190150,10-Dec-12,1900105938,750,North West Employers,102754
WARRINGTON BOROUGH COUNCIL,http://statistics.data.gov.uk/id/local-authority/00EU,NCS,Care Purchase - Learning Disability,54450,Direct Payments,552000,11-Dec-12,1900106237,900,Redacted Personal Data,102759
WARRINGTON BOROUGH COUNCIL,http://statistics.data.gov.uk/id/local-authority/00EU,NCS,Specialist Day Services,54750,Gen. Personal Needs,490850,03-Dec-12,1900105647,1040,Walton Lea Project,102953
WARRINGTON BOROUGH COUNCIL,http://statistics.data.gov.uk/id/local-authority/00EU,NCS,Care Purchase - Learning Disability,54450,CP-Day Care-External,441100,07-Dec-12,1900105862,18642,Walton Lea Project,102953
WARRINGTON BOROUGH COUNCIL,http://statistics.data.gov.uk/id/local-authority/00EU,NCS,Care Purchase - Learning Disability,54450,CP-Day Care-External,441100,10-Dec-12,1900105956,18642,Walton Lea Project,102953
WARRINGTON BOROUGH COUNCIL,http://statistics.data.gov.uk/id/local-authority/00EU,NCS,Care Purchase - Learning Disability,54450,CP-Day Care-External,441100,21-Dec-12,1900107593,18724,Walton Lea Project,102953
WARRINGTON BOROUGH COUNCIL,http://statistics.data.gov.uk/id/local-authority/00EU,CHL,DSG Early Years PVI Settings,32417,Private & Voluntary 4 Year Olds,470150,18-Dec-12,1900107138,6554,Kids Planet Day Nursery Lymm,102992
WARRINGTON BOROUGH COUNCIL,http://statistics.data.gov.uk/id/local-authority/00EU,CHL,DSG Early Years PVI Settings,32417,Private & Voluntary 3 Year Olds,470100,18-Dec-12,1900107214,15405,Kids Planet Day Nursery Lymm,102992
WARRINGTON BOROUGH COUNCIL,http://statistics.data.gov.uk/id/local-authority/00EU,NCS,Care Purchase - OP & OT South,54480,Direct Payments,552000,11-Dec-12,1900106240,627,Redacted Personal Data,103028
WARRINGTON BOROUGH COUNCIL,http://statistics.data.gov.uk/id/local-authority/00EU,CHL,DSG Early Years PVI Settings,32417,Private & Voluntary 4 Year Olds,470150,18-Dec-12,1900107162,6393,St Monica Catholic Pre School,103081
WARRINGTON BOROUGH COUNCIL,http://statistics.data.gov.uk/id/local-authority/00EU,CHL,DSG Early Years PVI Settings,32417,Private & Voluntary 3 Year Olds,470100,18-Dec-12,1900107240,7789,St Monica Catholic Pre School,103081
WARRINGTON BOROUGH COUNCIL,http://statistics.data.gov.uk/id/local-authority/00EU,NCS,Care Purchase - Learning Disability,54450,CP-Domicil.External,440950,03-Dec-12,1900105602,504,Seashell Trust,103082
WARRINGTON BOROUGH COUNCIL,http://statistics.data.gov.uk/id/local-authority/00EU,NCS,Care Purchase - Learning Disability,54450,CP-Day Care-External,441100,18-Dec-12,1900107047,2344,Seashell Trust,103082
WARRINGTON BOROUGH COUNCIL,http://statistics.data.gov.uk/id/local-authority/00EU,ER0,Homelessness,43650,Emergency Accommodation Allowance,550500,03-Dec-12,1900105622,558,Macintyre Cafe,103174
WARRINGTON BOROUGH COUNCIL,http://statistics.data.gov.uk/id/local-authority/00EU,ER0,Development Control,43430,Consult.& Prof. Serv,440000,05-Dec-12,1900105727,1940,Urban Vision Partnership Ltd,103202
WARRINGTON BOROUGH COUNCIL,http://statistics.data.gov.uk/id/local-authority/00EU,NCS,Care Purchase - PD,54440,CP-Domicil.External,440950,19-Dec-12,1900107350,1003,Safehands Network Ltd,103226
WARRINGTON BOROUGH COUNCIL,http://statistics.data.gov.uk/id/local-authority/00EU,NCS,Care Purchase - OP & OT Telecare,54460,CP-Domicil.External,440950,19-Dec-12,1900107350,1075,Safehands Network Ltd,103226
WARRINGTON BOROUGH COUNCIL,http://statistics.data.gov.uk/id/local-authority/00EU,NCS,Care Purchase - OP & OT Central,54420,CP-Domicil.External,440950,19-Dec-12,1900107350,5352,Safehands Network Ltd,103226
WARRINGTON BOROUGH COUNCIL,http://statistics.data.gov.uk/id/local-authority/00EU,NCS,Care Purchase - OP & OT South,54480,CP-Domicil.External,440950,19-Dec-12,1900107350,10093,Safehands Network Ltd,103226
WARRINGTON BOROUGH COUNCIL,http://statistics.data.gov.uk/id/local-authority/00EU,NCS,Care Purchase -OP & OT East,54430,CP-Domicil.External,440950,19-Dec-12,1900107350,10948,Safehands Network Ltd,103226
WARRINGTON BOROUGH COUNCIL,http://statistics.data.gov.uk/id/local-authority/00EU,NCS,Care Purchase - OP & OT West,54470,CP-Domicil.External,440950,19-Dec-12,1900107350,11187,Safehands Network Ltd,103226
WARRINGTON BOROUGH COUNCIL,http://statistics.data.gov.uk/id/local-authority/00EU,NCS,Care Purchase Budget,54490,CP - Cont Care - External,441350,19-Dec-12,1900107362,2178,Home Instead Senior Care,103236
WARRINGTON BOROUGH COUNCIL,http://statistics.data.gov.uk/id/local-authority/00EU,NCS,OP & OT - West,54350,Car Leasing Charges,350000,05-Dec-12,1900105731,3452,Arnold Clark Finance Ltd,103263
WARRINGTON BOROUGH COUNCIL,http://statistics.data.gov.uk/id/local-authority/00EU,NCS,Asst Director - Int Hlth & Scl Cr Comm,53000,Car Leasing Charges,350000,05-Dec-12,1900105733,4886,Arnold Clark Finance Ltd,103263
WARRINGTON BOROUGH COUNCIL,http://statistics.data.gov.uk/id/local-authority/00EU,CHL,Placement Support Team,31103,Car Leasing Charges,350000,13-Dec-12,1900106737,2529,Arnold Clark Finance Ltd,103263
WARRINGTON BOROUGH COUNCIL,http://statistics.data.gov.uk/id/local-authority/00EU,NCS,Care Purchase - PD,54440,Direct Payments,552000,11-Dec-12,1900106248,935,Redacted Personal Data,103320
WARRINGTON BOROUGH COUNCIL,http://statistics.data.gov.uk/id/local-authority/00EU,COR,Corporate Planning Items,61020,Consult.& Prof. Serv,440000,18-Dec-12,1900106954,14600,Cheshire West And Chester,103357
WARRINGTON BOROUGH COUNCIL,http://statistics.data.gov.uk/id/local-authority/00EU,CHL,DSG Inter Authority Recoupment,32009,Recoupment Charges,490700,24-Dec-12,1900107599,31873,Cheshire West And Chester,103357
WARRINGTON BOROUGH COUNCIL,http://statistics.data.gov.uk/id/local-authority/00EU,NCS,Care Purchase - PD,54440,Direct Payments,552000,11-Dec-12,1900106249,1740,Redacted Personal Data,103372
WARRINGTON BOROUGH COUNCIL,http://statistics.data.gov.uk/id/local-authority/00EU,NCS,Care Purchase - PD,54440,Direct Payments,552000,11-Dec-12,1900106250,1732,Redacted Personal Data,103404
WARRINGTON BOROUGH COUNCIL,http://statistics.data.gov.uk/id/local-authority/00EU,NCS,Specialist Day Services,54750,Response Maintenance,200000,06-Dec-12,1900105804,1491,British Gas,103508
WARRINGTON BOROUGH COUNCIL,http://statistics.data.gov.uk/id/local-authority/00EU,CHL,CIN Team 1,31001,Transport SLA,300400,04-Dec-12,1900105716,1490,Redacted Personal Data,103536
WARRINGTON BOROUGH COUNCIL,http://statistics.data.gov.uk/id/local-authority/00EU,NCS,Care Purchase - PD,54440,Direct Payments,552000,11-Dec-12,1900106258,1109,Redacted Personal Data,103587
WARRINGTON BOROUGH COUNCIL,http://statistics.data.gov.uk/id/local-authority/00EU,NCS,Care Purchase - OP & OT West,54470,CP-Nursing Care-External,441200,10-Dec-12,1900105952,1427,Four Seasons Ta Cherry Trees,103592
WARRINGTON BOROUGH COUNCIL,http://statistics.data.gov.uk/id/local-authority/00EU,NCS,Care Purchase - PD,54440,Direct Payments,552000,11-Dec-12,1900106259,952,Redacted Personal Data,103593
WARRINGTON BOROUGH COUNCIL,http://statistics.data.gov.uk/id/local-authority/00EU,NCS,Care Purchase - OP & OT South,54480,CP-LongStayExternal,441150,03-Dec-12,1900105598,1898,Lady Elsie Finney House Lancashire,103595
WARRINGTON BOROUGH COUNCIL,http://statistics.data.gov.uk/id/local-authority/00EU,CHL,EIG Funding - Childcare Team,31600,Payment of Grants,470050,19-Dec-12,1900107267,778,J K Links Clubs,103600
WARRINGTON BOROUGH COUNCIL,http://statistics.data.gov.uk/id/local-authority/00EU,NCS,Care Purchase - Learning Disability,54450,Direct Payments,552000,11-Dec-12,1900106260,1167,Redacted Personal Data,103611
WARRINGTON BOROUGH COUNCIL,http://statistics.data.gov.uk/id/local-authority/00EU,NCS,Care Purchase - PD,54440,Direct Payments,552000,11-Dec-12,1900106261,1594,Redacted Personal Data,103613
WARRINGTON BOROUGH COUNCIL,http://statistics.data.gov.uk/id/local-authority/00EU,NCS,Care Purchase - Learning Disability,54450,Direct Payments,552000,11-Dec-12,1900106262,1401,Redacted Personal Data,103614
WARRINGTON BOROUGH COUNCIL,http://statistics.data.gov.uk/id/local-authority/00EU,ENP,Environment & Regeneration,82000,Consult.& Prof. Serv,440000,07-Dec-12,1900105826,1200,Sda Consulting Llp,103628
WARRINGTON BOROUGH COUNCIL,http://statistics.data.gov.uk/id/local-authority/00EU,ER0,Estates & Valuation,43520,Subscriptions,470000,14-Dec-12,1900106825,2250,CIPFA Business Limited,103650
WARRINGTON BOROUGH COUNCIL,http://statistics.data.gov.uk/id/local-authority/00EU,NCS,Care Purchase - Learning Disability,54450,Direct Payments,552000,11-Dec-12,1900106264,964,Redacted Personal Data,103660
WARRINGTON BOROUGH COUNCIL,http://statistics.data.gov.uk/id/local-authority/00EU,NCS,Care Purchase - PD,54440,Direct Payments,552000,11-Dec-12,1900106265,1105,Redacted Personal Data,103668
WARRINGTON BOROUGH COUNCIL,http://statistics.data.gov.uk/id/local-authority/00EU,NCS,Care Purchase - PD,54440,Direct Payments,552000,11-Dec-12,1900106266,896,Redacted Personal Data,103674
WARRINGTON BOROUGH COUNCIL,http://statistics.data.gov.uk/id/local-authority/00EU,NCS,Care Purchase - Learning Disability,54450,CP-LongStayExternal,441150,18-Dec-12,1900107052,10388,Bank Hall Farm,103693
WARRINGTON BOROUGH COUNCIL,http://statistics.data.gov.uk/id/local-authority/00EU,NCS,Care Purchase - Learning Disability,54450,Direct Payments,552000,11-Dec-12,1900106267,2060,Redacted Personal Data,103696
WARRINGTON BOROUGH COUNCIL,http://statistics.data.gov.uk/id/local-authority/00EU,NCS,Care Purchase - Learning Disability,54450,Direct Payments,552000,11-Dec-12,1900106268,1146,Redacted Personal Data,103697
WARRINGTON BOROUGH COUNCIL,http://statistics.data.gov.uk/id/local-authority/00EU,CEX,Business Support Centre,52120,Inland Revenue,190700,05-Dec-12,1900105790,652,Hmrc,103722
WARRINGTON BOROUGH COUNCIL,http://statistics.data.gov.uk/id/local-authority/00EU,NCS,Care Purchase - OP & OT Central,54420,Direct Payments,552000,11-Dec-12,1900106270,881,Redacted Personal Data,103723
WARRINGTON BOROUGH COUNCIL,http://statistics.data.gov.uk/id/local-authority/00EU,NCS,Care Purchase - PD,54440,Direct Payments,552000,11-Dec-12,1900106272,2443,Redacted Personal Data,103730
WARRINGTON BOROUGH COUNCIL,http://statistics.data.gov.uk/id/local-authority/00EU,CEX,Coroners Service,11100,Removal Bodies & Exc,440350,13-Dec-12,1900106752,514,Houghtons Funeral Directors Ltd,103735
WARRINGTON BOROUGH COUNCIL,http://statistics.data.gov.uk/id/local-authority/00EU,NCS,Care Purchase - OP & OT West,54470,CP-LongStayExternal,441150,17-Dec-12,1900106904,1460,Croftwood Care Limited,103738
WARRINGTON BOROUGH COUNCIL,http://statistics.data.gov.uk/id/local-authority/00EU,NCS,Care Purchase - OP & OT West,54470,CP-LongStayExternal,441150,17-Dec-12,1900106905,1460,Croftwood Care Limited,103738
WARRINGTON BOROUGH COUNCIL,http://statistics.data.gov.uk/id/local-authority/00EU,NCS,Care Purchase - OP & OT West,54470,CP-LongStayExternal,441150,19-Dec-12,1900107364,1460,Croftwood Care Limited,103738
WARRINGTON BOROUGH COUNCIL,http://statistics.data.gov.uk/id/local-authority/00EU,NCS,Care Purchase - Learning Disability,54450,Direct Payments,552000,11-Dec-12,1900106276,9177,Redacted Personal Data,103771
WARRINGTON BOROUGH COUNCIL,http://statistics.data.gov.uk/id/local-authority/00EU,NCS,Care Purchase - PD,54440,Direct Payments,552000,11-Dec-12,1900106277,1061,Redacted Personal Data,103794
WARRINGTON BOROUGH COUNCIL,http://statistics.data.gov.uk/id/local-authority/00EU,CHL,Child Disability,32212,Direct Payments,552000,11-Dec-12,1900106278,502,Redacted Personal Data,103820
WARRINGTON BOROUGH COUNCIL,http://statistics.data.gov.uk/id/local-authority/00EU,NCS,Care Purchase - Learning Disability,54450,Direct Payments,552000,11-Dec-12,1900106280,672,Redacted Personal Data,103832
WARRINGTON BOROUGH COUNCIL,http://statistics.data.gov.uk/id/local-authority/00EU,NCS,Care Purchase - PD,54440,Direct Payments,552000,11-Dec-12,1900106281,800,Redacted Personal Data,103871
WARRINGTON BOROUGH COUNCIL,http://statistics.data.gov.uk/id/local-authority/00EU,NCS,Care Purchase - OP & OT South,54480,CP-Nursing Care-External,441200,03-Dec-12,1900105599,2064,St Monica Trust,104021
WARRINGTON BOROUGH COUNCIL,http://statistics.data.gov.uk/id/local-authority/00EU,NCS,Care Purchase - Mental Health Team 1,54230,CP-Domicil.External,440950,21-Dec-12,1900107488,524,Bluebird Care Warrington,104094
WARRINGTON BOROUGH COUNCIL,http://statistics.data.gov.uk/id/local-authority/00EU,NCS,Care Purchase - Mental Health Team 2,54240,CP-Domicil.External,440950,21-Dec-12,1900107488,588,Bluebird Care Warrington,104094
WARRINGTON BOROUGH COUNCIL,http://statistics.data.gov.uk/id/local-authority/00EU,NCS,Care Purchase - OPMH,54220,CP-Domicil.External,440950,21-Dec-12,1900107488,630,Bluebird Care Warrington,104094
WARRINGTON BOROUGH COUNCIL,http://statistics.data.gov.uk/id/local-authority/00EU,NCS,Care Purchase - OP & OT Telecare,54460,CP-Domicil.External,440950,21-Dec-12,1900107488,828,Bluebird Care Warrington,104094
WARRINGTON BOROUGH COUNCIL,http://statistics.data.gov.uk/id/local-authority/00EU,NCS,Care Purchase - Learning Disability,54450,CP-Domicil.External,440950,21-Dec-12,1900107488,1364,Bluebird Care Warrington,104094
WARRINGTON BOROUGH COUNCIL,http://statistics.data.gov.uk/id/local-authority/00EU,NCS,Care Purchase - Hospital Discharge Team,54280,CP-Domicil.External,440950,21-Dec-12,1900107488,2622,Bluebird Care Warrington,104094
WARRINGTON BOROUGH COUNCIL,http://statistics.data.gov.uk/id/local-authority/00EU,NCS,Care Purchase - OP & OT Central,54420,CP-Domicil.External,440950,21-Dec-12,1900107488,4075,Bluebird Care Warrington,104094
WARRINGTON BOROUGH COUNCIL,http://statistics.data.gov.uk/id/local-authority/00EU,NCS,Care Purchase - OP & OT West,54470,CP-Domicil.External,440950,21-Dec-12,1900107488,9492,Bluebird Care Warrington,104094
WARRINGTON BOROUGH COUNCIL,http://statistics.data.gov.uk/id/local-authority/00EU,NCS,Care Purchase -OP & OT East,54430,CP-Domicil.External,440950,21-Dec-12,1900107488,13159,Bluebird Care Warrington,104094
WARRINGTON BOROUGH COUNCIL,http://statistics.data.gov.uk/id/local-authority/00EU,NCS,Care Purchase - PD,54440,CP-Domicil.External,440950,21-Dec-12,1900107488,14589,Bluebird Care Warrington,104094
WARRINGTON BOROUGH COUNCIL,http://statistics.data.gov.uk/id/local-authority/00EU,NCS,Care Purchase - OP & OT South,54480,CP-Domicil.External,440950,21-Dec-12,1900107488,16558,Bluebird Care Warrington,104094
WARRINGTON BOROUGH COUNCIL,http://statistics.data.gov.uk/id/local-authority/00EU,NCS,Care Purchase Budget,54490,CP - Cont Care - External,441350,21-Dec-12,1900107488,1738,Bluebird Care Warrington,104094
WARRINGTON BOROUGH COUNCIL,http://statistics.data.gov.uk/id/local-authority/00EU,NCS,Care Purchase - PD,54440,Direct Payments,552000,11-Dec-12,1900106290,1179,Redacted Personal Data,104205
WARRINGTON BOROUGH COUNCIL,http://statistics.data.gov.uk/id/local-authority/00EU,NCS,DAT Pooled Budget,53860,Drug Action,443600,18-Dec-12,1900107084,573,Hall And Stevens Pharmacy,104278
WARRINGTON BOROUGH COUNCIL,http://statistics.data.gov.uk/id/local-authority/00EU,NCS,Care Purchase - OP & OT Central,54420,CP-Nursing Care-External,441200,18-Dec-12,1900107042,2208,HC1 Ltd County Homes,104325
WARRINGTON BOROUGH COUNCIL,http://statistics.data.gov.uk/id/local-authority/00EU,NCS,Care Purchase - OP & OT Central,54420,CP-LongStayExternal,441150,18-Dec-12,1900107043,2208,HC1 Ltd County Homes,104325
WARRINGTON BOROUGH COUNCIL,http://statistics.data.gov.uk/id/local-authority/00EU,NCS,Care Purchase - PD,54440,Direct Payments,552000,11-Dec-12,1900106292,849,Redacted Personal Data,104327
WARRINGTON BOROUGH COUNCIL,http://statistics.data.gov.uk/id/local-authority/00EU,ER0,Time Square,43551,Service Charges,220050,17-Dec-12,1900106874,15754,Knight Frank Llp,104426
WARRINGTON BOROUGH COUNCIL,http://statistics.data.gov.uk/id/local-authority/00EU,NCS,Care Purchase - Learning Disability,54450,CP-Domicil.External,440950,12-Dec-12,1900106603,3163,Alternative Futures Group,104468
WARRINGTON BOROUGH COUNCIL,http://statistics.data.gov.uk/id/local-authority/00EU,NCS,Care Purchase Budget,54490,CP ExternalOther Exp,440800,10-Dec-12,1900105950,5862,Arlington House,104491
WARRINGTON BOROUGH COUNCIL,http://statistics.data.gov.uk/id/local-authority/00EU,NCS,Care Purchase Budget,54490,CP ExternalOther Exp,440800,12-Dec-12,1900106584,22000,Arlington House,104491
WARRINGTON BOROUGH COUNCIL,http://statistics.data.gov.uk/id/local-authority/00EU,NCS,Care Purchase - Learning Disability,54450,CP-Domicil.External,440950,03-Dec-12,1900105605,1736,Autism Initiatives,104503
WARRINGTON BOROUGH COUNCIL,http://statistics.data.gov.uk/id/local-authority/00EU,NCS,Care Purchase - Learning Disability,54450,CP-Day Care-External,441100,17-Dec-12,1900106909,5362,Autism Initiatives,104503
WARRINGTON BOROUGH COUNCIL,http://statistics.data.gov.uk/id/local-authority/00EU,NCS,Care Purchase - Learning Disability,54450,CP-Domicil.External,440950,17-Dec-12,1900106910,643,Autism Initiatives,104503
WARRINGTON BOROUGH COUNCIL,http://statistics.data.gov.uk/id/local-authority/00EU,NCS,Care Purchase - Learning Disability,54450,CP-Domicil.External,440950,17-Dec-12,1900106911,1074,Autism Initiatives,104503
WARRINGTON BOROUGH COUNCIL,http://statistics.data.gov.uk/id/local-authority/00EU,NCS,Care Purchase - Learning Disability,54450,CP-Day Care-External,441100,18-Dec-12,1900106965,3651,Autism Initiatives,104503
WARRINGTON BOROUGH COUNCIL,http://statistics.data.gov.uk/id/local-authority/00EU,NCS,Care Purchase - Learning Disability,54450,CP-Domicil.External,440950,18-Dec-12,1900106972,885,Autism Initiatives,104503
WARRINGTON BOROUGH COUNCIL,http://statistics.data.gov.uk/id/local-authority/00EU,NCS,Care Purchase - Learning Disability,54450,CP-Day Care-External,441100,18-Dec-12,1900106972,1081,Autism Initiatives,104503
WARRINGTON BOROUGH COUNCIL,http://statistics.data.gov.uk/id/local-authority/00EU,NCS,Care Purchase - Learning Disability,54450,CP-Domicil.External,440950,18-Dec-12,1900106973,6926,Autism Initiatives,104503
WARRINGTON BOROUGH COUNCIL,http://statistics.data.gov.uk/id/local-authority/00EU,NCS,Care Purchase - Learning Disability,54450,CP-Domicil.External,440950,18-Dec-12,1900106975,644,Autism Initiatives,104503
WARRINGTON BOROUGH COUNCIL,http://statistics.data.gov.uk/id/local-authority/00EU,NCS,Care Purchase - Learning Disability,54450,CP-LongStayExternal,441150,18-Dec-12,1900106976,4496,Autism Initiatives,104503
WARRINGTON BOROUGH COUNCIL,http://statistics.data.gov.uk/id/local-authority/00EU,NCS,Care Purchase - Learning Disability,54450,CP-Domicil.External,440950,19-Dec-12,1900107337,6735,Autism Initiatives,104503
WARRINGTON BOROUGH COUNCIL,http://statistics.data.gov.uk/id/local-authority/00EU,NCS,Care Purchase - Learning Disability,54450,CP-Domicil.External,440950,19-Dec-12,1900107376,5654,Autism Initiatives,104503
WARRINGTON BOROUGH COUNCIL,http://statistics.data.gov.uk/id/local-authority/00EU,NCS,Care Purchase - Learning Disability,54450,CP-Day Care-External,441100,19-Dec-12,1900107377,1005,Autism Initiatives,104503
WARRINGTON BOROUGH COUNCIL,http://statistics.data.gov.uk/id/local-authority/00EU,HOL,Single Billing Holding Account,91130,Gas,210050,12-Dec-12,1900106666,1677,British Gas Business,104540
WARRINGTON BOROUGH COUNCIL,http://statistics.data.gov.uk/id/local-authority/00EU,HOL,Single Billing Holding Account,91130,Gas,210050,12-Dec-12,1900106666,44750,British Gas Business,104540
WARRINGTON BOROUGH COUNCIL,http://statistics.data.gov.uk/id/local-authority/00EU,NCS,Care Purchase - OP & OT Central,54420,CP-LongStayExternal,441150,19-Dec-12,1900107309,1764,Bupa Care Homes - Broadoak Manor,104546
WARRINGTON BOROUGH COUNCIL,http://statistics.data.gov.uk/id/local-authority/00EU,NCS,Care Purchase Budget,54490,CP ExternalOther Exp,440800,10-Dec-12,1900105967,7419,Bupa Care Homes,104572
WARRINGTON BOROUGH COUNCIL,http://statistics.data.gov.uk/id/local-authority/00EU,NCS,Care Purchase Budget,54490,CP ExternalOther Exp,440800,12-Dec-12,1900106635,188000,Bupa Care Homes,104572
WARRINGTON BOROUGH COUNCIL,http://statistics.data.gov.uk/id/local-authority/00EU,CHL,Child Disability,32212,CP-Domicil.External,440950,07-Dec-12,1900105821,1855,Carewatch North Cheshire,104573
WARRINGTON BOROUGH COUNCIL,http://statistics.data.gov.uk/id/local-authority/00EU,CHL,Child Disability,32212,CP-Domicil.External,440950,12-Dec-12,1900106626,1866,Carewatch North Cheshire,104573
WARRINGTON BOROUGH COUNCIL,http://statistics.data.gov.uk/id/local-authority/00EU,NCS,Care Purchase - Mental Health Team 3,54250,CP-Domicil.External,440950,19-Dec-12,1900107352,663,Carewatch North Cheshire,104573
WARRINGTON BOROUGH COUNCIL,http://statistics.data.gov.uk/id/local-authority/00EU,NCS,Care Purchase - Learning Disability,54450,CP-Domicil.External,440950,19-Dec-12,1900107352,711,Carewatch North Cheshire,104573
WARRINGTON BOROUGH COUNCIL,http://statistics.data.gov.uk/id/local-authority/00EU,NCS,Care Purchase - PD,54440,CP-Domicil.External,440950,19-Dec-12,1900107352,1735,Carewatch North Cheshire,104573
WARRINGTON BOROUGH COUNCIL,http://statistics.data.gov.uk/id/local-authority/00EU,NCS,Care Purchase - Learning Disability,54450,CP-Domicil.External,440950,19-Dec-12,1900107352,6279,Carewatch North Cheshire,104573
WARRINGTON BOROUGH COUNCIL,http://statistics.data.gov.uk/id/local-authority/00EU,NCS,Care Purchase -OP & OT East,54430,CP-Domicil.External,440950,19-Dec-12,1900107352,10655,Carewatch North Cheshire,104573
WARRINGTON BOROUGH COUNCIL,http://statistics.data.gov.uk/id/local-authority/00EU,NCS,Care Purchase - Learning Disability,54450,CP ExternalOther Exp,440800,19-Dec-12,1900107354,1016,Carewatch North Cheshire,104573
WARRINGTON BOROUGH COUNCIL,http://statistics.data.gov.uk/id/local-authority/00EU,ER1,Walton Hall Catering,41433,Beers Wines Spirits,410100,21-Dec-12,1900107566,912,Carlsberg Tetley Brewing Ltd,104575
WARRINGTON BOROUGH COUNCIL,http://statistics.data.gov.uk/id/local-authority/00EU,ER1,Walton Estate,41430,Beers Wines Spirits,410100,21-Dec-12,1900107574,789,Carlsberg Tetley Brewing Ltd,104575
WARRINGTON BOROUGH COUNCIL,http://statistics.data.gov.uk/id/local-authority/00EU,ER1,Walton Hall Catering,41433,Beers Wines Spirits,410100,21-Dec-12,1900107582,1143,Carlsberg Tetley Brewing Ltd,104575
WARRINGTON BOROUGH COUNCIL,http://statistics.data.gov.uk/id/local-authority/00EU,NCS,Care Purchase - OP & OT West,54470,CP-LongStayExternal,441150,03-Dec-12,1900105618,1912,Cls Care Services Ltd,104615
WARRINGTON BOROUGH COUNCIL,http://statistics.data.gov.uk/id/local-authority/00EU,NCS,Care Purchase Budget,54490,CP ExternalOther Exp,440800,03-Dec-12,1900105645,7656,Cls Care Services Ltd,104615
WARRINGTON BOROUGH COUNCIL,http://statistics.data.gov.uk/id/local-authority/00EU,NCS,Care Purchase Budget,54490,CP ExternalOther Exp,440800,12-Dec-12,1900106638,65000,Cls Care Services Ltd,104615
WARRINGTON BOROUGH COUNCIL,http://statistics.data.gov.uk/id/local-authority/00EU,NCS,Care Purchase - OP & OT West,54470,CP-LongStayExternal,441150,21-Dec-12,1900107494,1912,Cls Care Services Ltd,104615
WARRINGTON BOROUGH COUNCIL,http://statistics.data.gov.uk/id/local-authority/00EU,NCS,James Phoenix House,54720,Photocopier,430000,07-Dec-12,1900105850,679,Concept Rental Services Ltd,104631
WARRINGTON BOROUGH COUNCIL,http://statistics.data.gov.uk/id/local-authority/00EU,CEX,Coroners Service,11100,Removal Bodies & Exc,440350,13-Dec-12,1900106723,716,Co-Operative Funeral Service,104636
WARRINGTON BOROUGH COUNCIL,http://statistics.data.gov.uk/id/local-authority/00EU,NCS,Care Purchase - PD,54440,CP-Day Care-External,441100,19-Dec-12,1900107318,2035,Cotebrook,104638
WARRINGTON BOROUGH COUNCIL,http://statistics.data.gov.uk/id/local-authority/00EU,NCS,Care Purchase - ABI,54260,CP-LongStayExternal,441150,19-Dec-12,1900107321,2764,Cotebrook,104638
WARRINGTON BOROUGH COUNCIL,http://statistics.data.gov.uk/id/local-authority/00EU,NCS,Care Purchase - OP & OT South,54480,CP-LongStayExternal,441150,19-Dec-12,1900107321,4419,Cotebrook,104638
WARRINGTON BOROUGH COUNCIL,http://statistics.data.gov.uk/id/local-authority/00EU,NCS,Care Purchase - PD,54440,CP-LongStayExternal,441150,19-Dec-12,1900107321,15291,Cotebrook,104638
WARRINGTON BOROUGH COUNCIL,http://statistics.data.gov.uk/id/local-authority/00EU,NCS,Care Purchase Budget,54490,Voids,515150,19-Dec-12,1900107321,982,Cotebrook,104638
WARRINGTON BOROUGH COUNCIL,http://statistics.data.gov.uk/id/local-authority/00EU,NCS,Care Purchase - OP & OT South,54480,CP-LongStayExternal,441150,19-Dec-12,1900107355,9820,Cotebrook,104638
WARRINGTON BOROUGH COUNCIL,http://statistics.data.gov.uk/id/local-authority/00EU,NCS,Care Purchase - Learning Disability,54450,CP-Day Care-External,441100,03-Dec-12,1900105595,2217,Deafness Support Network,104657
WARRINGTON BOROUGH COUNCIL,http://statistics.data.gov.uk/id/local-authority/00EU,NCS,Care Purchase - Learning Disability,54450,CP-Day Care-External,441100,21-Dec-12,1900107507,2375,Deafness Support Network,104657
WARRINGTON BOROUGH COUNCIL,http://statistics.data.gov.uk/id/local-authority/00EU,CHL,Administration,33006,Agency Supply - GF,180000,18-Dec-12,1900107029,514,Forrest Recruitment,104728
WARRINGTON BOROUGH COUNCIL,http://statistics.data.gov.uk/id/local-authority/00EU,CHL,Administration,33006,Agency Supply - GF,180000,18-Dec-12,1900107031,560,Forrest Recruitment,104728
WARRINGTON BOROUGH COUNCIL,http://statistics.data.gov.uk/id/local-authority/00EU,HOL,Insurance Fund,91100,Insurance Claims,443400,11-Dec-12,1900106031,6980,Gallagher Bassett International Ltd,104739
WARRINGTON BOROUGH COUNCIL,http://statistics.data.gov.uk/id/local-authority/00EU,HOL,Insurance Fund,91100,Insurance Claims,443400,13-Dec-12,1900106685,57638,Gallagher Bassett International Ltd,104739
WARRINGTON BOROUGH COUNCIL,http://statistics.data.gov.uk/id/local-authority/00EU,CEX,People & Improvement,20000,Veh Maint. Materials,300000,10-Dec-12,1900106011,4342,Halfords Ltd,104764
WARRINGTON BOROUGH COUNCIL,http://statistics.data.gov.uk/id/local-authority/00EU,NCS,Care Purchase Budget,54490,CP ExternalOther Exp,440800,12-Dec-12,1900106642,135000,Ashberry Healthcare Ltd,104776
WARRINGTON BOROUGH COUNCIL,http://statistics.data.gov.uk/id/local-authority/00EU,NCS,Care Purchase Budget,54490,CP ExternalOther Exp,440800,17-Dec-12,1900106916,2240,Ashberry Healthcare Ltd,104776
WARRINGTON BOROUGH COUNCIL,http://statistics.data.gov.uk/id/local-authority/00EU,NCS,Care Purchase Budget,54490,CP ExternalOther Exp,440800,21-Dec-12,1900107516,6706,Ashberry Healthcare Ltd,104776
WARRINGTON BOROUGH COUNCIL,http://statistics.data.gov.uk/id/local-authority/00EU,NCS,Care Purchase Budget,54490,CP ExternalOther Exp,440800,10-Dec-12,1900105943,7245,Heathside Elderly Persons Home,104777
WARRINGTON BOROUGH COUNCIL,http://statistics.data.gov.uk/id/local-authority/00EU,NCS,Care Purchase Budget,54490,CP ExternalOther Exp,440800,12-Dec-12,1900106643,50000,Heathside Elderly Persons Home,104777
WARRINGTON BOROUGH COUNCIL,http://statistics.data.gov.uk/id/local-authority/00EU,NCS,Care Purchase - Mental Health Team 1,54230,CP-LongStayExternal,441150,18-Dec-12,1900107054,1564,Hilton Residential Homes Ltd,104783
WARRINGTON BOROUGH COUNCIL,http://statistics.data.gov.uk/id/local-authority/00EU,CEX,Coroners Service,11100,Post Mortem Fees-Rep,440250,13-Dec-12,1900106734,592,Dr C P Johnson,104840
WARRINGTON BOROUGH COUNCIL,http://statistics.data.gov.uk/id/local-authority/00EU,NCS,Care Purchase Budget,54490,CP ExternalOther Exp,440800,12-Dec-12,1900106593,45000,Keate House Residential Home,104849
WARRINGTON BOROUGH COUNCIL,http://statistics.data.gov.uk/id/local-authority/00EU,CEX,Coroners Service,11100,Post Mortem Fees-Rep,440250,13-Dec-12,1900106742,678,Dr W E Kenyon,104851
WARRINGTON BOROUGH COUNCIL,http://statistics.data.gov.uk/id/local-authority/00EU,NCS,Care Purchase - PD,54440,CP-LongStayExternal,441150,18-Dec-12,1900106993,6895,The David Lewis Centre,104879
WARRINGTON BOROUGH COUNCIL,http://statistics.data.gov.uk/id/local-authority/00EU,NCS,Care Purchase - Learning Disability,54450,CP-LongStayExternal,441150,18-Dec-12,1900107000,1049,The David Lewis Centre,104879
WARRINGTON BOROUGH COUNCIL,http://statistics.data.gov.uk/id/local-authority/00EU,NCS,Care Purchase - Learning Disability,54450,CP-Nursing Care-External,441200,18-Dec-12,1900107038,10016,The David Lewis Centre,104879
WARRINGTON BOROUGH COUNCIL,http://statistics.data.gov.uk/id/local-authority/00EU,NCS,Care Purchase - Learning Disability,54450,CP-LongStayExternal,441150,18-Dec-12,1900107041,13864,The David Lewis Centre,104879
WARRINGTON BOROUGH COUNCIL,http://statistics.data.gov.uk/id/local-authority/00EU,COR,Corporate Planning Items,61020,Consult.& Prof. Serv,440000,21-Dec-12,1900107597,723,Local Government Association,104893
WARRINGTON BOROUGH COUNCIL,http://statistics.data.gov.uk/id/local-authority/00EU,NCS,Care Purchase - Learning Disability,54450,CP ExternalOther Exp,440800,03-Dec-12,1900105621,920,Macintyre Care,104907
WARRINGTON BOROUGH COUNCIL,http://statistics.data.gov.uk/id/local-authority/00EU,NCS,Care Purchase - Learning Disability,54450,CP-Domicil.External,440950,07-Dec-12,1900105852,5725,Macintyre Care,104907
WARRINGTON BOROUGH COUNCIL,http://statistics.data.gov.uk/id/local-authority/00EU,NCS,Care Purchase - Learning Disability,54450,CP-Domicil.External,440950,10-Dec-12,1900105964,17240,Macintyre Care,104907
WARRINGTON BOROUGH COUNCIL,http://statistics.data.gov.uk/id/local-authority/00EU,NCS,Care Purchase - Learning Disability,54450,CP-Domicil.External,440950,10-Dec-12,1900105973,104946,Macintyre Care,104907
WARRINGTON BOROUGH COUNCIL,http://statistics.data.gov.uk/id/local-authority/00EU,NCS,Care Purchase - Learning Disability,54450,Supporting People - External,441250,10-Dec-12,1900105973,25832,Macintyre Care,104907
WARRINGTON BOROUGH COUNCIL,http://statistics.data.gov.uk/id/local-authority/00EU,NCS,Care Purchase Budget,54490,Voids,515150,10-Dec-12,1900105973,1103,Macintyre Care,104907
WARRINGTON BOROUGH COUNCIL,http://statistics.data.gov.uk/id/local-authority/00EU,NCS,Care Purchase - Learning Disability,54450,CP-Day Care-External,441100,18-Dec-12,1900107044,16423,Macintyre Care,104907
WARRINGTON BOROUGH COUNCIL,http://statistics.data.gov.uk/id/local-authority/00EU,NCS,Care Purchase - Learning Disability,54450,CP-LongStayExternal,441150,18-Dec-12,1900107048,5076,Macintyre Care,104907
WARRINGTON BOROUGH COUNCIL,http://statistics.data.gov.uk/id/local-authority/00EU,ER0,Hatters Row,43710,Rent Of Premises,220000,11-Dec-12,1900106103,23844,Manchester & Provincial Car Pks Ltd,104918
WARRINGTON BOROUGH COUNCIL,http://statistics.data.gov.uk/id/local-authority/00EU,NCS,Care Purchase - Mental Health Team 2,54240,CP-Domicil.External,440950,19-Dec-12,1900107366,515,Mayfield Home Care Agency,104928
WARRINGTON BOROUGH COUNCIL,http://statistics.data.gov.uk/id/local-authority/00EU,NCS,Care Purchase - Mental Health Team 1,54230,CP-Domicil.External,440950,19-Dec-12,1900107366,686,Mayfield Home Care Agency,104928
WARRINGTON BOROUGH COUNCIL,http://statistics.data.gov.uk/id/local-authority/00EU,NCS,Care Purchase - OP & OT West,54470,CP-Domicil.External,440950,19-Dec-12,1900107366,1312,Mayfield Home Care Agency,104928
WARRINGTON BOROUGH COUNCIL,http://statistics.data.gov.uk/id/local-authority/00EU,NCS,Care Purchase - Learning Disability,54450,CP-Domicil.External,440950,19-Dec-12,1900107366,3132,Mayfield Home Care Agency,104928
WARRINGTON BOROUGH COUNCIL,http://statistics.data.gov.uk/id/local-authority/00EU,NCS,Care Purchase Budget,54490,CP-Domicil.External,440950,19-Dec-12,1900107366,10336,Mayfield Home Care Agency,104928
WARRINGTON BOROUGH COUNCIL,http://statistics.data.gov.uk/id/local-authority/00EU,ER0,Markets,43711,Resaleables,400600,14-Dec-12,1900106848,3515,National Express Ltd,104957
WARRINGTON BOROUGH COUNCIL,http://statistics.data.gov.uk/id/local-authority/00EU,CEX,Coroners Service,11100,Post Mortem Fees-Rep,440250,14-Dec-12,1900106781,1081,Dr A Nicol,104970
WARRINGTON BOROUGH COUNCIL,http://statistics.data.gov.uk/id/local-authority/00EU,NCS,Care Purchase - Hospital Discharge Team,54280,CP-Domicil.External,440950,21-Dec-12,1900107497,3216,Nightingales Homecare Services Agen,104972
WARRINGTON BOROUGH COUNCIL,http://statistics.data.gov.uk/id/local-authority/00EU,NCS,Care Purchase - Learning Disability,54450,CP-Domicil.External,440950,21-Dec-12,1900107497,6488,Nightingales Homecare Services Agen,104972
WARRINGTON BOROUGH COUNCIL,http://statistics.data.gov.uk/id/local-authority/00EU,NCS,Care Purchase - PD,54440,CP-Domicil.External,440950,21-Dec-12,1900107497,6656,Nightingales Homecare Services Agen,104972
WARRINGTON BOROUGH COUNCIL,http://statistics.data.gov.uk/id/local-authority/00EU,NCS,Care Purchase - OP & OT Central,54420,CP-Domicil.External,440950,21-Dec-12,1900107497,7306,Nightingales Homecare Services Agen,104972
WARRINGTON BOROUGH COUNCIL,http://statistics.data.gov.uk/id/local-authority/00EU,NCS,Care Purchase -OP & OT East,54430,CP-Domicil.External,440950,21-Dec-12,1900107497,9089,Nightingales Homecare Services Agen,104972
WARRINGTON BOROUGH COUNCIL,http://statistics.data.gov.uk/id/local-authority/00EU,NCS,Care Purchase - OP & OT West,54470,CP-Domicil.External,440950,21-Dec-12,1900107497,9093,Nightingales Homecare Services Agen,104972
WARRINGTON BOROUGH COUNCIL,http://statistics.data.gov.uk/id/local-authority/00EU,NCS,Care Purchase - OP & OT South,54480,CP-Domicil.External,440950,21-Dec-12,1900107497,16084,Nightingales Homecare Services Agen,104972
WARRINGTON BOROUGH COUNCIL,http://statistics.data.gov.uk/id/local-authority/00EU,ER0,Town Hall,43111,Water & Sewerage Chg,240000,05-Dec-12,1900105789,543,United Utilities Water Limited,104982
WARRINGTON BOROUGH COUNCIL,http://statistics.data.gov.uk/id/local-authority/00EU,ER0,Bank House,43116,Water & Sewerage Chg,240000,05-Dec-12,1900105789,660,United Utilities Water Limited,104982
WARRINGTON BOROUGH COUNCIL,http://statistics.data.gov.uk/id/local-authority/00EU,NCS,Radley Common CC,51227,Water & Sewerage Chg,240000,05-Dec-12,1900105789,727,United Utilities Water Limited,104982
WARRINGTON BOROUGH COUNCIL,http://statistics.data.gov.uk/id/local-authority/00EU,NCS,Croft CC,51222,Water & Sewerage Chg,240000,05-Dec-12,1900105789,782,United Utilities Water Limited,104982
WARRINGTON BOROUGH COUNCIL,http://statistics.data.gov.uk/id/local-authority/00EU,NCS,Culcheth CC -  Age Concern,51219,Water & Sewerage Chg,240000,05-Dec-12,1900105789,793,United Utilities Water Limited,104982
WARRINGTON BOROUGH COUNCIL,http://statistics.data.gov.uk/id/local-authority/00EU,CEX,Irwell Road Training Centre,21000,Water & Sewerage Chg,240000,05-Dec-12,1900105789,851,United Utilities Water Limited,104982
WARRINGTON BOROUGH COUNCIL,http://statistics.data.gov.uk/id/local-authority/00EU,NCS,Nora Street CH,51236,Water & Sewerage Chg,240000,05-Dec-12,1900105789,853,United Utilities Water Limited,104982
WARRINGTON BOROUGH COUNCIL,http://statistics.data.gov.uk/id/local-authority/00EU,ER0,East Annexe,43113,Water & Sewerage Chg,240000,05-Dec-12,1900105789,902,United Utilities Water Limited,104982
WARRINGTON BOROUGH COUNCIL,http://statistics.data.gov.uk/id/local-authority/00EU,ER1,Walton Estate,41430,Water & Sewerage Chg,240000,05-Dec-12,1900105789,955,United Utilities Water Limited,104982
WARRINGTON BOROUGH COUNCIL,http://statistics.data.gov.uk/id/local-authority/00EU,ER1,Crematorium,41411,Water & Sewerage Chg,240000,05-Dec-12,1900105789,978,United Utilities Water Limited,104982
WARRINGTON BOROUGH COUNCIL,http://statistics.data.gov.uk/id/local-authority/00EU,NCS,LD Supported Tenancies,54730,Water & Sewerage Chg,240000,05-Dec-12,1900105789,980,United Utilities Water Limited,104982
WARRINGTON BOROUGH COUNCIL,http://statistics.data.gov.uk/id/local-authority/00EU,NCS,Specialist Day Services,54750,Water & Sewerage Chg,240000,05-Dec-12,1900105789,1060,United Utilities Water Limited,104982
WARRINGTON BOROUGH COUNCIL,http://statistics.data.gov.uk/id/local-authority/00EU,ER0,Rylands Street,43118,Water & Sewerage Chg,240000,05-Dec-12,1900105789,1071,United Utilities Water Limited,104982
WARRINGTON BOROUGH COUNCIL,http://statistics.data.gov.uk/id/local-authority/00EU,NCS,James Phoenix House,54720,Water & Sewerage Chg,240000,05-Dec-12,1900105789,1200,United Utilities Water Limited,104982
WARRINGTON BOROUGH COUNCIL,http://statistics.data.gov.uk/id/local-authority/00EU,ER0,Housing Strategy,43620,Water & Sewerage Chg,240000,05-Dec-12,1900105789,1244,United Utilities Water Limited,104982
WARRINGTON BOROUGH COUNCIL,http://statistics.data.gov.uk/id/local-authority/00EU,NCS,Specialist Day Services,54750,Water & Sewerage Chg,240000,05-Dec-12,1900105789,1430,United Utilities Water Limited,104982
WARRINGTON BOROUGH COUNCIL,http://statistics.data.gov.uk/id/local-authority/00EU,ER1,Games In Parks,41431,Water & Sewerage Chg,240000,05-Dec-12,1900105789,1434,United Utilities Water Limited,104982
WARRINGTON BOROUGH COUNCIL,http://statistics.data.gov.uk/id/local-authority/00EU,ER0,Bus Interchange,44460,Water & Sewerage Chg,240000,05-Dec-12,1900105789,1948,United Utilities Water Limited,104982
WARRINGTON BOROUGH COUNCIL,http://statistics.data.gov.uk/id/local-authority/00EU,NCS,OP Daycare,54540,Water & Sewerage Chg,240000,05-Dec-12,1900105789,1957,United Utilities Water Limited,104982
WARRINGTON BOROUGH COUNCIL,http://statistics.data.gov.uk/id/local-authority/00EU,ER1,Smallholdings,41425,Water & Sewerage Chg,240000,05-Dec-12,1900105789,2256,United Utilities Water Limited,104982
WARRINGTON BOROUGH COUNCIL,http://statistics.data.gov.uk/id/local-authority/00EU,NCS,Padgate House,54760,Water & Sewerage Chg,240000,05-Dec-12,1900105789,2270,United Utilities Water Limited,104982
WARRINGTON BOROUGH COUNCIL,http://statistics.data.gov.uk/id/local-authority/00EU,ER1,School Brow Depot,41330,Water & Sewerage Chg,240000,05-Dec-12,1900105789,3527,United Utilities Water Limited,104982
WARRINGTON BOROUGH COUNCIL,http://statistics.data.gov.uk/id/local-authority/00EU,ER1,Woolston Depot,41331,Water & Sewerage Chg,240000,05-Dec-12,1900105789,5514,United Utilities Water Limited,104982
WARRINGTON BOROUGH COUNCIL,http://statistics.data.gov.uk/id/local-authority/00EU,ER0,Markets,43711,Water & Sewerage Chg,240000,05-Dec-12,1900105789,9717,United Utilities Water Limited,104982
WARRINGTON BOROUGH COUNCIL,http://statistics.data.gov.uk/id/local-authority/00EU,ER0,Homelessness,43650,Photocopier Curriculum,430050,03-Dec-12,1900105624,607,Ricoh Uk Ltd,104986
WARRINGTON BOROUGH COUNCIL,http://statistics.data.gov.uk/id/local-authority/00EU,NCS,Care Purchase Budget,54490,CP ExternalOther Exp,440800,12-Dec-12,1900106608,25000,Old Rectory Private Nursing Home,104990
WARRINGTON BOROUGH COUNCIL,http://statistics.data.gov.uk/id/local-authority/00EU,NCS,Care Purchase Budget,54490,CP ExternalOther Exp,440800,17-Dec-12,1900106908,2275,Old Rectory Private Nursing Home,104990
WARRINGTON BOROUGH COUNCIL,http://statistics.data.gov.uk/id/local-authority/00EU,CHL,DSG Early Years PVI Settings,32417,Private & Voluntary 4 Year Olds,470150,18-Dec-12,1900107181,4183,The Old Vicarage,104991
WARRINGTON BOROUGH COUNCIL,http://statistics.data.gov.uk/id/local-authority/00EU,CHL,DSG Early Years PVI Settings,32417,Private & Voluntary 3 Year Olds,470100,18-Dec-12,1900107260,10737,The Old Vicarage,104991
WARRINGTON BOROUGH COUNCIL,http://statistics.data.gov.uk/id/local-authority/00EU,CYP,Primary,81001,ICT Comms - Equipment Purchase,450100,11-Dec-12,1900106055,791,Phoenix Software Ltd,105022
WARRINGTON BOROUGH COUNCIL,http://statistics.data.gov.uk/id/local-authority/00EU,NCS,Care Purchase - Learning Disability,54450,CP-Domicil.External,440950,21-Dec-12,1900107502,650,P S S,105048
WARRINGTON BOROUGH COUNCIL,http://statistics.data.gov.uk/id/local-authority/00EU,CHL,DSG Early Years PVI Settings,32417,Private & Voluntary 4 Year Olds,470150,18-Dec-12,1900107182,2426,The Quays Day Nursery,105052
WARRINGTON BOROUGH COUNCIL,http://statistics.data.gov.uk/id/local-authority/00EU,CHL,DSG Early Years PVI Settings,32417,Private & Voluntary 3 Year Olds,470100,18-Dec-12,1900107261,8283,The Quays Day Nursery,105052
WARRINGTON BOROUGH COUNCIL,http://statistics.data.gov.uk/id/local-authority/00EU,NCS,Care Purchase - Mental Health Team 3,54250,CP-Domicil.External,440950,12-Dec-12,1900106614,1986,Medico Nursing and Homecare,105063
WARRINGTON BOROUGH COUNCIL,http://statistics.data.gov.uk/id/local-authority/00EU,NCS,Care Purchase -OP & OT East,54430,CP-Domicil.External,440950,12-Dec-12,1900106614,3978,Medico Nursing and Homecare,105063
WARRINGTON BOROUGH COUNCIL,http://statistics.data.gov.uk/id/local-authority/00EU,NCS,Care Purchase - OP & OT South,54480,CP-Domicil.External,440950,12-Dec-12,1900106614,4014,Medico Nursing and Homecare,105063
WARRINGTON BOROUGH COUNCIL,http://statistics.data.gov.uk/id/local-authority/00EU,NCS,Care Purchase - OP & OT West,54470,CP-Domicil.External,440950,12-Dec-12,1900106614,5257,Medico Nursing and Homecare,105063
WARRINGTON BOROUGH COUNCIL,http://statistics.data.gov.uk/id/local-authority/00EU,NCS,Care Purchase - OP & OT Central,54420,CP-Domicil.External,440950,12-Dec-12,1900106614,7054,Medico Nursing and Homecare,105063
WARRINGTON BOROUGH COUNCIL,http://statistics.data.gov.uk/id/local-authority/00EU,NCS,Care Purchase - PD,54440,CP-Domicil.External,440950,12-Dec-12,1900106614,7453,Medico Nursing and Homecare,105063
WARRINGTON BOROUGH COUNCIL,http://statistics.data.gov.uk/id/local-authority/00EU,NCS,Care Purchase Budget,54490,CP ExternalOther Exp,440800,10-Dec-12,1900105947,4615,Rosevilla Residential Home,105084
WARRINGTON BOROUGH COUNCIL,http://statistics.data.gov.uk/id/local-authority/00EU,NCS,Care Purchase Budget,54490,CP ExternalOther Exp,440800,12-Dec-12,1900106594,13000,Rosevilla Residential Home,105084
WARRINGTON BOROUGH COUNCIL,http://statistics.data.gov.uk/id/local-authority/00EU,NCS,Care Purchase Budget,54490,CP ExternalOther Exp,440800,21-Dec-12,1900107498,5564,Rosevilla Residential Home,105084
WARRINGTON BOROUGH COUNCIL,http://statistics.data.gov.uk/id/local-authority/00EU,NCS,Care Purchase - Learning Disability,54450,CP-LongStayExternal,441150,21-Dec-12,1900107544,18603,St Helens Mbc,105097
WARRINGTON BOROUGH COUNCIL,http://statistics.data.gov.uk/id/local-authority/00EU,NCS,James Phoenix House,54720,Equipment Purchase & Contract,400000,14-Dec-12,1900106846,592,Scan Mobility,105107
WARRINGTON BOROUGH COUNCIL,http://statistics.data.gov.uk/id/local-authority/00EU,NCS,Care Purchase - PD,54440,CP-LongStayExternal,441150,18-Dec-12,1900107004,4584,Scope,105109
WARRINGTON BOROUGH COUNCIL,http://statistics.data.gov.uk/id/local-authority/00EU,NCS,Care Purchase - Mental Health Team 1,54230,CP-Domicil.External,440950,20-Dec-12,1900107425,544,Premier Care Cheshire Ltd,105142
WARRINGTON BOROUGH COUNCIL,http://statistics.data.gov.uk/id/local-authority/00EU,NCS,Care Purchase - OP & OT Central,54420,CP-Domicil.External,440950,20-Dec-12,1900107425,1352,Premier Care Cheshire Ltd,105142
WARRINGTON BOROUGH COUNCIL,http://statistics.data.gov.uk/id/local-authority/00EU,NCS,Care Purchase - Mental Health Team 2,54240,CP-Domicil.External,440950,20-Dec-12,1900107425,1578,Premier Care Cheshire Ltd,105142
WARRINGTON BOROUGH COUNCIL,http://statistics.data.gov.uk/id/local-authority/00EU,NCS,Care Purchase - Learning Disability,54450,CP-Domicil.External,440950,20-Dec-12,1900107425,2002,Premier Care Cheshire Ltd,105142
WARRINGTON BOROUGH COUNCIL,http://statistics.data.gov.uk/id/local-authority/00EU,NCS,Care Purchase - OP & OT South,54480,CP-Domicil.External,440950,20-Dec-12,1900107425,7452,Premier Care Cheshire Ltd,105142
WARRINGTON BOROUGH COUNCIL,http://statistics.data.gov.uk/id/local-authority/00EU,NCS,Care Purchase - PD,54440,CP-Domicil.External,440950,20-Dec-12,1900107425,8767,Premier Care Cheshire Ltd,105142
WARRINGTON BOROUGH COUNCIL,http://statistics.data.gov.uk/id/local-authority/00EU,NCS,Care Purchase - OP & OT Central,54420,CP-Domicil.External,440950,20-Dec-12,1900107425,13664,Premier Care Cheshire Ltd,105142
WARRINGTON BOROUGH COUNCIL,http://statistics.data.gov.uk/id/local-authority/00EU,NCS,Care Purchase - OP & OT West,54470,CP-Domicil.External,440950,20-Dec-12,1900107425,15744,Premier Care Cheshire Ltd,105142
WARRINGTON BOROUGH COUNCIL,http://statistics.data.gov.uk/id/local-authority/00EU,NCS,Care Purchase -OP & OT East,54430,CP-Domicil.External,440950,20-Dec-12,1900107425,17324,Premier Care Cheshire Ltd,105142
WARRINGTON BOROUGH COUNCIL,http://statistics.data.gov.uk/id/local-authority/00EU,NCS,Care Purchase - PD,54440,Supporting People - External,441250,20-Dec-12,1900107425,593,Premier Care Cheshire Ltd,105142
WARRINGTON BOROUGH COUNCIL,http://statistics.data.gov.uk/id/local-authority/00EU,NCS,Care Purchase Budget,54490,CP - Cont Care - External,441350,20-Dec-12,1900107425,4742,Premier Care Cheshire Ltd,105142
WARRINGTON BOROUGH COUNCIL,http://statistics.data.gov.uk/id/local-authority/00EU,NCS,Care Purchase Budget,54490,CP ExternalOther Exp,440800,10-Dec-12,1900105939,4582,Summerville Nursing Home -Private C,105162
WARRINGTON BOROUGH COUNCIL,http://statistics.data.gov.uk/id/local-authority/00EU,NCS,Care Purchase Budget,54490,CP ExternalOther Exp,440800,12-Dec-12,1900106647,63000,Summerville Nursing Home -Private C,105162
WARRINGTON BOROUGH COUNCIL,http://statistics.data.gov.uk/id/local-authority/00EU,ER0,Customer Contact Centre,52201,Ticket Master Charges,490450,10-Dec-12,1900105892,1874,Tansey'S Coaches Of Warrington,105166
WARRINGTON BOROUGH COUNCIL,http://statistics.data.gov.uk/id/local-authority/00EU,NCS,Care Purchase Budget,54490,CP ExternalOther Exp,440800,12-Dec-12,1900106607,25000,Thelwall Grange Nursing Home,105174
WARRINGTON BOROUGH COUNCIL,http://statistics.data.gov.uk/id/local-authority/00EU,NCS,Care Purchase Budget,54490,CP ExternalOther Exp,440800,12-Dec-12,1900106661,16294,Thelwall Grange Nursing Home,105174
WARRINGTON BOROUGH COUNCIL,http://statistics.data.gov.uk/id/local-authority/00EU,NCS,Care Purchase Budget,54490,CP ExternalOther Exp,440800,12-Dec-12,1900106651,60000,Minster Care Management Ltd,105179
WARRINGTON BOROUGH COUNCIL,http://statistics.data.gov.uk/id/local-authority/00EU,CYP,Primary,81001,ICT Comms - Equipment Purchase,450100,18-Dec-12,1900106964,3575,Unitec Communications Ltd,105211
WARRINGTON BOROUGH COUNCIL,http://statistics.data.gov.uk/id/local-authority/00EU,ER0,Project Delivery,43830,Rent Of Premises,220000,20-Dec-12,1900107433,8602,Warrington 2000+,105227
WARRINGTON BOROUGH COUNCIL,http://statistics.data.gov.uk/id/local-authority/00EU,NCS,Care Purchase Budget,54490,CP ExternalOther Exp,440800,10-Dec-12,1900105972,593,Warrington Community Care,105229
WARRINGTON BOROUGH COUNCIL,http://statistics.data.gov.uk/id/local-authority/00EU,NCS,Care Purchase Budget,54490,CP ExternalOther Exp,440800,12-Dec-12,1900106652,72000,Warrington Community Care,105229
WARRINGTON BOROUGH COUNCIL,http://statistics.data.gov.uk/id/local-authority/00EU,NCS,SLA - Grant Account,53920,Payment of Grants,470050,17-Dec-12,1900106888,3837,Warrington Community Care,105229
WARRINGTON BOROUGH COUNCIL,http://statistics.data.gov.uk/id/local-authority/00EU,NCS,SLA - Grant Account,53920,Payment of Grants,470050,17-Dec-12,1900106889,2500,Warrington Community Care,105229
WARRINGTON BOROUGH COUNCIL,http://statistics.data.gov.uk/id/local-authority/00EU,NCS,Care Purchase Budget,54490,CP ExternalOther Exp,440800,21-Dec-12,1900107500,593,Warrington Community Care,105229
WARRINGTON BOROUGH COUNCIL,http://statistics.data.gov.uk/id/local-authority/00EU,NCS,Care Purchase - Learning Disability,54450,CP-LongStayExternal,441150,10-Dec-12,1900105949,32781,WCL - Warrington Community Living,105230
WARRINGTON BOROUGH COUNCIL,http://statistics.data.gov.uk/id/local-authority/00EU,NCS,Care Purchase Budget,54490,Voids,515150,10-Dec-12,1900105949,3549,WCL - Warrington Community Living,105230
WARRINGTON BOROUGH COUNCIL,http://statistics.data.gov.uk/id/local-authority/00EU,NCS,Care Purchase - Learning Disability,54450,CP-Nursing Care-External,441200,10-Dec-12,1900105979,54451,WCL - Warrington Community Living,105230
WARRINGTON BOROUGH COUNCIL,http://statistics.data.gov.uk/id/local-authority/00EU,NCS,Care Purchase Budget,54490,CP Free Nursing Care External,443500,10-Dec-12,1900105979,3100,WCL - Warrington Community Living,105230
WARRINGTON BOROUGH COUNCIL,http://statistics.data.gov.uk/id/local-authority/00EU,NCS,Care Purchase - Learning Disability,54450,CP-Domicil.External,440950,12-Dec-12,1900106664,95828,WCL - Warrington Community Living,105230
WARRINGTON BOROUGH COUNCIL,http://statistics.data.gov.uk/id/local-authority/00EU,NCS,Care Purchase - Learning Disability,54450,Supporting People - External,441250,12-Dec-12,1900106664,11413,WCL - Warrington Community Living,105230
WARRINGTON BOROUGH COUNCIL,http://statistics.data.gov.uk/id/local-authority/00EU,NCS,Care Purchase Budget,54490,Voids,515150,12-Dec-12,1900106664,9947,WCL - Warrington Community Living,105230
WARRINGTON BOROUGH COUNCIL,http://statistics.data.gov.uk/id/local-authority/00EU,NCS,Care Purchase - Learning Disability,54450,CP-LongStayExternal,441150,19-Dec-12,1900107374,32781,WCL - Warrington Community Living,105230
WARRINGTON BOROUGH COUNCIL,http://statistics.data.gov.uk/id/local-authority/00EU,NCS,Care Purchase Budget,54490,Voids,515150,19-Dec-12,1900107374,3549,WCL - Warrington Community Living,105230
WARRINGTON BOROUGH COUNCIL,http://statistics.data.gov.uk/id/local-authority/00EU,NCS,Care Purchase - Learning Disability,54450,CP-Domicil.External,440950,20-Dec-12,1900107423,98259,WCL - Warrington Community Living,105230
WARRINGTON BOROUGH COUNCIL,http://statistics.data.gov.uk/id/local-authority/00EU,NCS,Care Purchase - Learning Disability,54450,Supporting People - External,441250,20-Dec-12,1900107423,11413,WCL - Warrington Community Living,105230
WARRINGTON BOROUGH COUNCIL,http://statistics.data.gov.uk/id/local-authority/00EU,NCS,Care Purchase Budget,54490,Voids,515150,20-Dec-12,1900107423,9947,WCL - Warrington Community Living,105230
WARRINGTON BOROUGH COUNCIL,http://statistics.data.gov.uk/id/local-authority/00EU,NCS,Care Purchase - Learning Disability,54450,CP-Nursing Care-External,441200,20-Dec-12,1900107424,54863,WCL - Warrington Community Living,105230
WARRINGTON BOROUGH COUNCIL,http://statistics.data.gov.uk/id/local-authority/00EU,NCS,Care Purchase Budget,54490,CP Free Nursing Care External,443500,20-Dec-12,1900107424,3100,WCL - Warrington Community Living,105230
WARRINGTON BOROUGH COUNCIL,http://statistics.data.gov.uk/id/local-authority/00EU,NCS,Care Purchase Budget,54490,CP ExternalOther Exp,440800,10-Dec-12,1900105945,1681,Waverley House,105242
WARRINGTON BOROUGH COUNCIL,http://statistics.data.gov.uk/id/local-authority/00EU,NCS,Care Purchase Budget,54490,CP ExternalOther Exp,440800,12-Dec-12,1900106611,33000,Waverley House,105242
WARRINGTON BOROUGH COUNCIL,http://statistics.data.gov.uk/id/local-authority/00EU,NCS,Care Purchase Budget,54490,CP Free Nursing Care External,443500,03-Dec-12,1900105613,17214,Barchester Homes Ltd,105246
WARRINGTON BOROUGH COUNCIL,http://statistics.data.gov.uk/id/local-authority/00EU,NCS,Care Purchase - OP & OT West,54470,CP-LongStayExternal,441150,03-Dec-12,1900105639,1540,Barchester Homes Ltd,105246
WARRINGTON BOROUGH COUNCIL,http://statistics.data.gov.uk/id/local-authority/00EU,NCS,Care Purchase - Mental Health Team 1,54230,CP-Nursing Care-External,441200,03-Dec-12,1900105639,1712,Barchester Homes Ltd,105246
WARRINGTON BOROUGH COUNCIL,http://statistics.data.gov.uk/id/local-authority/00EU,NCS,Care Purchase - Hospital Discharge Team,54280,CP-Nursing Care-External,441200,03-Dec-12,1900105639,1712,Barchester Homes Ltd,105246
WARRINGTON BOROUGH COUNCIL,http://statistics.data.gov.uk/id/local-authority/00EU,NCS,Care Purchase -OP & OT East,54430,CP-Nursing Care-External,441200,03-Dec-12,1900105639,1712,Barchester Homes Ltd,105246
WARRINGTON BOROUGH COUNCIL,http://statistics.data.gov.uk/id/local-authority/00EU,NCS,Care Purchase - OP & OT Central,54420,CP-Nursing Care-External,441200,03-Dec-12,1900105639,6848,Barchester Homes Ltd,105246
WARRINGTON BOROUGH COUNCIL,http://statistics.data.gov.uk/id/local-authority/00EU,NCS,Care Purchase - OP & OT West,54470,CP-Nursing Care-External,441200,03-Dec-12,1900105639,28126,Barchester Homes Ltd,105246
WARRINGTON BOROUGH COUNCIL,http://statistics.data.gov.uk/id/local-authority/00EU,NCS,Care Purchase Budget,54490,CP - Cont Care - External,441350,03-Dec-12,1900105639,7893,Barchester Homes Ltd,105246
WARRINGTON BOROUGH COUNCIL,http://statistics.data.gov.uk/id/local-authority/00EU,NCS,Care Purchase - Learning Disability,54450,CP-Domicil.External,440950,18-Dec-12,1900107072,2622,Wirral Autistic Society,105251
WARRINGTON BOROUGH COUNCIL,http://statistics.data.gov.uk/id/local-authority/00EU,NCS,Care Purchase - Learning Disability,54450,CP-Day Care-External,441100,18-Dec-12,1900107072,1180,Wirral Autistic Society,105251
WARRINGTON BOROUGH COUNCIL,http://statistics.data.gov.uk/id/local-authority/00EU,HOL,Insurance Fund,91100,Insurance Claims,443400,18-Dec-12,1900106956,2850,Zurich Insurance Company,105263
WARRINGTON BOROUGH COUNCIL,http://statistics.data.gov.uk/id/local-authority/00EU,NCS,Care Purchase - PD,54440,CP-Domicil.External,440950,12-Dec-12,1900106617,913,Castlerock Care Services,105279
WARRINGTON BOROUGH COUNCIL,http://statistics.data.gov.uk/id/local-authority/00EU,NCS,Care Purchase -OP & OT East,54430,CP-Domicil.External,440950,12-Dec-12,1900106617,1194,Castlerock Care Services,105279
WARRINGTON BOROUGH COUNCIL,http://statistics.data.gov.uk/id/local-authority/00EU,NCS,Care Purchase - OP & OT South,54480,CP-Domicil.External,440950,12-Dec-12,1900106617,1887,Castlerock Care Services,105279
WARRINGTON BOROUGH COUNCIL,http://statistics.data.gov.uk/id/local-authority/00EU,NCS,Care Purchase - OP & OT Central,54420,CP-Domicil.External,440950,12-Dec-12,1900106617,2842,Castlerock Care Services,105279
WARRINGTON BOROUGH COUNCIL,http://statistics.data.gov.uk/id/local-authority/00EU,NCS,Care Purchase - PD,54440,CP-Domicil.External,440950,12-Dec-12,1900106620,950,Castlerock Care Services,105279
WARRINGTON BOROUGH COUNCIL,http://statistics.data.gov.uk/id/local-authority/00EU,NCS,Care Purchase -OP & OT East,54430,CP-Domicil.External,440950,12-Dec-12,1900106620,1198,Castlerock Care Services,105279
WARRINGTON BOROUGH COUNCIL,http://statistics.data.gov.uk/id/local-authority/00EU,NCS,Care Purchase - OP & OT South,54480,CP-Domicil.External,440950,12-Dec-12,1900106620,1785,Castlerock Care Services,105279
WARRINGTON BOROUGH COUNCIL,http://statistics.data.gov.uk/id/local-authority/00EU,NCS,Care Purchase - OP & OT Central,54420,CP-Domicil.External,440950,12-Dec-12,1900106620,2472,Castlerock Care Services,105279
WARRINGTON BOROUGH COUNCIL,http://statistics.data.gov.uk/id/local-authority/00EU,NCS,Care Purchase - PD,54440,CP-Domicil.External,440950,12-Dec-12,1900106625,824,Castlerock Care Services,105279
WARRINGTON BOROUGH COUNCIL,http://statistics.data.gov.uk/id/local-authority/00EU,NCS,Care Purchase -OP & OT East,54430,CP-Domicil.External,440950,12-Dec-12,1900106625,1038,Castlerock Care Services,105279
WARRINGTON BOROUGH COUNCIL,http://statistics.data.gov.uk/id/local-authority/00EU,NCS,Care Purchase - OP & OT South,54480,CP-Domicil.External,440950,12-Dec-12,1900106625,1848,Castlerock Care Services,105279
WARRINGTON BOROUGH COUNCIL,http://statistics.data.gov.uk/id/local-authority/00EU,NCS,Care Purchase - OP & OT Central,54420,CP-Domicil.External,440950,12-Dec-12,1900106625,2357,Castlerock Care Services,105279
WARRINGTON BOROUGH COUNCIL,http://statistics.data.gov.uk/id/local-authority/00EU,NCS,Care Purchase - PD,54440,CP-Domicil.External,440950,12-Dec-12,1900106628,972,Castlerock Care Services,105279
WARRINGTON BOROUGH COUNCIL,http://statistics.data.gov.uk/id/local-authority/00EU,NCS,Care Purchase -OP & OT East,54430,CP-Domicil.External,440950,12-Dec-12,1900106628,1083,Castlerock Care Services,105279
WARRINGTON BOROUGH COUNCIL,http://statistics.data.gov.uk/id/local-authority/00EU,NCS,Care Purchase - OP & OT South,54480,CP-Domicil.External,440950,12-Dec-12,1900106628,1772,Castlerock Care Services,105279
WARRINGTON BOROUGH COUNCIL,http://statistics.data.gov.uk/id/local-authority/00EU,NCS,Care Purchase - OP & OT Central,54420,CP-Domicil.External,440950,12-Dec-12,1900106628,2641,Castlerock Care Services,105279
WARRINGTON BOROUGH COUNCIL,http://statistics.data.gov.uk/id/local-authority/00EU,CHL,Child Disability,32212,CP-Domicil.External,440950,12-Dec-12,1900106630,2421,Castlerock Care Services,105279
WARRINGTON BOROUGH COUNCIL,http://statistics.data.gov.uk/id/local-authority/00EU,CHL,Child Disability,32212,CP-Domicil.External,440950,24-Dec-12,1900107605,631,Castlerock Care Services,105279
WARRINGTON BOROUGH COUNCIL,http://statistics.data.gov.uk/id/local-authority/00EU,CHL,Child Disability,32212,CP-Domicil.External,440950,24-Dec-12,1900107606,2712,Castlerock Care Services,105279
WARRINGTON BOROUGH COUNCIL,http://statistics.data.gov.uk/id/local-authority/00EU,ER0,ICT & Business Improvement,23020,ICT Comms - Line Rental,450200,07-Dec-12,1900105823,7825,Thus Plc,105294
WARRINGTON BOROUGH COUNCIL,http://statistics.data.gov.uk/id/local-authority/00EU,CEX,Coroners Service,11100,Analysts Fees,440300,13-Dec-12,1900106744,1890,Roar Forensics Ltd,105295
WARRINGTON BOROUGH COUNCIL,http://statistics.data.gov.uk/id/local-authority/00EU,ER0,Hatters Row,43710,Servicing Contracts,200150,12-Dec-12,1900106681,591,Chubb Fire and Security Ltd,105335
WARRINGTON BOROUGH COUNCIL,http://statistics.data.gov.uk/id/local-authority/00EU,ER0,Hatters Row,43710,Servicing Contracts,200150,13-Dec-12,1900106690,591,Chubb Fire and Security Ltd,105335
WARRINGTON BOROUGH COUNCIL,http://statistics.data.gov.uk/id/local-authority/00EU,ER1,School Brow Depot,41330,Response Maintenance,200000,14-Dec-12,1700006086,2041,Avery Weigh-Tronix,105447
WARRINGTON BOROUGH COUNCIL,http://statistics.data.gov.uk/id/local-authority/00EU,NCS,The Recreation Centre,51008,Servicing Contracts,200150,10-Dec-12,1900105991,831,B M P Electrical Engineering Servic,105449
WARRINGTON BOROUGH COUNCIL,http://statistics.data.gov.uk/id/local-authority/00EU,ENO,Housing Projects,82008,Disabled Persons Grant 1996,554000,10-Dec-12,1900106010,6120,Domestic Services And Installations,105462
WARRINGTON BOROUGH COUNCIL,http://statistics.data.gov.uk/id/local-authority/00EU,CEX,Police and Crime Commissioner Election,11640,External Printing,430100,11-Dec-12,1900106105,9104,Print Image Network Limited,105535
WARRINGTON BOROUGH COUNCIL,http://statistics.data.gov.uk/id/local-authority/00EU,CEX,Police and Crime Commissioner Election,11640,External Printing,430100,13-Dec-12,1900106765,23968,Print Image Network Limited,105535
WARRINGTON BOROUGH COUNCIL,http://statistics.data.gov.uk/id/local-authority/00EU,ENO,Housing Projects,82008,Disabled Persons Grant 1996,554000,10-Dec-12,1900105978,5400,Acorn Building Projects Ltd,105557
WARRINGTON BOROUGH COUNCIL,http://statistics.data.gov.uk/id/local-authority/00EU,ENO,Housing Projects,82008,Disabled Persons Grant 1996,554000,12-Dec-12,1900106606,9500,Acorn Building Projects Ltd,105557
WARRINGTON BOROUGH COUNCIL,http://statistics.data.gov.uk/id/local-authority/00EU,NCS,Care Purchase - Learning Disability,54450,Direct Payments,552000,11-Dec-12,1900106294,1240,Redacted Personal Data,105576
WARRINGTON BOROUGH COUNCIL,http://statistics.data.gov.uk/id/local-authority/00EU,NCS,Care Purchase - Learning Disability,54450,Direct Payments,552000,11-Dec-12,1900106296,538,Redacted Personal Data,105598
WARRINGTON BOROUGH COUNCIL,http://statistics.data.gov.uk/id/local-authority/00EU,NCS,Care Purchase - Learning Disability,54450,Direct Payments,552000,11-Dec-12,1900106298,1010,Redacted Personal Data,105621
WARRINGTON BOROUGH COUNCIL,http://statistics.data.gov.uk/id/local-authority/00EU,NCS,Care Purchase - Learning Disability,54450,Direct Payments,552000,11-Dec-12,1900106302,638,Redacted Personal Data,105625
WARRINGTON BOROUGH COUNCIL,http://statistics.data.gov.uk/id/local-authority/00EU,NCS,Care Purchase - Learning Disability,54450,Direct Payments,552000,11-Dec-12,1900106308,669,Redacted Personal Data,105641
WARRINGTON BOROUGH COUNCIL,http://statistics.data.gov.uk/id/local-authority/00EU,ER0,Palmyra Sq South,43114,Non BMP General Repairs,200050,19-Dec-12,1900107269,534,Manchester Working Limited,105646
WARRINGTON BOROUGH COUNCIL,http://statistics.data.gov.uk/id/local-authority/00EU,ER1,Cemeteries,41410,Non BMP General Repairs,200050,19-Dec-12,1900107269,563,Manchester Working Limited,105646
WARRINGTON BOROUGH COUNCIL,http://statistics.data.gov.uk/id/local-authority/00EU,NCS,Houghton Hall Intermediate Care,54770,Non BMP General Repairs,200050,19-Dec-12,1900107269,866,Manchester Working Limited,105646
WARRINGTON BOROUGH COUNCIL,http://statistics.data.gov.uk/id/local-authority/00EU,NCS,Spencer House,53280,Non BMP General Repairs,200050,19-Dec-12,1900107269,1291,Manchester Working Limited,105646
WARRINGTON BOROUGH COUNCIL,http://statistics.data.gov.uk/id/local-authority/00EU,CEX,Irwell Road Training Centre,21000,Non BMP General Repairs,200050,19-Dec-12,1900107269,1994,Manchester Working Limited,105646
WARRINGTON BOROUGH COUNCIL,http://statistics.data.gov.uk/id/local-authority/00EU,NCS,Care Purchase - PD,54440,Direct Payments,552000,11-Dec-12,1900106309,784,Redacted Personal Data,105665
WARRINGTON BOROUGH COUNCIL,http://statistics.data.gov.uk/id/local-authority/00EU,NCS,Care Purchase - OP & OT Central,54420,Direct Payments,552000,11-Dec-12,1900106310,693,Redacted Personal Data,105666
WARRINGTON BOROUGH COUNCIL,http://statistics.data.gov.uk/id/local-authority/00EU,NCS,Care Purchase - OP & OT South,54480,Direct Payments,552000,11-Dec-12,1900106316,1570,Redacted Personal Data,105687
WARRINGTON BOROUGH COUNCIL,http://statistics.data.gov.uk/id/local-authority/00EU,CHL,DSG Early Years PVI Settings,32417,Private & Voluntary 4 Year Olds,470150,18-Dec-12,1900107137,5797,Kids Planet Warrington,105710
WARRINGTON BOROUGH COUNCIL,http://statistics.data.gov.uk/id/local-authority/00EU,CHL,DSG Early Years PVI Settings,32417,Private & Voluntary 3 Year Olds,470100,18-Dec-12,1900107212,10458,Kids Planet Warrington,105710
WARRINGTON BOROUGH COUNCIL,http://statistics.data.gov.uk/id/local-authority/00EU,CHL,DSG Early Years PVI Settings,32417,Private & Voluntary 3 Year Olds,470100,18-Dec-12,1900107213,2381,Kids Planet Warrington,105710
WARRINGTON BOROUGH COUNCIL,http://statistics.data.gov.uk/id/local-authority/00EU,NCS,Care Purchase - PD,54440,Direct Payments,552000,11-Dec-12,1900106318,2912,Redacted Personal Data,105727
WARRINGTON BOROUGH COUNCIL,http://statistics.data.gov.uk/id/local-authority/00EU,NCS,Care Purchase - OP & OT South,54480,Direct Payments,552000,11-Dec-12,1900106320,964,Redacted Personal Data,105729
WARRINGTON BOROUGH COUNCIL,http://statistics.data.gov.uk/id/local-authority/00EU,NCS,Care Purchase - PD,54440,Direct Payments,552000,11-Dec-12,1900106322,2092,Redacted Personal Data,105758
WARRINGTON BOROUGH COUNCIL,http://statistics.data.gov.uk/id/local-authority/00EU,NCS,Care Purchase -OP & OT East,54430,CP-Nursing Care-External,441200,10-Dec-12,1900105968,577,CareConcepts (Appleton) Ltd,105804
WARRINGTON BOROUGH COUNCIL,http://statistics.data.gov.uk/id/local-authority/00EU,NCS,Care Purchase - OP & OT South,54480,CP-LongStayExternal,441150,10-Dec-12,1900105981,5316,CareConcepts (Appleton) Ltd,105804
WARRINGTON BOROUGH COUNCIL,http://statistics.data.gov.uk/id/local-authority/00EU,NCS,Care Purchase - OP & OT West,54470,CP-Nursing Care-External,441200,10-Dec-12,1900105981,908,CareConcepts (Appleton) Ltd,105804
WARRINGTON BOROUGH COUNCIL,http://statistics.data.gov.uk/id/local-authority/00EU,NCS,Care Purchase -OP & OT East,54430,CP-Nursing Care-External,441200,10-Dec-12,1900105981,1239,CareConcepts (Appleton) Ltd,105804
WARRINGTON BOROUGH COUNCIL,http://statistics.data.gov.uk/id/local-authority/00EU,NCS,Care Purchase - Hospital Discharge Team,54280,CP-Nursing Care-External,441200,10-Dec-12,1900105981,2879,CareConcepts (Appleton) Ltd,105804
WARRINGTON BOROUGH COUNCIL,http://statistics.data.gov.uk/id/local-authority/00EU,NCS,Care Purchase - OP & OT South,54480,CP-Nursing Care-External,441200,10-Dec-12,1900105981,26304,CareConcepts (Appleton) Ltd,105804
WARRINGTON BOROUGH COUNCIL,http://statistics.data.gov.uk/id/local-authority/00EU,NCS,Care Purchase Budget,54490,CP - Cont Care - External,441350,10-Dec-12,1900105981,25114,CareConcepts (Appleton) Ltd,105804
WARRINGTON BOROUGH COUNCIL,http://statistics.data.gov.uk/id/local-authority/00EU,NCS,Care Purchase Budget,54490,CP Free Nursing Care External,443500,10-Dec-12,1900105981,14783,CareConcepts (Appleton) Ltd,105804
WARRINGTON BOROUGH COUNCIL,http://statistics.data.gov.uk/id/local-authority/00EU,NCS,Care Purchase Budget,54490,Voids,515150,10-Dec-12,1900105981,3544,CareConcepts (Appleton) Ltd,105804
WARRINGTON BOROUGH COUNCIL,http://statistics.data.gov.uk/id/local-authority/00EU,NCS,Care Purchase - IC,54290,CP - Intermediate Care - External,441300,19-Dec-12,1900107365,35202,CareConcepts (Appleton) Ltd,105804
WARRINGTON BOROUGH COUNCIL,http://statistics.data.gov.uk/id/local-authority/00EU,NCS,Care Purchase - OP & OT Central,54420,CP-Day Care-External,441100,21-Dec-12,1900107584,1534,CareConcepts (Appleton) Ltd,105804
WARRINGTON BOROUGH COUNCIL,http://statistics.data.gov.uk/id/local-authority/00EU,NCS,Care Purchase - OP & OT West,54470,CP-Day Care-External,441100,21-Dec-12,1900107584,2769,CareConcepts (Appleton) Ltd,105804
WARRINGTON BOROUGH COUNCIL,http://statistics.data.gov.uk/id/local-authority/00EU,NCS,Care Purchase - OP & OT South,54480,CP-Day Care-External,441100,21-Dec-12,1900107584,4259,CareConcepts (Appleton) Ltd,105804
WARRINGTON BOROUGH COUNCIL,http://statistics.data.gov.uk/id/local-authority/00EU,NCS,Care Purchase -OP & OT East,54430,CP-Day Care-External,441100,21-Dec-12,1900107584,6311,CareConcepts (Appleton) Ltd,105804
WARRINGTON BOROUGH COUNCIL,http://statistics.data.gov.uk/id/local-authority/00EU,NCS,Care Purchase Budget,54490,Voids,515150,21-Dec-12,1900107584,4558,CareConcepts (Appleton) Ltd,105804
WARRINGTON BOROUGH COUNCIL,http://statistics.data.gov.uk/id/local-authority/00EU,NCS,Care Purchase - OP & OT Central,54420,Direct Payments,552000,11-Dec-12,1900106323,576,Redacted Personal Data,105861
WARRINGTON BOROUGH COUNCIL,http://statistics.data.gov.uk/id/local-authority/00EU,CHL,DSG Early Years PVI Settings,32417,Private & Voluntary 4 Year Olds,470150,18-Dec-12,1900107124,2110,Croft  Pre school,105880
WARRINGTON BOROUGH COUNCIL,http://statistics.data.gov.uk/id/local-authority/00EU,CHL,DSG Early Years PVI Settings,32417,Private & Voluntary 3 Year Olds,470100,18-Dec-12,1900107198,2989,Croft  Pre school,105880
WARRINGTON BOROUGH COUNCIL,http://statistics.data.gov.uk/id/local-authority/00EU,NCS,Care Purchase - PD,54440,Direct Payments,552000,11-Dec-12,1900106325,1273,Redacted Personal Data,105909
WARRINGTON BOROUGH COUNCIL,http://statistics.data.gov.uk/id/local-authority/00EU,CEX,HoS Solicitor,11000,Post Mortem Fees-Rep,440250,13-Dec-12,1900106751,4799,Dr Suboda M Weerasinghe,105924
WARRINGTON BOROUGH COUNCIL,http://statistics.data.gov.uk/id/local-authority/00EU,NCS,Care Purchase - Learning Disability,54450,Direct Payments,552000,11-Dec-12,1900106327,637,Redacted Personal Data,106066
WARRINGTON BOROUGH COUNCIL,http://statistics.data.gov.uk/id/local-authority/00EU,ER0,Environ. Eng. Cons.,44110,Car Leasing Charges,350000,10-Dec-12,1900105954,706,Alphabet UK Fleet Management,106080
WARRINGTON BOROUGH COUNCIL,http://statistics.data.gov.uk/id/local-authority/00EU,ER0,Environ. Eng. Cons.,44110,Car Leasing Charges,350000,10-Dec-12,1900105954,2911,Alphabet UK Fleet Management,106080
WARRINGTON BOROUGH COUNCIL,http://statistics.data.gov.uk/id/local-authority/00EU,CHL,CiC Team 2,31101,Car Leasing Charges,350000,10-Dec-12,1900105958,1952,Alphabet UK Fleet Management,106080
WARRINGTON BOROUGH COUNCIL,http://statistics.data.gov.uk/id/local-authority/00EU,CEX,Training & Development,22440,Car Leasing Charges,350000,12-Dec-12,1900106668,970,Alphabet UK Fleet Management,106080
WARRINGTON BOROUGH COUNCIL,http://statistics.data.gov.uk/id/local-authority/00EU,ER0,Customer Contact Centre,52201,Rent Of Premises,220000,07-Dec-12,1900105879,14250,Whitecrest Estate Agents,106130
WARRINGTON BOROUGH COUNCIL,http://statistics.data.gov.uk/id/local-authority/00EU,NCS,Care Purchase - PD,54440,Direct Payments,552000,11-Dec-12,1900106330,729,Redacted Personal Data,106145
WARRINGTON BOROUGH COUNCIL,http://statistics.data.gov.uk/id/local-authority/00EU,CEX,Coroners Service,11100,Post Mortem Fees-Rep,440250,13-Dec-12,1900106709,1096,Alder Hey Children�s NHS Foundation,106199
WARRINGTON BOROUGH COUNCIL,http://statistics.data.gov.uk/id/local-authority/00EU,NCS,Care Purchase - Learning Disability,54450,CP-Domicil.External,440950,20-Dec-12,1900107453,2420,G-Map Services,106244
WARRINGTON BOROUGH COUNCIL,http://statistics.data.gov.uk/id/local-authority/00EU,CHL,Agency Placements,30904,CP ExternalOther Exp,440800,20-Dec-12,1900107455,1210,G-Map Services,106244
WARRINGTON BOROUGH COUNCIL,http://statistics.data.gov.uk/id/local-authority/00EU,NCS,Care Purchase - Learning Disability,54450,CP-Domicil.External,440950,20-Dec-12,1900107455,1815,G-Map Services,106244
WARRINGTON BOROUGH COUNCIL,http://statistics.data.gov.uk/id/local-authority/00EU,NCS,Care Purchase - OP & OT West,54470,Direct Payments,552000,11-Dec-12,1900106332,546,Redacted Personal Data,106258
WARRINGTON BOROUGH COUNCIL,http://statistics.data.gov.uk/id/local-authority/00EU,CHL,DSG Early Years PVI Settings,32417,Private & Voluntary 4 Year Olds,470150,18-Dec-12,1900107122,3312,Cheshire Day Nursery Guardian St,106265
WARRINGTON BOROUGH COUNCIL,http://statistics.data.gov.uk/id/local-authority/00EU,CHL,DSG Early Years PVI Settings,32417,Private & Voluntary 3 Year Olds,470100,18-Dec-12,1900107196,9666,Cheshire Day Nursery Guardian St,106265
WARRINGTON BOROUGH COUNCIL,http://statistics.data.gov.uk/id/local-authority/00EU,ENP,Environment & Regeneration,82000,Consult.& Prof. Serv,440000,07-Dec-12,1900105890,878,Ross Quality Control Limited,106280
WARRINGTON BOROUGH COUNCIL,http://statistics.data.gov.uk/id/local-authority/00EU,ENP,Environment & Regeneration,82000,Consult.& Prof. Serv,440000,13-Dec-12,1900106687,3029,Ross Quality Control Limited,106280
WARRINGTON BOROUGH COUNCIL,http://statistics.data.gov.uk/id/local-authority/00EU,NCS,Care Purchase - OP & OT South,54480,Direct Payments,552000,11-Dec-12,1900106333,1395,Redacted Personal Data,106294
WARRINGTON BOROUGH COUNCIL,http://statistics.data.gov.uk/id/local-authority/00EU,NCS,SLA - Grant Account,53920,Payment of Grants,470050,20-Dec-12,1900107430,24000,Volunteer Centre Warrington,106334
WARRINGTON BOROUGH COUNCIL,http://statistics.data.gov.uk/id/local-authority/00EU,CHL,DSG Early Years PVI Settings,32417,Private & Voluntary 3 Year Olds,470100,18-Dec-12,1900107202,669,Redacted Personal Data,106386
WARRINGTON BOROUGH COUNCIL,http://statistics.data.gov.uk/id/local-authority/00EU,NCS,Care Purchase - OP & OT West,54470,Direct Payments,552000,11-Dec-12,1900106335,706,Redacted Personal Data,106441
WARRINGTON BOROUGH COUNCIL,http://statistics.data.gov.uk/id/local-authority/00EU,NCS,SLA - Grant Account,53920,Payment of Grants,470050,17-Dec-12,1900106886,9250,Alzheimers Society,106508
WARRINGTON BOROUGH COUNCIL,http://statistics.data.gov.uk/id/local-authority/00EU,CHL,SCM Barrowhall Lane Primary School,33156,ICT Support - Maintenance,450600,18-Dec-12,1900107068,730,Cunninghams EPOS Solutions,106562
WARRINGTON BOROUGH COUNCIL,http://statistics.data.gov.uk/id/local-authority/00EU,CHL,SCM Woolston CE Primary School,33152,ICT Support - Maintenance,450600,18-Dec-12,1900107069,730,Cunninghams EPOS Solutions,106562
WARRINGTON BOROUGH COUNCIL,http://statistics.data.gov.uk/id/local-authority/00EU,CHL,SCM Grappenhall Heys Primary School,33166,ICT Support - Maintenance,450600,18-Dec-12,1900107070,525,Cunninghams EPOS Solutions,106562
WARRINGTON BOROUGH COUNCIL,http://statistics.data.gov.uk/id/local-authority/00EU,NCS,Care Purchase -OP & OT East,54430,CP-Nursing Care-External,441200,18-Dec-12,1900106987,1494,European Care UK Limited,106600
WARRINGTON BOROUGH COUNCIL,http://statistics.data.gov.uk/id/local-authority/00EU,NCS,Care Purchase - OP & OT South,54480,Direct Payments,552000,11-Dec-12,1900106340,666,Redacted Personal Data,106603
WARRINGTON BOROUGH COUNCIL,http://statistics.data.gov.uk/id/local-authority/00EU,NCS,Care Purchase - PD,54440,Direct Payments,552000,11-Dec-12,1900106341,855,Redacted Personal Data,106630
WARRINGTON BOROUGH COUNCIL,http://statistics.data.gov.uk/id/local-authority/00EU,CHL,Child Disability,32212,Direct Payments,552000,11-Dec-12,1900106343,687,Redacted Personal Data,106708
WARRINGTON BOROUGH COUNCIL,http://statistics.data.gov.uk/id/local-authority/00EU,NCS,Care Purchase - Learning Disability,54450,Direct Payments,552000,11-Dec-12,1900106347,668,Redacted Personal Data,106866
WARRINGTON BOROUGH COUNCIL,http://statistics.data.gov.uk/id/local-authority/00EU,CEX,Coroners Service,11100,Post Mortem Fees-Rep,440250,13-Dec-12,1900106747,4265,Dr Debdeep Dey,106869
WARRINGTON BOROUGH COUNCIL,http://statistics.data.gov.uk/id/local-authority/00EU,NCS,Care Purchase - PD,54440,CP ExternalOther Exp,440800,11-Dec-12,1900106042,649,In Depth Cleaning Services Ltd,106977
WARRINGTON BOROUGH COUNCIL,http://statistics.data.gov.uk/id/local-authority/00EU,NCS,Care Purchase - Learning Disability,54450,Direct Payments,552000,11-Dec-12,1900106356,679,Redacted Personal Data,107297
WARRINGTON BOROUGH COUNCIL,http://statistics.data.gov.uk/id/local-authority/00EU,NCS,Care Purchase - PD,54440,Direct Payments,552000,11-Dec-12,1900106358,733,Redacted Personal Data,107299
WARRINGTON BOROUGH COUNCIL,http://statistics.data.gov.uk/id/local-authority/00EU,NCS,Care Purchase - PD,54440,Direct Payments,552000,11-Dec-12,1900106359,560,Redacted Personal Data,107363
WARRINGTON BOROUGH COUNCIL,http://statistics.data.gov.uk/id/local-authority/00EU,CHL,Fostering Team,31105,Agency Supply - GF,180000,18-Dec-12,1900107094,700,Redacted Personal Data,107397
WARRINGTON BOROUGH COUNCIL,http://statistics.data.gov.uk/id/local-authority/00EU,NCS,Care Purchase -OP & OT East,54430,Direct Payments,552000,11-Dec-12,1900106361,687,Redacted Personal Data,107436
WARRINGTON BOROUGH COUNCIL,http://statistics.data.gov.uk/id/local-authority/00EU,NCS,Care Purchase - Learning Disability,54450,Direct Payments,552000,11-Dec-12,1900106362,1202,Redacted Personal Data,107437
WARRINGTON BOROUGH COUNCIL,http://statistics.data.gov.uk/id/local-authority/00EU,CYP,Secondary,81002,ICT Comms - Equipment Purchase,450100,11-Dec-12,1900106054,4955,ICT Networks Ltd,107523
WARRINGTON BOROUGH COUNCIL,http://statistics.data.gov.uk/id/local-authority/00EU,CHL,Legal Fees - Safeguarding,30100,Legal Costs Incurred,440200,07-Dec-12,1900105870,2825,Redacted Personal Data,107591
WARRINGTON BOROUGH COUNCIL,http://statistics.data.gov.uk/id/local-authority/00EU,NCS,Care Purchase - Learning Disability,54450,CP ExternalOther Exp,440800,12-Dec-12,1900106115,11150,Kisimul School,107620
WARRINGTON BOROUGH COUNCIL,http://statistics.data.gov.uk/id/local-authority/00EU,CHL,DSG Independent School Fees,32011,Independent School Fees,490200,12-Dec-12,1900106115,7183,Kisimul School,107620
WARRINGTON BOROUGH COUNCIL,http://statistics.data.gov.uk/id/local-authority/00EU,NCS,Care Purchase - Learning Disability,54450,CP ExternalOther Exp,440800,12-Dec-12,1900106117,11150,Kisimul School,107620
WARRINGTON BOROUGH COUNCIL,http://statistics.data.gov.uk/id/local-authority/00EU,CHL,Agency Placements,30904,Independent School Fees,490200,12-Dec-12,1900106117,7183,Kisimul School,107620
WARRINGTON BOROUGH COUNCIL,http://statistics.data.gov.uk/id/local-authority/00EU,NCS,Care Purchase - Learning Disability,54450,CP ExternalOther Exp,440800,12-Dec-12,1900106656,11150,Kisimul School,107620
WARRINGTON BOROUGH COUNCIL,http://statistics.data.gov.uk/id/local-authority/00EU,CHL,DSG Independent School Fees,32011,Independent School Fees,490200,12-Dec-12,1900106656,7183,Kisimul School,107620
WARRINGTON BOROUGH COUNCIL,http://statistics.data.gov.uk/id/local-authority/00EU,NCS,Care Purchase - PD,54440,Direct Payments,552000,11-Dec-12,1900106365,1019,Redacted Personal Data,107665
WARRINGTON BOROUGH COUNCIL,http://statistics.data.gov.uk/id/local-authority/00EU,NCS,Care Purchase - OP & OT West,54470,Direct Payments,552000,11-Dec-12,1900106366,561,Redacted Personal Data,107667
WARRINGTON BOROUGH COUNCIL,http://statistics.data.gov.uk/id/local-authority/00EU,CHL,DSG Early Years PVI Settings,32417,Private & Voluntary 4 Year Olds,470150,18-Dec-12,1900107120,3765,Butterflys Nursery,107718
WARRINGTON BOROUGH COUNCIL,http://statistics.data.gov.uk/id/local-authority/00EU,CHL,DSG Early Years PVI Settings,32417,Private & Voluntary 3 Year Olds,470100,18-Dec-12,1900107193,6442,Butterflys Nursery,107718
WARRINGTON BOROUGH COUNCIL,http://statistics.data.gov.uk/id/local-authority/00EU,NCS,Care Purchase - OP & OT Central,54420,CP-LongStayExternal,441150,18-Dec-12,1900107065,1459,Haddon Court Rest Home,107727
WARRINGTON BOROUGH COUNCIL,http://statistics.data.gov.uk/id/local-authority/00EU,NCS,Care Purchase - PD,54440,Direct Payments,552000,11-Dec-12,1900106373,712,Redacted Personal Data,107791
WARRINGTON BOROUGH COUNCIL,http://statistics.data.gov.uk/id/local-authority/00EU,NCS,Care Purchase - OP & OT West,54470,Direct Payments,552000,11-Dec-12,1900106374,508,Redacted Personal Data,107799
WARRINGTON BOROUGH COUNCIL,http://statistics.data.gov.uk/id/local-authority/00EU,NCS,Care Purchase - Learning Disability,54450,CP-LongStayExternal,441150,18-Dec-12,1900107079,2880,Thornton Manor,107806
WARRINGTON BOROUGH COUNCIL,http://statistics.data.gov.uk/id/local-authority/00EU,NCS,Care Purchase - Learning Disability,54450,CP-Nursing Care-External,441200,18-Dec-12,1900107080,2445,Thornton Manor,107806
WARRINGTON BOROUGH COUNCIL,http://statistics.data.gov.uk/id/local-authority/00EU,NCS,Care Purchase - Learning Disability,54450,CP-LongStayExternal,441150,18-Dec-12,1900107033,19951,Oliver House Priory,107946
WARRINGTON BOROUGH COUNCIL,http://statistics.data.gov.uk/id/local-authority/00EU,CEX,Coroners Service,11100,Post Mortem Fees-Rep,440250,14-Dec-12,1900106794,874,Dr Cheng Li,107950
WARRINGTON BOROUGH COUNCIL,http://statistics.data.gov.uk/id/local-authority/00EU,NCS,Care Purchase - PD,54440,Direct Payments,552000,11-Dec-12,1900106377,637,Redacted Personal Data,107960
WARRINGTON BOROUGH COUNCIL,http://statistics.data.gov.uk/id/local-authority/00EU,NCS,Care Purchase - Learning Disability,54450,CP-Nursing Care-External,441200,19-Dec-12,1900107315,4200,Health & Social Care Partnerships,107996
WARRINGTON BOROUGH COUNCIL,http://statistics.data.gov.uk/id/local-authority/00EU,NCS,Care Purchase - Learning Disability,54450,CP-Nursing Care-External,441200,19-Dec-12,1900107317,9240,Health & Social Care Partnerships,107996
WARRINGTON BOROUGH COUNCIL,http://statistics.data.gov.uk/id/local-authority/00EU,NCS,Care Purchase - Learning Disability,54450,CP-Nursing Care-External,441200,19-Dec-12,1900107319,9240,Health & Social Care Partnerships,107996
WARRINGTON BOROUGH COUNCIL,http://statistics.data.gov.uk/id/local-authority/00EU,NCS,Care Purchase - Learning Disability,54450,CP-Nursing Care-External,441200,19-Dec-12,1900107320,4800,Health & Social Care Partnerships,107996
WARRINGTON BOROUGH COUNCIL,http://statistics.data.gov.uk/id/local-authority/00EU,NCS,Care Purchase - Learning Disability,54450,CP-Nursing Care-External,441200,19-Dec-12,1900107322,4200,Health & Social Care Partnerships,107996
WARRINGTON BOROUGH COUNCIL,http://statistics.data.gov.uk/id/local-authority/00EU,NCS,Care Purchase - Learning Disability,54450,CP-Nursing Care-External,441200,19-Dec-12,1900107324,4800,Health & Social Care Partnerships,107996
WARRINGTON BOROUGH COUNCIL,http://statistics.data.gov.uk/id/local-authority/00EU,NCS,Care Purchase - Learning Disability,54450,CP-Nursing Care-External,441200,19-Dec-12,1900107333,4200,Health & Social Care Partnerships,107996
WARRINGTON BOROUGH COUNCIL,http://statistics.data.gov.uk/id/local-authority/00EU,NCS,Care Purchase - Learning Disability,54450,CP-LongStayExternal,441150,19-Dec-12,1900107336,4200,Health & Social Care Partnerships,107996
WARRINGTON BOROUGH COUNCIL,http://statistics.data.gov.uk/id/local-authority/00EU,NCS,Care Purchase - OP & OT Central,54420,Direct Payments,552000,11-Dec-12,1900106379,760,Redacted Personal Data,108009
WARRINGTON BOROUGH COUNCIL,http://statistics.data.gov.uk/id/local-authority/00EU,NCS,26 Birkdale Rd,59280,Comforts Fund Expenditure,492150,14-Dec-12,1900106858,585,Birkdales Housekeeping Account,108137
WARRINGTON BOROUGH COUNCIL,http://statistics.data.gov.uk/id/local-authority/00EU,CYP,Childrens Other,81004,Contract Works,492550,19-Dec-12,1900107288,15895,Pentagon Sport,108264
WARRINGTON BOROUGH COUNCIL,http://statistics.data.gov.uk/id/local-authority/00EU,ENO,Housing Projects,82008,Disabled Persons Grant 1996,554000,17-Dec-12,1900106898,12000,Ehlen Construction,108366
WARRINGTON BOROUGH COUNCIL,http://statistics.data.gov.uk/id/local-authority/00EU,CHL,DSG 11-19 Partnership,32302,"Campaigns,  Projects and Events",491950,11-Dec-12,1900106109,2625,Young Enterprise North West,108401
WARRINGTON BOROUGH COUNCIL,http://statistics.data.gov.uk/id/local-authority/00EU,NCS,Care Purchase - Learning Disability,54450,CP Adult Placement,443450,18-Dec-12,1900107096,1496,Redacted Personal Data,108519
WARRINGTON BOROUGH COUNCIL,http://statistics.data.gov.uk/id/local-authority/00EU,NCS,Care Purchase - OP & OT West,54470,CP-LongStayExternal,441150,21-Dec-12,1900107506,1652,Ennerdale Nursing & Residential Hom,108529
WARRINGTON BOROUGH COUNCIL,http://statistics.data.gov.uk/id/local-authority/00EU,NCS,Care Purchase - PD,54440,CP-Nursing Care-External,441200,03-Dec-12,1900105617,8895,Action on Hearing Loss,108881
WARRINGTON BOROUGH COUNCIL,http://statistics.data.gov.uk/id/local-authority/00EU,NCS,Care Purchase - PD,54440,CP-Nursing Care-External,441200,21-Dec-12,1900107509,8895,Action on Hearing Loss,108881
WARRINGTON BOROUGH COUNCIL,http://statistics.data.gov.uk/id/local-authority/00EU,NCS,Care Purchase - Learning Disability,54450,CP-LongStayExternal,441150,21-Dec-12,1900107482,11896,Progress Care and Education Ltd,108888
WARRINGTON BOROUGH COUNCIL,http://statistics.data.gov.uk/id/local-authority/00EU,NCS,Care Purchase Budget,54490,CP ExternalOther Exp,440800,10-Dec-12,1900105942,21708,Leyton Healthcare Limited,108970
WARRINGTON BOROUGH COUNCIL,http://statistics.data.gov.uk/id/local-authority/00EU,NCS,Care Purchase Budget,54490,CP ExternalOther Exp,440800,12-Dec-12,1900106634,98000,Leyton Healthcare Limited,108970
WARRINGTON BOROUGH COUNCIL,http://statistics.data.gov.uk/id/local-authority/00EU,CHL,Fostering Team,31105,Agency Supply - GF,180000,05-Dec-12,1900105784,630,K Kerfoot Ltd,109052
WARRINGTON BOROUGH COUNCIL,http://statistics.data.gov.uk/id/local-authority/00EU,CHL,Fostering Team,31105,Agency Supply - GF,180000,21-Dec-12,1900107469,535,K Kerfoot Ltd,109052
WARRINGTON BOROUGH COUNCIL,http://statistics.data.gov.uk/id/local-authority/00EU,NCS,Care Purchase - Learning Disability,54450,CP ExternalOther Exp,440800,10-Dec-12,1900106008,650,Sanctuary Carr-Gomm,109157
WARRINGTON BOROUGH COUNCIL,http://statistics.data.gov.uk/id/local-authority/00EU,NCS,Care Purchase - Learning Disability,54450,CP ExternalOther Exp,440800,14-Dec-12,1900106851,650,Sanctuary Carr-Gomm,109157
WARRINGTON BOROUGH COUNCIL,http://statistics.data.gov.uk/id/local-authority/00EU,NCS,Care Purchase - Learning Disability,54450,CP-Domicil.External,440950,17-Dec-12,1900106919,650,Sanctuary Carr-Gomm,109157
WARRINGTON BOROUGH COUNCIL,http://statistics.data.gov.uk/id/local-authority/00EU,NCS,Care Purchase - Learning Disability,54450,CP ExternalOther Exp,440800,18-Dec-12,1900106959,650,Sanctuary Carr-Gomm,109157
WARRINGTON BOROUGH COUNCIL,http://statistics.data.gov.uk/id/local-authority/00EU,CHL,DSG Early Years PVI Settings,32417,Private & Voluntary 4 Year Olds,470150,18-Dec-12,1900107125,1994,Croft Village Pre School,109167
WARRINGTON BOROUGH COUNCIL,http://statistics.data.gov.uk/id/local-authority/00EU,CHL,DSG Early Years PVI Settings,32417,Private & Voluntary 3 Year Olds,470100,18-Dec-12,1900107199,5522,Croft Village Pre School,109167
WARRINGTON BOROUGH COUNCIL,http://statistics.data.gov.uk/id/local-authority/00EU,CYP,Childrens Other,81004,Equipment Purchase & Contract,400000,03-Dec-12,1900105649,20250,Protive Security and Surveillance L,109179
WARRINGTON BOROUGH COUNCIL,http://statistics.data.gov.uk/id/local-authority/00EU,NCS,Care Purchase Budget,54490,CP ExternalOther Exp,440800,07-Dec-12,1900105847,18529,London & Manchester Healthcare Ltd,109185
WARRINGTON BOROUGH COUNCIL,http://statistics.data.gov.uk/id/local-authority/00EU,NCS,Care Purchase Budget,54490,CP ExternalOther Exp,440800,12-Dec-12,1900106639,95000,London & Manchester Healthcare Ltd,109185
WARRINGTON BOROUGH COUNCIL,http://statistics.data.gov.uk/id/local-authority/00EU,CYP,Primary,81001,ICT Comms - Equipment Purchase,450100,11-Dec-12,1900106063,4184,Virtue Technologies Limited,109199
WARRINGTON BOROUGH COUNCIL,http://statistics.data.gov.uk/id/local-authority/00EU,CYP,Childrens Other,81004,Contract Works,492550,11-Dec-12,1900106060,9880,Kestrel Interiors Ltd,109331
WARRINGTON BOROUGH COUNCIL,http://statistics.data.gov.uk/id/local-authority/00EU,NCS,Care Purchase Budget,54490,CP ExternalOther Exp,440800,10-Dec-12,1900105948,17013,Four Seasons ta St Oswalds Care Hom,109422
WARRINGTON BOROUGH COUNCIL,http://statistics.data.gov.uk/id/local-authority/00EU,NCS,Care Purchase Budget,54490,CP ExternalOther Exp,440800,12-Dec-12,1900106605,37000,Four Seasons ta St Oswalds Care Hom,109422
WARRINGTON BOROUGH COUNCIL,http://statistics.data.gov.uk/id/local-authority/00EU,NCS,Care Purchase - PD,54440,CP-Nursing Care-External,441200,18-Dec-12,1900107003,2372,HC-ONE Limited Beechley,109455
WARRINGTON BOROUGH COUNCIL,http://statistics.data.gov.uk/id/local-authority/00EU,NCS,Care Purchase - OP & OT West,54470,CP-LongStayExternal,441150,03-Dec-12,1900105603,1784,Borough Care Ltd Cawood House,109513
WARRINGTON BOROUGH COUNCIL,http://statistics.data.gov.uk/id/local-authority/00EU,NCS,SLA - Grant Account,53920,Payment of Grants,470050,17-Dec-12,1900106891,23987,WIRED,109547
WARRINGTON BOROUGH COUNCIL,http://statistics.data.gov.uk/id/local-authority/00EU,NCS,Care Purchase - OP & OT South,54480,CP-Day Care-External,441100,21-Dec-12,1900107589,1584,Burrswood House Nursing & Residenti,109619
WARRINGTON BOROUGH COUNCIL,http://statistics.data.gov.uk/id/local-authority/00EU,CHL,DSG Early Years PVI Settings,32417,Private & Voluntary 3 Year Olds,470100,18-Dec-12,1900107195,5236,Chapel Road Day Nursery,109632
WARRINGTON BOROUGH COUNCIL,http://statistics.data.gov.uk/id/local-authority/00EU,NCS,Care Purchase Budget,54490,CP ExternalOther Exp,440800,12-Dec-12,1900106649,65000,Bondcare St Andrews,109634
WARRINGTON BOROUGH COUNCIL,http://statistics.data.gov.uk/id/local-authority/00EU,NCS,Care Purchase Budget,54490,CP ExternalOther Exp,440800,12-Dec-12,1900106636,150000,HC-One Limited Callands,109640
WARRINGTON BOROUGH COUNCIL,http://statistics.data.gov.uk/id/local-authority/00EU,NCS,Care Purchase Budget,54490,CP ExternalOther Exp,440800,17-Dec-12,1900106918,18468,HC-One Limited Callands,109640
WARRINGTON BOROUGH COUNCIL,http://statistics.data.gov.uk/id/local-authority/00EU,NCS,Care Purchase - OP & OT West,54470,CP-LongStayExternal,441150,21-Dec-12,1900107491,825,HC-One Limited Callands,109640
WARRINGTON BOROUGH COUNCIL,http://statistics.data.gov.uk/id/local-authority/00EU,NCS,Neighbourhood Co-o Central,51309,Payment of Grants,470050,07-Dec-12,1900105820,918,St Margarets Elderley Group,109649
WARRINGTON BOROUGH COUNCIL,http://statistics.data.gov.uk/id/local-authority/00EU,CYP,Childrens Other,81004,Contract Works,492550,12-Dec-12,1900106674,4544,Protek SFE ltd ta Shelter Solutions,109664
WARRINGTON BOROUGH COUNCIL,http://statistics.data.gov.uk/id/local-authority/00EU,CHL,EIG Funding - Quality Support Grants,31604,Payment of Grants,470050,11-Dec-12,1900106106,560,Cherry Tree out of School Club,109672
WARRINGTON BOROUGH COUNCIL,http://statistics.data.gov.uk/id/local-authority/00EU,NCS,Care Purchase - OP & OT South,54480,CP-LongStayExternal,441150,18-Dec-12,1900106985,1838,Restful Homes Milton Keyes Ltd,109746
WARRINGTON BOROUGH COUNCIL,http://statistics.data.gov.uk/id/local-authority/00EU,NCS,Care Purchase - OP & OT Central,54420,CP-LongStayExternal,441150,19-Dec-12,1900107325,1600,The Forbury Residential Home,109755
WARRINGTON BOROUGH COUNCIL,http://statistics.data.gov.uk/id/local-authority/00EU,NCS,Care Purchase - OP & OT South,54480,CP-LongStayExternal,441150,18-Dec-12,1900107035,1912,Sanctuary Care Limited,109765
WARRINGTON BOROUGH COUNCIL,http://statistics.data.gov.uk/id/local-authority/00EU,CHL,Special Schools Transport,33208,Warrington BC Schools Transport,300700,10-Dec-12,1900105913,768,Redacted Personal Data,109994
WARRINGTON BOROUGH COUNCIL,http://statistics.data.gov.uk/id/local-authority/00EU,ER0,Alder Lodge Supporting People,43651,Security Guards,441000,03-Dec-12,1900105619,893,Cumbria Security Services (North) L,110006
WARRINGTON BOROUGH COUNCIL,http://statistics.data.gov.uk/id/local-authority/00EU,ER0,Alder Lodge Supporting People,43651,Security Guards,441000,13-Dec-12,1900106714,893,Cumbria Security Services (North) L,110006
WARRINGTON BOROUGH COUNCIL,http://statistics.data.gov.uk/id/local-authority/00EU,ER0,Alder Lodge Supporting People,43651,Security Guards,441000,13-Dec-12,1900106715,909,Cumbria Security Services (North) L,110006
WARRINGTON BOROUGH COUNCIL,http://statistics.data.gov.uk/id/local-authority/00EU,ER0,Alder Lodge Supporting People,43651,Security Guards,441000,17-Dec-12,1900106901,905,Cumbria Security Services (North) L,110006
WARRINGTON BOROUGH COUNCIL,http://statistics.data.gov.uk/id/local-authority/00EU,ENP,Environment & Regeneration,82000,Gas,210050,13-Dec-12,1900106704,11613,Fulcrum Pipelines Limited,110071
WARRINGTON BOROUGH COUNCIL,http://statistics.data.gov.uk/id/local-authority/00EU,CHL,DSG Early Years PVI Settings,32417,Private & Voluntary 4 Year Olds,470150,18-Dec-12,1900107143,1255,Little Wonders Day Nursery,110078
WARRINGTON BOROUGH COUNCIL,http://statistics.data.gov.uk/id/local-authority/00EU,CHL,DSG Early Years PVI Settings,32417,Private & Voluntary 3 Year Olds,470100,18-Dec-12,1900107220,5020,Little Wonders Day Nursery,110078
WARRINGTON BOROUGH COUNCIL,http://statistics.data.gov.uk/id/local-authority/00EU,CHL,Fostering Team,31105,Agency Supply - GF,180000,05-Dec-12,1900105786,1400,Redacted Personal Data,110093
WARRINGTON BOROUGH COUNCIL,http://statistics.data.gov.uk/id/local-authority/00EU,NCS,Care Purchase - OP & OT West,54470,CP-LongStayExternal,441150,18-Dec-12,1900107050,1722,Simonsfield Care Home,110134
WARRINGTON BOROUGH COUNCIL,http://statistics.data.gov.uk/id/local-authority/00EU,NCS,Care Purchase - Mental Health Team 1,54230,CP-Domicil.External,440950,17-Dec-12,1900106912,2494,Caring Alternatives limited,110164
WARRINGTON BOROUGH COUNCIL,http://statistics.data.gov.uk/id/local-authority/00EU,NCS,Care Purchase - Mental Health Team 1,54230,CP-Domicil.External,440950,17-Dec-12,1900106913,2596,Caring Alternatives limited,110164
WARRINGTON BOROUGH COUNCIL,http://statistics.data.gov.uk/id/local-authority/00EU,NCS,Care Purchase - Mental Health Team 1,54230,CP-Domicil.External,440950,03-Dec-12,1900105593,4000,East Cheshire Housing Consortium,110170
WARRINGTON BOROUGH COUNCIL,http://statistics.data.gov.uk/id/local-authority/00EU,CHL,Contact Centre,31006,Materials,400500,17-Dec-12,1900106865,875,Cassidy Sun Blinds Ltd,110174
WARRINGTON BOROUGH COUNCIL,http://statistics.data.gov.uk/id/local-authority/00EU,CHL,Contact Centre,31006,Materials,400500,17-Dec-12,1900106867,875,Cassidy Sun Blinds Ltd,110174
WARRINGTON BOROUGH COUNCIL,http://statistics.data.gov.uk/id/local-authority/00EU,NCS,Care Purchase -OP & OT East,54430,CP-LongStayExternal,441150,18-Dec-12,1900107078,2440,Adriana Ltd Ta The Priory,110286
WARRINGTON BOROUGH COUNCIL,http://statistics.data.gov.uk/id/local-authority/00EU,NCS,Care Purchase - Learning Disability,54450,CP-LongStayExternal,441150,19-Dec-12,1900107375,6920,Clervaux Trust Ltd,110288
WARRINGTON BOROUGH COUNCIL,http://statistics.data.gov.uk/id/local-authority/00EU,CEX,Car Leasing Scheme - Salary Sacrifice,52126,Car Leasing Charges,350000,19-Dec-12,1900107292,670,NHC NHS Foundation Trust,110359
WARRINGTON BOROUGH COUNCIL,http://statistics.data.gov.uk/id/local-authority/00EU,CEX,Car Leasing Scheme - Salary Sacrifice,52126,Car Leasing Charges,350000,19-Dec-12,1900107292,3761,NHC NHS Foundation Trust,110359
WARRINGTON BOROUGH COUNCIL,http://statistics.data.gov.uk/id/local-authority/00EU,CEX,Car Leasing Scheme - Salary Sacrifice,52126,Car Leasing Charges,350000,19-Dec-12,1900107293,670,NHC NHS Foundation Trust,110359
WARRINGTON BOROUGH COUNCIL,http://statistics.data.gov.uk/id/local-authority/00EU,CEX,Car Leasing Scheme - Salary Sacrifice,52126,Car Leasing Charges,350000,19-Dec-12,1900107293,4999,NHC NHS Foundation Trust,110359
WARRINGTON BOROUGH COUNCIL,http://statistics.data.gov.uk/id/local-authority/00EU,CEX,Car Leasing Scheme - Salary Sacrifice,52126,Car Leasing Charges,350000,19-Dec-12,1900107294,670,NHC NHS Foundation Trust,110359
WARRINGTON BOROUGH COUNCIL,http://statistics.data.gov.uk/id/local-authority/00EU,CEX,Car Leasing Scheme - Salary Sacrifice,52126,Car Leasing Charges,350000,19-Dec-12,1900107294,4529,NHC NHS Foundation Trust,110359
WARRINGTON BOROUGH COUNCIL,http://statistics.data.gov.uk/id/local-authority/00EU,CEX,Car Leasing Scheme - Salary Sacrifice,52126,Car Leasing Charges,350000,19-Dec-12,1900107367,670,NHC NHS Foundation Trust,110359
WARRINGTON BOROUGH COUNCIL,http://statistics.data.gov.uk/id/local-authority/00EU,CEX,Car Leasing Scheme - Salary Sacrifice,52126,Car Leasing Charges,350000,19-Dec-12,1900107367,3024,NHC NHS Foundation Trust,110359
WARRINGTON BOROUGH COUNCIL,http://statistics.data.gov.uk/id/local-authority/00EU,CEX,Car Leasing Scheme - Salary Sacrifice,52126,Car Leasing Charges,350000,19-Dec-12,1900107373,670,NHC NHS Foundation Trust,110359
WARRINGTON BOROUGH COUNCIL,http://statistics.data.gov.uk/id/local-authority/00EU,CEX,Car Leasing Scheme - Salary Sacrifice,52126,Car Leasing Charges,350000,19-Dec-12,1900107373,4988,NHC NHS Foundation Trust,110359
WARRINGTON BOROUGH COUNCIL,http://statistics.data.gov.uk/id/local-authority/00EU,CEX,Car Leasing Scheme - Salary Sacrifice,52126,Car Leasing Charges,350000,19-Dec-12,1900107378,670,NHC NHS Foundation Trust,110359
WARRINGTON BOROUGH COUNCIL,http://statistics.data.gov.uk/id/local-authority/00EU,CEX,Car Leasing Scheme - Salary Sacrifice,52126,Car Leasing Charges,350000,19-Dec-12,1900107378,2925,NHC NHS Foundation Trust,110359
WARRINGTON BOROUGH COUNCIL,http://statistics.data.gov.uk/id/local-authority/00EU,NCS,Care Purchase - Learning Disability,54450,CP-LongStayExternal,441150,03-Dec-12,1900105637,864,Icare Service Limited,110435
WARRINGTON BOROUGH COUNCIL,http://statistics.data.gov.uk/id/local-authority/00EU,NCS,Care Purchase - Learning Disability,54450,CP-Day Care-External,441100,19-Dec-12,1900107307,1069,Icare Service Limited,110435
WARRINGTON BOROUGH COUNCIL,http://statistics.data.gov.uk/id/local-authority/00EU,NCS,Care Purchase - Learning Disability,54450,CP-Day Care-External,441100,19-Dec-12,1900107323,1069,Icare Service Limited,110435
WARRINGTON BOROUGH COUNCIL,http://statistics.data.gov.uk/id/local-authority/00EU,NCS,Care Purchase - Learning Disability,54450,CP-Day Care-External,441100,19-Dec-12,1900107338,1069,Icare Service Limited,110435
WARRINGTON BOROUGH COUNCIL,http://statistics.data.gov.uk/id/local-authority/00EU,NCS,Care Purchase - Learning Disability,54450,CP-Day Care-External,441100,19-Dec-12,1900107339,938,Icare Service Limited,110435
WARRINGTON BOROUGH COUNCIL,http://statistics.data.gov.uk/id/local-authority/00EU,NCS,Care Purchase - Learning Disability,54450,CP-LongStayExternal,441150,19-Dec-12,1900107339,600,Icare Service Limited,110435
WARRINGTON BOROUGH COUNCIL,http://statistics.data.gov.uk/id/local-authority/00EU,NCS,Care Purchase - Learning Disability,54450,CP-Day Care-External,441100,19-Dec-12,1900107340,938,Icare Service Limited,110435
WARRINGTON BOROUGH COUNCIL,http://statistics.data.gov.uk/id/local-authority/00EU,NCS,Care Purchase - Learning Disability,54450,CP-LongStayExternal,441150,19-Dec-12,1900107340,600,Icare Service Limited,110435
WARRINGTON BOROUGH COUNCIL,http://statistics.data.gov.uk/id/local-authority/00EU,NCS,Care Purchase - Learning Disability,54450,CP-Day Care-External,441100,19-Dec-12,1900107341,938,Icare Service Limited,110435
WARRINGTON BOROUGH COUNCIL,http://statistics.data.gov.uk/id/local-authority/00EU,NCS,Care Purchase - Learning Disability,54450,CP-LongStayExternal,441150,19-Dec-12,1900107341,600,Icare Service Limited,110435
WARRINGTON BOROUGH COUNCIL,http://statistics.data.gov.uk/id/local-authority/00EU,NCS,Care Purchase - Learning Disability,54450,CP-Day Care-External,441100,19-Dec-12,1900107342,1069,Icare Service Limited,110435
WARRINGTON BOROUGH COUNCIL,http://statistics.data.gov.uk/id/local-authority/00EU,NCS,Care Purchase - Learning Disability,54450,CP-Day Care-External,441100,19-Dec-12,1900107343,938,Icare Service Limited,110435
WARRINGTON BOROUGH COUNCIL,http://statistics.data.gov.uk/id/local-authority/00EU,NCS,Care Purchase - Learning Disability,54450,CP-LongStayExternal,441150,19-Dec-12,1900107343,600,Icare Service Limited,110435
WARRINGTON BOROUGH COUNCIL,http://statistics.data.gov.uk/id/local-authority/00EU,ER0,Homelessness,43650,Emergency Accommodation Allowance,550500,03-Dec-12,1900105625,1480,Mr K Willams Adelphi Vaults,110456
WARRINGTON BOROUGH COUNCIL,http://statistics.data.gov.uk/id/local-authority/00EU,ER0,Homelessness,43650,Emergency Accommodation Allowance,550500,13-Dec-12,1900106710,1400,Mr K Willams Adelphi Vaults,110456
WARRINGTON BOROUGH COUNCIL,http://statistics.data.gov.uk/id/local-authority/00EU,ER0,Homelessness,43650,Emergency Accommodation Allowance,550500,13-Dec-12,1900106711,1440,Mr K Willams Adelphi Vaults,110456
WARRINGTON BOROUGH COUNCIL,http://statistics.data.gov.uk/id/local-authority/00EU,CHL,DSG Early Years PVI Settings,32417,Private & Voluntary 3 Year Olds,470100,18-Dec-12,1900107218,1841,Redacted Personal Data,110468
WARRINGTON BOROUGH COUNCIL,http://statistics.data.gov.uk/id/local-authority/00EU,NCS,Care Purchase -OP & OT East,54430,Brokers Commission,441500,03-Dec-12,1900105628,1800,St Georges Residential Care Home,110495
WARRINGTON BOROUGH COUNCIL,http://statistics.data.gov.uk/id/local-authority/00EU,NCS,Care Purchase Budget,54490,CP ExternalOther Exp,440800,12-Dec-12,1900106609,18000,Harbour Healthcare 1 Ltd,110527
WARRINGTON BOROUGH COUNCIL,http://statistics.data.gov.uk/id/local-authority/00EU,NCS,Care Purchase Budget,54490,CP ExternalOther Exp,440800,12-Dec-12,1900106641,10742,Harbour Healthcare 1 Ltd,110527
WARRINGTON BOROUGH COUNCIL,http://statistics.data.gov.uk/id/local-authority/00EU,NCS,Care Purchase Budget,54490,CP ExternalOther Exp,440800,21-Dec-12,1900107517,9499,Harbour Healthcare 1 Ltd,110527
WARRINGTON BOROUGH COUNCIL,http://statistics.data.gov.uk/id/local-authority/00EU,NCS,Care Purchase -OP & OT East,54430,CP-LongStayExternal,441150,06-Dec-12,1900105799,1494,Sun Hill,110568
WARRINGTON BOROUGH COUNCIL,http://statistics.data.gov.uk/id/local-authority/00EU,CHL,DSG Independent School Fees,32011,Independent School Fees,490200,12-Dec-12,1900106612,3388,Weston Point College,110596
WARRINGTON BOROUGH COUNCIL,http://statistics.data.gov.uk/id/local-authority/00EU,CHL,DSG Independent School Fees,32011,Independent School Fees,490200,12-Dec-12,1900106667,9846,Weston Point College,110596
WARRINGTON BOROUGH COUNCIL,http://statistics.data.gov.uk/id/local-authority/00EU,CHL,Legal Fees - Safeguarding,30100,Legal Costs Incurred,440200,14-Dec-12,1900106822,13771,Redacted Personal Data,110626
WARRINGTON BOROUGH COUNCIL,http://statistics.data.gov.uk/id/local-authority/00EU,CHL,DSG Early Years PVI Settings,32417,Private & Voluntary 3 Year Olds,470100,21-Dec-12,1900107596,1841,Little Penguins Day Nursery,110768
WARRINGTON BOROUGH COUNCIL,http://statistics.data.gov.uk/id/local-authority/00EU,NCS,Care Purchase - OP & OT West,54470,CP-LongStayExternal,441150,03-Dec-12,1900105646,2600,Chase House Limited,110786
WARRINGTON BOROUGH COUNCIL,http://statistics.data.gov.uk/id/local-authority/00EU,CHL,DSG Early Years PVI Settings,32417,Private & Voluntary 3 Year Olds,470100,18-Dec-12,1900107225,1004,Redacted Personal Data,110817
WARRINGTON BOROUGH COUNCIL,http://statistics.data.gov.uk/id/local-authority/00EU,NCS,Care Purchase - Learning Disability,54450,CP ExternalOther Exp,440800,10-Dec-12,1900106020,880,Redacted Personal Data,110943
WARRINGTON BOROUGH COUNCIL,http://statistics.data.gov.uk/id/local-authority/00EU,NCS,Stronger Together,51303,Payment of Grants,470050,06-Dec-12,1900105805,640,Bits and Bobs,110958
WARRINGTON BOROUGH COUNCIL,http://statistics.data.gov.uk/id/local-authority/00EU,NCS,Care Purchase - Learning Disability,54450,CP-Domicil.External,440950,18-Dec-12,1900107059,9534,Zeno Limited,111080
WARRINGTON BOROUGH COUNCIL,http://statistics.data.gov.uk/id/local-authority/00EU,NCS,Care Purchase - Learning Disability,54450,CP-Domicil.External,440950,18-Dec-12,1900107061,11824,Zeno Limited,111080
WARRINGTON BOROUGH COUNCIL,http://statistics.data.gov.uk/id/local-authority/00EU,CHL,Strategic Director,30000,Consult.& Prof. Serv,440000,07-Dec-12,1900105824,1050,Redacted Personal Data,111105
WARRINGTON BOROUGH COUNCIL,http://statistics.data.gov.uk/id/local-authority/00EU,CHL,Strategic Director,30000,Consult.& Prof. Serv,440000,07-Dec-12,1900105825,1310,Redacted Personal Data,111105
WARRINGTON BOROUGH COUNCIL,http://statistics.data.gov.uk/id/local-authority/00EU,CHL,Strategic Director,30000,Consult.& Prof. Serv,440000,11-Dec-12,1900106065,1400,Redacted Personal Data,111105
WARRINGTON BOROUGH COUNCIL,http://statistics.data.gov.uk/id/local-authority/00EU,CHL,Strategic Director,30000,Equipment Purchase & Contract,400000,11-Dec-12,1900106067,1784,Redacted Personal Data,111105
WARRINGTON BOROUGH COUNCIL,http://statistics.data.gov.uk/id/local-authority/00EU,CHL,Strategic Director,30000,Consult.& Prof. Serv,440000,13-Dec-12,1900106718,1400,Redacted Personal Data,111105
WARRINGTON BOROUGH COUNCIL,http://statistics.data.gov.uk/id/local-authority/00EU,CEX,Coroners Service,11100,Jury Witness Exps,460050,14-Dec-12,1900106785,520,Redacted Personal Data,111118
WARRINGTON BOROUGH COUNCIL,http://statistics.data.gov.uk/id/local-authority/00EU,CHL,SCM Beamont Community School,33170,Response Maintenance,200000,11-Dec-12,1900106084,607,Hoult Group Services,111129
WARRINGTON BOROUGH COUNCIL,http://statistics.data.gov.uk/id/local-authority/00EU,CHL,SCM St Vincent's Primary School,33148,Response Maintenance,200000,11-Dec-12,1900106087,501,Hoult Group Services,111129
WARRINGTON BOROUGH COUNCIL,http://statistics.data.gov.uk/id/local-authority/00EU,CHL,SCM Newchurch Primary School,33134,Response Maintenance,200000,14-Dec-12,1900106795,552,Hoult Group Services,111129
WARRINGTON BOROUGH COUNCIL,http://statistics.data.gov.uk/id/local-authority/00EU,CHL,SCM Birchwood Primary School,33160,Response Maintenance,200000,14-Dec-12,1900106801,1073,Hoult Group Services,111129
WARRINGTON BOROUGH COUNCIL,http://statistics.data.gov.uk/id/local-authority/00EU,CHL,SCM Great Sankey Primary School,33153,Response Maintenance,200000,14-Dec-12,1900106811,682,Hoult Group Services,111129
WARRINGTON BOROUGH COUNCIL,http://statistics.data.gov.uk/id/local-authority/00EU,CEX,Coroners Service,11100,Consult.& Prof. Serv,440000,14-Dec-12,1900106832,5200,Redacted Personal Data,111176
WARRINGTON BOROUGH COUNCIL,http://statistics.data.gov.uk/id/local-authority/00EU,CEX,Coroners Service,11100,Consult.& Prof. Serv,440000,14-Dec-12,1900106840,9200,Redacted Personal Data,111176
WARRINGTON BOROUGH COUNCIL,http://statistics.data.gov.uk/id/local-authority/00EU,ENO,Housing Projects,82008,Renewals Assistance,554050,10-Dec-12,1900105928,25440,Redacted Personal Data,111198
WARRINGTON BOROUGH COUNCIL,http://statistics.data.gov.uk/id/local-authority/00EU,CHL,Central Schools,32502,NNDR,230000,05-Dec-12,1900105795,20396,Exacta Plc,111218
WARRINGTON BOROUGH COUNCIL,http://statistics.data.gov.uk/id/local-authority/00EU,CHL,Foster Carer Recruitment,31115,Carer Recruitment,442050,11-Dec-12,1900106108,895,Redacted Personal Data,111222
WARRINGTON BOROUGH COUNCIL,http://statistics.data.gov.uk/id/local-authority/00EU,ENO,Housing Projects,82008,Disabled Persons Grant 1996,554000,04-Dec-12,1900105711,4226,Reilly Brothers Builders,111223
WARRINGTON BOROUGH COUNCIL,http://statistics.data.gov.uk/id/local-authority/00EU,NCS,Care Purchase - PD,54440,CP ExternalOther Exp,440800,10-Dec-12,1900105994,1000,Bedspace Resource Ltd,111230
WARRINGTON BOROUGH COUNCIL,http://statistics.data.gov.uk/id/local-authority/00EU,CEX,Coroners Service,11100,Consult.& Prof. Serv,440000,12-Dec-12,1900106682,565,St Andrews Healthcare,111236
WARRINGTON BOROUGH COUNCIL,http://statistics.data.gov.uk/id/local-authority/00EU,CYP,Primary,81001,Equipment Purchase & Contract,400000,11-Dec-12,1900106052,16502,Incube Ltd,111243
WARRINGTON BOROUGH COUNCIL,http://statistics.data.gov.uk/id/local-authority/00EU,NCS,Care Purchase -OP & OT East,54430,CP-LongStayExternal,441150,12-Dec-12,1900106632,2070,Elmtree House Residential Care Home,111247
WARRINGTON BOROUGH COUNCIL,http://statistics.data.gov.uk/id/local-authority/00EU,NCS,Neighbourhood Co-o South,51308,Payment of Grants,470050,07-Dec-12,1900105855,1000,St Margarets Partnership,111248
WARRINGTON BOROUGH COUNCIL,http://statistics.data.gov.uk/id/local-authority/00EU,NCS,Neighbourhood Co-o Central,51309,Payment of Grants,470050,18-Dec-12,1900107092,2500,Long Lane Garden Centre,111271
WARRINGTON BOROUGH COUNCIL,http://statistics.data.gov.uk/id/local-authority/00EU,CYP,Childrens Other,81004,Contract Works,492550,17-Dec-12,1900106870,867,Cemex UK Materials Ltd,111281
WARRINGTON BOROUGH COUNCIL,http://statistics.data.gov.uk/id/local-authority/00EU,CYP,Childrens Other,81004,Contract Works,492550,17-Dec-12,1900106871,1050,Cemex UK Materials Ltd,111281
WARRINGTON BOROUGH COUNCIL,http://statistics.data.gov.uk/id/local-authority/00EU,ER0,Development Control,43430,Consult.& Prof. Serv,440000,20-Dec-12,1900107463,520,Majornet Ltd,111283
WARRINGTON BOROUGH COUNCIL,http://statistics.data.gov.uk/id/local-authority/00EU,CEX,Coroners Service,11100,Reimbursement for Deputy Coroner,440400,19-Dec-12,1900107297,1019,Redacted Personal Data,111284
WARRINGTON BOROUGH COUNCIL,http://statistics.data.gov.uk/id/local-authority/00EU,CHL,DSG Early Years PVI Settings,32417,Private & Voluntary 4 Year Olds,470150,18-Dec-12,1900107153,2789,Puddleducks Day Nursery,400001
WARRINGTON BOROUGH COUNCIL,http://statistics.data.gov.uk/id/local-authority/00EU,CHL,DSG Early Years PVI Settings,32417,Private & Voluntary 3 Year Olds,470100,18-Dec-12,1900107231,11574,Puddleducks Day Nursery,400001
WARRINGTON BOROUGH COUNCIL,http://statistics.data.gov.uk/id/local-authority/00EU,CHL,DSG Early Years PVI Settings,32417,Private & Voluntary 4 Year Olds,470150,18-Dec-12,1900107173,5717,Warrington Day Nursery,400002
WARRINGTON BOROUGH COUNCIL,http://statistics.data.gov.uk/id/local-authority/00EU,CHL,DSG Early Years PVI Settings,32417,Private & Voluntary 3 Year Olds,470100,18-Dec-12,1900107252,13879,Warrington Day Nursery,400002
WARRINGTON BOROUGH COUNCIL,http://statistics.data.gov.uk/id/local-authority/00EU,CHL,DSG Early Years PVI Settings,32417,Private & Voluntary 4 Year Olds,470150,18-Dec-12,1900107147,1673,Lynton Private Day Nursery,400003
WARRINGTON BOROUGH COUNCIL,http://statistics.data.gov.uk/id/local-authority/00EU,CHL,DSG Early Years PVI Settings,32417,Private & Voluntary 3 Year Olds,470100,18-Dec-12,1900107224,3681,Lynton Private Day Nursery,400003
WARRINGTON BOROUGH COUNCIL,http://statistics.data.gov.uk/id/local-authority/00EU,CHL,DSG Early Years PVI Settings,32417,Private & Voluntary 3 Year Olds,470100,03-Dec-12,1900105620,1500,Locking Stumps Pre School,400008
WARRINGTON BOROUGH COUNCIL,http://statistics.data.gov.uk/id/local-authority/00EU,CHL,DSG Early Years PVI Settings,32417,Private & Voluntary 4 Year Olds,470150,18-Dec-12,1900107145,1116,Locking Stumps Pre School,400008
WARRINGTON BOROUGH COUNCIL,http://statistics.data.gov.uk/id/local-authority/00EU,CHL,DSG Early Years PVI Settings,32417,Private & Voluntary 3 Year Olds,470100,18-Dec-12,1900107222,7810,Locking Stumps Pre School,400008
WARRINGTON BOROUGH COUNCIL,http://statistics.data.gov.uk/id/local-authority/00EU,CHL,DSG Early Years PVI Settings,32417,Private & Voluntary 4 Year Olds,470150,18-Dec-12,1900107114,4309,Abc Pre-School Limited,400009
WARRINGTON BOROUGH COUNCIL,http://statistics.data.gov.uk/id/local-authority/00EU,CHL,DSG Early Years PVI Settings,32417,Private & Voluntary 3 Year Olds,470100,18-Dec-12,1900107185,7530,Abc Pre-School Limited,400009
WARRINGTON BOROUGH COUNCIL,http://statistics.data.gov.uk/id/local-authority/00EU,CHL,DSG Early Years PVI Settings,32417,Private & Voluntary 4 Year Olds,470150,18-Dec-12,1900107168,1388,Thelwall Pre-School,400010
WARRINGTON BOROUGH COUNCIL,http://statistics.data.gov.uk/id/local-authority/00EU,CHL,DSG Early Years PVI Settings,32417,Private & Voluntary 3 Year Olds,470100,18-Dec-12,1900107247,5880,Thelwall Pre-School,400010
WARRINGTON BOROUGH COUNCIL,http://statistics.data.gov.uk/id/local-authority/00EU,CHL,DSG Early Years PVI Settings,32417,Private & Voluntary 4 Year Olds,470150,18-Dec-12,1900107140,9064,Little Acorns Day Nursery,400012
WARRINGTON BOROUGH COUNCIL,http://statistics.data.gov.uk/id/local-authority/00EU,CHL,DSG Early Years PVI Settings,32417,Private & Voluntary 3 Year Olds,470100,18-Dec-12,1900107216,26749,Little Acorns Day Nursery,400012
WARRINGTON BOROUGH COUNCIL,http://statistics.data.gov.uk/id/local-authority/00EU,CHL,DSG Early Years PVI Settings,32417,Private & Voluntary 4 Year Olds,470150,18-Dec-12,1900107178,3514,The Cheshire Day Nursery,400013
WARRINGTON BOROUGH COUNCIL,http://statistics.data.gov.uk/id/local-authority/00EU,CHL,DSG Early Years PVI Settings,32417,Private & Voluntary 3 Year Olds,470100,18-Dec-12,1900107257,11020,The Cheshire Day Nursery,400013
WARRINGTON BOROUGH COUNCIL,http://statistics.data.gov.uk/id/local-authority/00EU,CHL,DSG Early Years PVI Settings,32417,Private & Voluntary 4 Year Olds,470150,18-Dec-12,1900107135,2780,Jack & Jill Pre School,400014
WARRINGTON BOROUGH COUNCIL,http://statistics.data.gov.uk/id/local-authority/00EU,CHL,DSG Early Years PVI Settings,32417,Private & Voluntary 3 Year Olds,470100,18-Dec-12,1900107210,10794,Jack & Jill Pre School,400014
WARRINGTON BOROUGH COUNCIL,http://statistics.data.gov.uk/id/local-authority/00EU,CHL,DSG Early Years PVI Settings,32417,Private & Voluntary 4 Year Olds,470150,18-Dec-12,1900107152,3651,Play Days Pre-School,400016
WARRINGTON BOROUGH COUNCIL,http://statistics.data.gov.uk/id/local-authority/00EU,CHL,DSG Early Years PVI Settings,32417,Private & Voluntary 3 Year Olds,470100,18-Dec-12,1900107230,10143,Play Days Pre-School,400016
WARRINGTON BOROUGH COUNCIL,http://statistics.data.gov.uk/id/local-authority/00EU,CHL,DSG Early Years PVI Settings,32417,Private & Voluntary 4 Year Olds,470150,18-Dec-12,1900107149,7066,Old Hall Pre School,400017
WARRINGTON BOROUGH COUNCIL,http://statistics.data.gov.uk/id/local-authority/00EU,CHL,DSG Early Years PVI Settings,32417,Private & Voluntary 3 Year Olds,470100,18-Dec-12,1900107227,8808,Old Hall Pre School,400017
WARRINGTON BOROUGH COUNCIL,http://statistics.data.gov.uk/id/local-authority/00EU,CHL,DSG Early Years PVI Settings,32417,Private & Voluntary 4 Year Olds,470150,18-Dec-12,1900107170,2901,Tugboats Pre-School,400028
WARRINGTON BOROUGH COUNCIL,http://statistics.data.gov.uk/id/local-authority/00EU,CHL,DSG Early Years PVI Settings,32417,Private & Voluntary 3 Year Olds,470100,18-Dec-12,1900107249,7756,Tugboats Pre-School,400028
WARRINGTON BOROUGH COUNCIL,http://statistics.data.gov.uk/id/local-authority/00EU,CHL,DSG Early Years PVI Settings,32417,Private & Voluntary 3 Year Olds,470100,18-Dec-12,1900107204,7948,First Footsteps,400043
